Workbook

Sheet Introduction
B3: Foundations
C5: What would you compute first
C7: Project IRR and Equity IRR and Debt IRR
C9: Make a Scenario
C11: Financial Model - Units/Sums/Inputs/Source
C13: Balancing of Interests
B15: Advanced
C17: Compute Default and Repayment of Default
C19: Compute Premium versus Risk Free Rate
C21: Compute LLCR and PLCR with Different Interest Rates
C23: Upside from Re-financing
C25: Treatment of Pre-COD Cash Flow as Equity

Sheet Case Write-up
M22: Fancy Meetings
M34: Skip
M76: Nationalisation of PDVSA, 1976
M103: PDVSA Tax Rate 34% or 67,7%
M104: Royalty Rate 16.67%
M111: $65 Billion for Funding Oil Expansion
M116: Allowed Joint Ventures
M124: PDVSA Minority Shareholder
M174: Low Cost Reserves for US Refinery
M202: SPV: Petrozuata
M208: Area | N208: =21.5*1000000000 -> 21500000000 | O208: BBL
M209: 35 Years | N209: =N208/35 -> 614285714.3 | O209: BBL-yr
M210: per Day | N210: =N209/365 -> 1682974.56 | O210: BBL-day
M211: Capacity | N211: 120000 | O211: BBL-day
M214: Surplus Capacity Upside
M222: Capacity of Upgrader | N222: 102000 | O222: BBL-day
M249: Cost Over-run from Equity
M266: Off-taker is the sponsor
M294: Cash Flow Waterfall in Model
M295: Owners do not have right to use cash flow however they want
M339: Political Risk Insurance - Increase in Interest Rate

Sheet Exhibit7
D1: Exhibit 7 Sources and Uses of Funds (U.S. dollars in thousands): 1996-2000
E4: 1996 | F4: 1997 | G4: 1998 | H4: 1999 | I4: 2000 | J4: Total
D6: USES
D7: Capital Expenditures
D8: Crude Oil Production | E8: 11995 | F8: 191849 | G8: 151141 | H8: 77092 | I8: 16702 | J8: 448780
D9: Crude Oil Pipeline | E9: 655 | F9: 170512 | G9: 45121 | H9: 0 | I9: 0 | J9: 216288
D10: Upgrader & Loading Facilitya | E10: 14345 | F10: 243305 | G10: 510987 | H10: 230306 | I10: 67912 | J10: 1066854
D11: Upstream Contingency | E11: 0 | F11: 0 | G11: 0 | H11: 0 | I11: 37925 | J11: 37925
D12: Total Capex | E12: 26994 | F12: 605666 | G12: 707249 | H12: 307399 | I12: 122539 | J12: 1769847
D13: Other Costs
D14: Deferred Development Costs and Operating Expenditures | E14: 52040 | F14: 23328 | G14: 71724 | H14: 0 | I14: 0 | J14: 147093
D15: Initial Cash Balance | E15: 0 | F15: 0 | G15: 10000 | H15: 0 | I15: 0 | J15: 10000
D16: Financing Costs | E16: 0 | F16: 61134 | G16: 86816 | H16: 94955 | I16: 111556 | J16: 354461
D17: Legal & Advisory Fees | E17: 0 | F17: 15000 | G17: 0 | H17: 0 | I17: 0 | J17: 15000
D18: Debt Service Reserve | E18: 0 | F18: 0 | G18: 0 | H18: 0 | I18: 80865 | J18: 80865
D19: Excess Cash Balance | E19: 0 | F19: 47213 | G19: 0 | H19: 0 | I19: 195 | J19: 47408
D20: Total Uses | E20: 79035 | F20: 752341 | G20: 875789 | H20: 402353 | I20: 315155 | J20: 2424673
D22: SOURCES
D23: Total Project Debt | E23: 0 | F23: 1000000 | G23: 24299 | H23: 242981 | I23: 182720 | J23: 1450000
D25: Shareholder Funds
D26: Initial Paid in Capital | E26: 79035 | F26: 0 | G26: 0 | H26: 0 | I26: 0 | J26: 79035
D27: Additional Paid-in Capital | E27: 0 | F27: 1986 | G27: 550148 | H27: -1576 | I27: -185047 | J27: 365511
D28: Operating Cash Flowb | E28: 0 | F28: 47213 | G28: 4484 | H28: 160948 | I28: 317481 | J28: 530126
D29: Total Shareholder Funds | E29: 79035 | F29: 49199 | G29: 554632 | H29: 159373 | I29: 132434 | J29: 974673
D31: Total Sources | E31: 79035 | F31: 1049199 | G31: 578931 | H31: 402353 | I31: 315155 | J31: 2424673
D33: Uses Less Operating Cash Flow | E33: =E20-E28 -> 79035 | F33: =F20-F28 -> 705128 | G33: 871305 | H33: 241405 | I33: -2326 | J33: 1894547
D34: Debt and Equity Funding | E34: =E26+E27+E23 -> 79035 | F34: =F26+F27+F23 -> 1001986 | G34: 574447 | H34: 241405 | I34: -2327 | J34: 1894546
D35: Difference | E35: =E33-E34 -> 0 | F35: =F33-F34 -> -296858 | G35: 296858 | H35: 0 | I35: 1 | J35: 1
D37: Sources Check | E37: =E29+E23 -> 79035 | F37: =F29+F23 -> 1049199 | G37: 578931 | H37: 402354 | I37: 315154 | J37: 2424673
D38: Sources Less Operating CF | E38: =E37-E28 -> 79035 | F38: =F37-F28 -> 1001986 | G38: 574447 | H38: 241406 | I38: -2327 | J38: 1894547
E41: =E20-E31 -> 0 | F41: =F20-F31 -> -296858 | G41: =G20-G31 -> 296858 | H41: 0 | I41: 0 | J41: 0
E42: =E35-E41 -> 0 | F42: =F35-F41 -> 0 | G42: =G35-G41 -> 0 | H42: 0 | I42: 1 | J42: 1
E44: =E26+E27 -> 79035 | F44: =F26+F27 -> 1986 | G44: =G26+G27 -> 550148 | H44: -1576 | I44: -185047 | J44: 444546
D45: Crude Oil Production | E45: =E23-E28 -> 0 | F45: =F23-F28 -> 952787 | G45: =G23-G28 -> 19815 | H45: =H23-H28 -> 82033 | I45: =I23-I28 -> -134761
D46: Crude Oil Pipeline
D47: Upgrader & Loading Facility
D48: Upstream Contingency
D53: Source: Petrozuata Planning Documents.
D55: aIncludes a $139 million contingency.
D56: bIncludes interest income.

Sheet Exhibit10
D1: Exhibit 10a Petrozuata Equity Cash Flow Projections (U.S. dollars in thousands)
K4: Cash | M4: Cash Used
E5: Forecast | K5: Available | M5: for Debt | AJ5: =Exhibit7!J20-Exhibit7!J19-Exhibit7!J18 -> 2296400
E6: Price of | J6: Implied | K6: for Debt | M6: Service | AH6: Other | AJ6: 35 | AY6: Debt | AZ6: Debt | BA6: Total | BB6: Opening | BC6: Debt | BD6: Debt | BE6: Closing | BF6: Interest | BG6: IDC | BH6: Total | BI6: Interest | BJ6: Debt | BK6: Repayment
E7: Maya | F7: Implied | G7: Total | H7: O&M Taxes | I7: EBITDA | J7: Cost | K7: Service | L7: Total Debt | M7: Reserve | N7: Equity Cash Flows | AD7: Total Expense | AF7: Revenues | AG7: Royalty | AH7: Cash | AI7: EBITDA | AJ7: Depreciation | AK7: EBIT | AL7: Interest | AM7: EBT | AN7: Taxes | AO7: Total | AP7: Target | AR7: Cash | AS7: Inflation | AT7: Real | AU7: Total Debt | AV7: Draw | AW7: Repayment | AX7: Repay | AY7: Service | AZ7: Draw | BA7: Cash Flow | BB7: Debt | BC7: Draw | BD7: Repayment | BE7: Debt | BH7: Interest | BI7: Rate | BJ7: Cash Flow | BK7: Percent
D8: Year | E8: Crude | F8: Production | G8: Revenue | H8: And Other | I8: Less Tax | J8: per BBL | K8: (CADS) | L8: Service | M8: Account | N8: Dividends | O8: Investment | P8: Total Debt | AG8: 0.01 | AH8: Expense | AN8: 0.34 | AO8: expense | AP8: Expense | AQ8: Difference | AR8: Expense | AS8: Index | AT8: Expense | AX8: Percent | BA8: IRR | BJ8: =IRR(BJ12:BJ37) -> 0.09203178998
E9: USD/BBL | F9: BBL 000's | G9: USD 000's | H9: USD 000's | I9: USD 000's | J9: USD/BBL | K9: USD 000's | L9: USD 000's | M9: USD 000's | N9: USD 000's | O9: USD 000's | P9: USD 000's | AS9: 0.03 | BA9: =IRR(BA12:BA36) -> 0.09101509803
D11: 1996 | E11: 12.25 | G11: 0 | K11: 0 | O11: -79035 | P11: 0 | AD11: =H11 -> 0 | AK11: =AI11 -> 0 | AL11: =BF11 -> 0 | AM11: =AK11-AL11 -> 0 | AN11: =$AN$8*AM11 -> 0 | BK11: =BD11/$BE$15 -> 0
D12: 1997 | E12: 12.56 | G12: 0 | K12: 47213 | O12: -1986 | P12: 1000000 | AD12: 0 | AG12: =G12*$AG$8 -> 0 | AK12: =AI12 -> 0 | AL12: =BF12 -> 0 | AM12: =AK12-AL12 -> 0 | AN12: =$AN$8*AM12 -> 0 | AO12: =AH12+AG12+AN12 -> 0 | AP12: =H12 -> 0 | AR12: =AH12 -> 0 | AS12: 1 | AT12: =AR12/AS12 -> 0 | AU12: =P12 -> 1000000 | AV12: =AU12-AV11 -> 1000000 | AY12: =L12 -> 0 | AZ12: =AU11-AU12 -> -1000000 | BA12: =AY12+AZ12+BG12 -> -938866 | BB12: =BE11 -> 0 | BC12: =-AZ12 -> 1000000 | BE12: =BB12+BC12-BD12 -> 1000000 | BG12: =TRANSPOSE(Exhibit7!F16:I16) -> 61134 | BH12: =BG12+BF12 -> 61134 | BI12: =BH12/AVERAGE(BE12,BB12) -> 0.122268 | BJ12: =AZ12+BF12+BG12+BD12 -> -938866 | BK12: =BD12/$BE$15 -> 0
D13: 1998 | E13: 12.87 | F13: 6101.320901 | G13: =E13*F13 -> 78524 | H13: 74040 | I13: =G13-H13 -> 4484 | J13: =H13/F13 -> 12.13507717 | K13: =G13-H13 -> 4484 | O13: -550148 | P13: 1024299 | AD13: 74040 | AF13: =G13 -> 78524 | AG13: =$AG$8*AF13 -> 785.24 | AH13: 70944.82061 | AI13: =AF13-AG13-AH13 -> 6793.939394 | AK13: 6793.939394 | AL13: 0 | AM13: 6793.939394 | AN13: 2309.939394 | AO13: =AH13+AG13+AN13 -> 74040 | AP13: 74040 | AQ13: =AO13-AP13 -> 0 | AR13: =AH13 -> 70944.82061 | AS13: =AS12*(1+$AS$9) -> 1.03 | AT13: =AR13/AS13 -> 68878.46661 | AU13: 1024299 | AV13: =AU13-AV12 -> 24299 | AY13: 0 | AZ13: =AU12-AU13 -> -24299 | BA13: 62517 | BB13: =BE12 -> 1000000 | BC13: =-AZ13 -> 24299 | BE13: =BB13+BC13-BD13 -> 1024299 | BG13: 86816 | BH13: =BG13+BF13 -> 86816 | BI13: =BH13/AVERAGE(BE13,BB13) -> 0.08577389012 | BJ13: =AZ13+BF13+BG13+BD13 -> 62517 | BK13: =BD13/$BE$15 -> 0
D14: 1999 | E14: 13.19 | F14: 32529.11296 | G14: =E14*F14 -> 429059 | H14: 268111 | I14: =G14-H14 -> 160948 | J14: 8.242186016 | K14: 160948 | N14: 1576 | P14: 1267280 | AD14: 268111 | AF14: 429059 | AG14: 4290.59 | AH14: 180907.8039 | AI14: =AF14-AG14-AH14 -> 243860.6061 | AK14: 243860.6061 | AL14: 0 | AM14: 243860.6061 | AN14: 82912.60606 | AO14: 268111 | AP14: 268111 | AQ14: =AO14-AP14 -> 0 | AR14: 180907.8039 | AS14: =AS13*(1+$AS$9) -> 1.0609 | AT14: 170522.9559 | AU14: 1267280 | AV14: 1242981 | AY14: 0 | AZ14: -242981 | BA14: -148026 | BB14: 1024299 | BC14: 242981 | BE14: 1267280 | BG14: 94955 | BH14: 94955 | BI14: 0.08287298845 | BJ14: -148026 | BK14: 0
D15: 2000 | E15: 13.52 | F15: 59475.44379 | G15: 804108 | H15: 486627 | I15: 317481 | J15: 8.181981823 | K15: 317481 | M15: -80865 | N15: 185047 | P15: 1450000 | AD15: 486627 | AF15: 804108 | AG15: 8041.08 | AH15: 315035.1018 | AI15: 481031.8182 | AJ15: =AJ5/$AJ$6 -> 65611.42857 | AK15: 481031.8182 | AL15: 0 | AM15: 481031.8182 | AN15: 163550.8182 | AO15: 486627 | AP15: 486627 | AQ15: 3.958120942e-09 | AR15: 315035.1018 | AS15: 1.092727 | AT15: 288301.7458 | AU15: 1450000 | AV15: 207019 | AY15: 0 | AZ15: -182720 | BA15: -71164 | BB15: 1267280 | BC15: 182720 | BE15: 1450000 | BG15: 111556 | BH15: 111556 | BI15: 0.08210857917 | BJ15: -71164 | BK15: 0
D16: 2001 | E16: 13.86 | F16: 41064.64646 | G16: 569156 | H16: 184391 | I16: 384765 | J16: 4.490261475 | K16: 384765 | L16: 160922 | M16: 1614 | N16: 225457 | P16: 1411111 | AD16: 184391 | AF16: 569156 | AG16: 5691.56 | AH16: 43352.65212 | AI16: 520111.7879 | AJ16: =AJ15 -> 65611.42857 | AK16: 520111.7879 | AL16: 122033 | AM16: 398078.7879 | AN16: 135346.7879 | AO16: 184391 | AP16: 184391 | AQ16: -4.656612873e-10 | AR16: 43352.65212 | AS16: 1.12550881 | AT16: 38518.2699 | AU16: 1411111 | AW16: =AU16-AU15 -> -38889 | AX16: =-AW16/$AU$15 -> 0.02682 | AY16: 160922 | BA16: 160922 | BB16: 1450000 | BD16: =-AW16 -> 38889 | BE16: 1411111 | BF16: =AY16-BD16 -> 122033 | BH16: 122033 | BI16: 0.08530462467 | BJ16: 160922 | BK16: 0.02682
D17: 2002 | E17: 14.21 | F17: 41069.45813 | G17: 583597 | H17: 194443 | I17: 389154 | J17: 4.73449149 | K17: 389154 | L17: 157694 | M17: 1614 | N17: 233074 | P17: 1372222 | AD17: 194443 | AF17: 583597 | AG17: 5835.97 | AH17: 49336.38237 | AI17: 528424.6476 | AJ17: =AJ16 -> 65611.42857 | AK17: 528424.6476 | AL17: 118805 | AM17: 409619.6476 | AN17: 139270.6802 | AO17: 194443.0326 | AP17: 194443 | AQ17: 0.03256197978 | AR17: 49336.38237 | AS17: 1.159274074 | AT17: 42557.99682 | AU17: 1372222 | AW17: =AU17-AU16 -> -38889 | AX17: =-AW17/$AU$15 -> 0.02682 | AY17: 157694 | BA17: 157694 | BB17: 1411111 | BD17: =-AW17 -> 38889 | BE17: 1372222 | BF17: =AY17-BD17 -> 118805 | BH17: 118805 | BI17: 0.0853688725 | BJ17: 157694 | BK17: 0.02682
D18: 2003 | E18: 14.56 | F18: 41098.76374 | G18: 598398 | H18: 231823 | I18: 366575 | J18: 5.640631954 | K18: 366575 | L18: 154466 | M18: -11509 | N18: 200600 | P18: 1333333 | AD18: 231823 | AF18: 598398 | AG18: 5983.98 | AH18: 96537.11654 | AI18: 495876.9035 | AJ18: 65611.42857 | AK18: 495876.9035 | AL18: 115577 | AM18: 380299.9035 | AN18: 129301.9672 | AO18: 231823.0637 | AP18: 231823 | AQ18: 0.0637144332 | AR18: 96537.11654 | AS18: 1.194052297 | AT18: 80848.31529 | AU18: 1333333 | AW18: -38889 | AX18: 0.02682 | AY18: 154466 | BA18: 154466 | BB18: 1372222 | BD18: 38889 | BE18: 1333333 | BF18: 115577 | BH18: 115577 | BI18: 0.08543681426 | BJ18: 154466 | BK18: 0.02682
D19: 2004 | E19: 14.93 | F19: 41096.31614 | G19: 613568 | H19: 212016 | I19: 401552 | J19: 5.159002556 | K19: 401552 | L19: 176949 | M19: -5700 | N19: 218903 | P19: 1268856 | AD19: 212016 | AF19: 613568 | AG19: 6135.68 | AH19: 56960.37696 | AI19: 550471.943 | AJ19: 65611.42857 | AK19: 550471.943 | AL19: 112472 | AM19: 437999.943 | AN19: 148919.9806 | AO19: 212016.0376 | AP19: 212016 | AQ19: 0.0375938112 | AR19: 56960.37696 | AS19: 1.229873865 | AT19: 46313.99899 | AU19: 1268856 | AW19: -64477 | AX19: 0.04446689655 | AY19: 176949 | BA19: 176949 | BB19: 1333333 | BD19: 64477 | BE19: 1268856 | BF19: 112472 | BH19: 112472 | BI19: 0.08644414376 | BJ19: 176949 | BK19: 0.04446689655
D20: 2005 | E20: 15.3 | F20: 41118.75817 | G20: 629117 | H20: 230906 | I20: 398211 | J20: 5.61558788 | K20: 398211 | L20: 188009 | M20: -6345 | N20: 203857 | P20: 1187614 | AD20: 230906 | AF20: 629117 | AG20: 6291.17 | AH20: 74477.0863 | AI20: 548348.7437 | AJ20: 65611.42857 | AK20: 548348.7437 | AL20: 106767 | AM20: 441581.7437 | AN20: 150137.7929 | AO20: 230906.0492 | AP20: 230906 | AQ20: 0.04915482778 | AR20: 74477.0863 | AS20: 1.266770081 | AT20: 58792.89967 | AU20: 1187614 | AW20: -81242 | AX20: 0.05602896552 | AY20: 188009 | BA20: 188009 | BB20: 1268856 | BD20: 81242 | BE20: 1187614 | BF20: 106767 | BH20: 106767 | BI20: 0.08692717599 | BJ20: 188009 | BK20: 0.05602896552
D21: 2006 | E21: 15.68 | F21: 41138.52041 | G21: 645052 | H21: 211575 | I21: 433477 | J21: 5.142990023 | K21: 433477 | L21: 200307 | M21: -550 | N21: 232620 | P21: 1086961 | AD21: 211575 | AF21: 645052 | AG21: 6450.52 | AH21: 33155.08891 | AI21: 605446.3911 | AJ21: 65611.42857 | AK21: 605446.3911 | AL21: 99654 | AM21: 505792.3911 | AN21: 171969.413 | AO21: 211575.0219 | AP21: 211575 | AQ21: 0.02188233679 | AR21: 33155.08891 | AS21: 1.304773184 | AT21: 25410.6149 | AU21: 1086961 | AW21: -100653 | AX21: 0.06941586207 | AY21: 200307 | BA21: 200307 | BB21: 1187614 | BD21: 100653 | BE21: 1086961 | BF21: 99654 | BH21: 99654 | BI21: 0.08762428146 | BJ21: 200307 | BK21: 0.06941586207
D22: 2007 | E22: 16.07 | F22: 41156.56503 | G22: 661386 | H22: 226119 | I22: 435267 | J22: 5.494117399 | K22: 435267 | L22: 201204 | M22: -4671 | N22: 229393 | P22: 977484 | AD22: 226119 | AF22: 661386 | AG22: 6613.86 | AH22: 42530.03101 | AI22: 612242.109 | AJ22: 65611.42857 | AK22: 612242.109 | AL22: 91727 | AM22: 520515.109 | AN22: 176975.1371 | AO22: 226119.0281 | AP22: 226119 | AQ22: 0.02806979237 | AR22: 42530.03101 | AS22: 1.343916379 | AT22: 31646.33728 | AU22: 977484 | AW22: -109477 | AX22: 0.07550137931 | AY22: 201204 | BA22: 201204 | BB22: 1086961 | BD22: 109477 | BE22: 977484 | BF22: 91727 | BH22: 91727 | BI22: 0.08886359288 | BJ22: 201204 | BK22: 0.07550137931
D23: 2008 | E23: 16.47 | F23: 41173.40619 | G23: 678126 | H23: 240008 | I23: 438118 | J23: 5.829199529 | K23: 438118 | L23: 210153 | M23: 10623 | N23: 238588 | P23: 849556 | AD23: 240008 | AF23: 678126 | AG23: 6781.26 | AH23: 49887.92182 | AI23: 621456.8182 | AJ23: 65611.42857 | AK23: 621456.8182 | AL23: 82225 | AM23: 539231.8182 | AN23: 183338.8182 | AO23: 240008 | AP23: 240008 | AQ23: 3.20142135e-10 | AR23: 49887.92182 | AS23: 1.384233871 | AT23: 36040.09617 | AU23: 849556 | AW23: -127928 | AX23: 0.0882262069 | AY23: 210153 | BA23: 210153 | BB23: 977484 | BD23: 127928 | BE23: 849556 | BF23: 82225 | BH23: 82225 | BI23: 0.09000897627 | BJ23: 210153 | BK23: 0.0882262069
D24: 2009 | E24: 16.89 | F24: 41165.36412 | G24: 695283 | H24: 322101 | I24: 373182 | J24: 7.824563365 | K24: 373182 | L24: 166148 | M24: 19595 | N24: 226629 | P24: 755137 | AD24: 322101 | AF24: 695283 | AG24: 6952.83 | AH24: 159854.2003 | AI24: 528475.9697 | AJ24: 65611.42857 | AK24: 528475.9697 | AL24: 71729 | AM24: 456746.9697 | AN24: 155293.9697 | AO24: 322101 | AP24: 322101 | AQ24: 9.895302355e-10 | AR24: 159854.2003 | AS24: 1.425760887 | AT24: 112118.5199 | AU24: 755137 | AW24: -94419 | AX24: 0.06511655172 | AY24: 166148 | BA24: 166148 | BB24: 849556 | BD24: 94419 | BE24: 755137 | BF24: 71729 | BH24: 71729 | BI24: 0.08939903147 | BJ24: 166148 | BK24: 0.06511655172
D25: 2010 | E25: 17.31 | F25: 41182.49567 | G25: 712869 | H25: 341400 | I25: 371469 | J25: 8.289929847 | K25: 371469 | L25: 150455 | M25: -4135 | N25: 216878 | P25: 669137 | AD25: 341400 | AF25: 712869 | AG25: 7128.69 | AH25: 176112.7588 | AI25: 529627.5512 | AJ25: 65611.42857 | AK25: 529627.5512 | AL25: 64455 | AM25: 465172.5512 | AN25: 158158.6674 | AO25: 341400.1162 | AP25: 341400 | AQ25: 0.1162343046 | AR25: 176112.7588 | AS25: 1.468533713 | AT25: 119924.2191 | AU25: 669137 | AW25: -86000 | AX25: 0.05931034483 | AY25: 150455 | BA25: 150455 | BB25: 755137 | BD25: 86000 | BE25: 669137 | BF25: 64455 | BH25: 64455 | BI25: 0.09050926999 | BJ25: 150455 | BK25: 0.05931034483
D26: 2011 | E26: 17.74 | F26: 41200.22548 | G26: 730892 | H26: 352421 | I26: 378471 | J26: 8.553860953 | K26: 378471 | L26: 158377 | M26: -3438 | N26: 216655 | P26: 567137 | AD26: 352421 | AF26: 730892 | AG26: 7308.92 | AH26: 179185.0471 | AI26: 544398.0329 | AJ26: 65611.42857 | AK26: 544398.0329 | AL26: 56377 | AM26: 488021.0329 | AN26: 165927.1512 | AO26: 352421.1183 | AP26: 352421 | AQ26: 0.1182620128 | AR26: 179185.0471 | AS26: 1.512589725 | AT26: 118462.4252 | AU26: 567137 | AW26: -102000 | AX26: 0.07034482759 | AY26: 158377 | BA26: 158377 | BB26: 669137 | BD26: 102000 | BE26: 567137 | BF26: 56377 | BH26: 56377 | BI26: 0.09120470058 | BJ26: 158377 | BK26: 0.07034482759
D27: 2012 | E27: 18.19 | F27: 41196.53656 | G27: 749365 | H27: 361937 | I27: 387428 | J27: 8.785617196 | K27: 387428 | L27: 164964 | M27: 40417 | N27: 262881 | P27: 449137 | AD27: 361937 | AF27: 749365 | AG27: 7493.65 | AH27: 179052.9836 | AI27: 562818.3664 | AJ27: 65611.42857 | AK27: 562818.3664 | AL27: 46964 | AM27: 515854.3664 | AN27: 175390.4846 | AO27: 361937.1182 | AP27: 361937 | AQ27: 0.1181748509 | AR27: 179052.9836 | AS27: 1.557967417 | AT27: 114927.2967 | AU27: 449137 | AW27: -118000 | AX27: 0.08137931034 | AY27: 164964 | BA27: 164964 | BB27: 567137 | BD27: 118000 | BE27: 449137 | BF27: 46964 | BH27: 46964 | BI27: 0.09242389356 | BJ27: 164964 | BK27: 0.08137931034
D28: 2013 | E28: 18.64 | F28: 41217.75751 | G28: 768299 | H28: 439321 | I28: 328978 | J28: 10.65853716 | K28: 328978 | L28: 85668 | M28: -933 | N28: 242378 | P28: 401689 | AD28: 439321 | AF28: 768299 | AG28: 7682.99 | AH28: 281853.5858 | AI28: 478762.4242 | AJ28: 65611.42857 | AK28: 478762.4242 | AL28: 38220 | AM28: 440542.4242 | AN28: 149784.4242 | AO28: 439321 | AP28: 439321 | AQ28: 0 | AR28: 281853.5858 | AS28: 1.604706439 | AT28: 175641.8363 | AU28: 401689 | AW28: -47448 | AX28: 0.03272275862 | AY28: 85668 | BA28: 85668 | BB28: 449137 | BD28: 47448 | BE28: 401689 | BF28: 38220 | BH28: 38220 | BI28: 0.08984210638 | BJ28: 85668 | BK28: 0.03272275862
D29: 2014 | E29: 18.64 | F29: 41244.5279 | G29: 768798 | H29: 410357 | I29: 358441 | J29: 9.949368339 | K29: 358441 | L29: 87403 | M29: -19051 | N29: 251988 | P29: 348241 | AD29: 410357 | AF29: 768798 | AG29: 7687.98 | AH29: 235509.5655 | AI29: 525600.4545 | AJ29: 65611.42857 | AK29: 525600.4545 | AL29: 33955 | AM29: 491645.4545 | AN29: 167159.4545 | AO29: 410357 | AP29: 410357 | AQ29: -1.862645149e-09 | AR29: 235509.5655 | AS29: 1.652847632 | AT29: 142487.1603 | AU29: 348241 | AW29: -53448 | AX29: 0.03686068966 | AY29: 87403 | BA29: 87403 | BB29: 401689 | BD29: 53448 | BE29: 348241 | BF29: 33955 | BH29: 33955 | BI29: 0.09055511848 | BJ29: 87403 | BK29: 0.03686068966
D30: 2015 | E30: 18.64 | F30: 41271.94206 | G30: 769309 | H30: 377764 | I30: 391545 | J30: 9.153046383 | K30: 391545 | L30: 124573 | M30: -6498 | N30: 260474 | P30: 252034 | AD30: 377764 | AF30: 769309 | AG30: 7693.09 | AH30: 182978.6979 | AI30: 578637.2121 | AJ30: 65611.42857 | AK30: 578637.2121 | AL30: 28366 | AM30: 550271.2121 | AN30: 187092.2121 | AO30: 377764 | AP30: 377764 | AQ30: -4.714820534e-09 | AR30: 182978.6979 | AS30: 1.702433061 | AT30: 107480.7004 | AU30: 252034 | AW30: -96207 | AX30: 0.06634965517 | AY30: 124573 | BA30: 124573 | BB30: 348241 | BD30: 96207 | BE30: 252034 | BF30: 28366 | BH30: 28366 | BI30: 0.09451001624 | BJ30: 124573 | BK30: 0.06634965517
D31: 2016 | E31: 18.64 | F31: 41299.94635 | G31: 769831 | H31: 386303 | I31: 383528 | J31: 9.353595685 | K31: 383528 | L31: 137103 | M31: 4468 | N31: 250893 | P31: 134448 | AD31: 386303 | AF31: 769831 | AG31: 7698.31 | AH31: 191083.8718 | AI31: 571048.8182 | AJ31: 65611.42857 | AK31: 571048.8182 | AL31: 19517 | AM31: 551531.8182 | AN31: 187520.8182 | AO31: 386303 | AP31: 386303 | AQ31: -3.376044333e-09 | AR31: 191083.8718 | AS31: 1.753506053 | AT31: 108972.462 | AU31: 134448 | AW31: -117586 | AX31: 0.0810937931 | AY31: 137103 | BA31: 137103 | BB31: 252034 | BD31: 117586 | BE31: 134448 | BF31: 19517 | BH31: 19517 | BI31: 0.1009982354 | BJ31: 137103 | BK31: 0.0810937931
D32: 2017 | E32: 18.64 | F32: 41328.59442 | G32: 770365 | H32: 387497 | I32: 382868 | J32: 9.376002388 | K32: 382868 | L32: 68691 | M32: 62038 | N32: 376215 | P32: 75000 | AD32: 387497 | AF32: 770365 | AG32: 7703.65 | AH32: 187319.8652 | AI32: 575341.4848 | AJ32: 65611.42857 | AK32: 575341.4848 | AL32: 9243 | AM32: 566098.4848 | AN32: 192473.4848 | AO32: 387497 | AP32: 387497 | AQ32: -3.143213689e-09 | AR32: 187319.8652 | AS32: 1.806111235 | AT32: 103714.4676 | AU32: 75000 | AW32: -59448 | AX32: 0.04099862069 | AY32: 68691 | BA32: 68691 | BB32: 134448 | BD32: 59448 | BE32: 75000 | BF32: 9243 | BH32: 9243 | BI32: 0.08826057064 | BJ32: 68691 | BK32: 0.04099862069
D33: 2018 | E33: 18.64 | F33: 41357.88627 | G33: 770911 | H33: 443380 | I33: 327531 | J33: 10.72056723 | K33: 327531 | L33: 6653 | M33: 0 | N33: 320878 | P33: 75000 | AD33: 443380 | AF33: 770911 | AG33: 7709.11 | AH33: 270370.3725 | AI33: 492831.5175 | AJ33: 65611.42857 | AK33: 492831.5175 | AL33: 6653 | AM33: 486178.5175 | AN33: 165300.696 | AO33: 443380.1784 | AP33: 443380 | AQ33: 0.1784442674 | AR33: 270370.3725 | AS33: 1.860294572 | AT33: 145337.398 | AU33: 75000 | AW33: 0 | AX33: 0 | AY33: 6653 | BA33: 6653 | BB33: 75000 | BD33: 0 | BE33: 75000 | BF33: 6653 | BH33: 6653 | BI33: 0.08870666667 | BJ33: 6653 | BK33: 0
D34: 2019 | E34: 18.64 | F34: 41387.76824 | G34: 771468 | H34: 463444 | I34: 308024 | J34: 11.19760789 | K34: 308024 | L34: 6653 | M34: 0 | N34: 301370 | P34: 75000 | AD34: 463444 | AF34: 771468 | AG34: 7714.68 | AH34: 300477.5927 | AI34: 463275.7273 | AJ34: 65611.42857 | AK34: 463275.7273 | AL34: 6653 | AM34: 456622.7273 | AN34: 155251.7273 | AO34: 463444 | AP34: 463444 | AQ34: 6.461050361e-09 | AR34: 300477.5927 | AS34: 1.916103409 | AT34: 156817.0023 | AU34: 75000 | AW34: 0 | AX34: 0 | AY34: 6653 | BA34: 6653 | BB34: 75000 | BD34: 0 | BE34: 75000 | BF34: 6653 | BH34: 6653 | BI34: 0.08870666667 | BJ34: 6653 | BK34: 0
D35: 2020 | E35: 18.64 | F35: 41945.22532 | G35: 781859 | H35: 498808 | I35: 283051 | J35: 11.89188987 | K35: 283051 | L35: 6653 | M35: 0 | N35: 276398 | P35: 75000 | AD35: 498808 | AF35: 781859 | AG35: 7818.59 | AH35: 348602.9101 | AI35: 425437.4999 | AJ35: 65611.42857 | AK35: 425437.4999 | AL35: 6653 | AM35: 418784.4999 | AN35: 142386.73 | AO35: 498808.2301 | AP35: 498808 | AQ35: 0.2300776906 | AR35: 348602.9101 | AS35: 1.973586511 | AT35: 176634.218 | AU35: 75000 | AW35: 0 | AX35: 0 | AY35: 6653 | BA35: 6653 | BB35: 75000 | BD35: 0 | BE35: 75000 | BF35: 6653 | BH35: 6653 | BI35: 0.08870666667 | BJ35: 6653 | BK35: 0
D36: 2021 | E36: 18.64 | F36: 41976.4485 | G36: 782441 | H36: 482977 | I36: 299464 | J36: 11.50590432 | K36: 299464 | L36: 6653 | M36: 0 | N36: 292810 | P36: 75000 | AD36: 482977 | AF36: 782441 | AG36: 7824.41 | AH36: 324310.5597 | AI36: 450306.0303 | AJ36: 65611.42857 | AK36: 450306.0303 | AL36: 6653 | AM36: 443653.0303 | AN36: 150842.0303 | AO36: 482977 | AP36: 482977 | AQ36: 5.820766091e-10 | AR36: 324310.5597 | AS36: 2.032794106 | AT36: 159539.3054 | AU36: 75000 | AW36: 0 | AX36: 0 | AY36: 6653 | BA36: 6653 | BB36: 75000 | BD36: 0 | BE36: 75000 | BF36: 6653 | BH36: 6653 | BI36: 0.08870666667 | BJ36: 6653 | BK36: 0
D37: 2022 | E37: 18.64 | F37: 42008.3691 | G37: 783036 | H37: 487482 | I37: 295554 | J37: 11.60440194 | K37: 295554 | L37: 81653 | M37: 3327 | N37: 217227 | P37: 0 | AD37: 487482 | AF37: 783036 | AG37: 7830.36 | AH37: 330823.8521 | AI37: 444381.7879 | AJ37: 65611.42857 | AK37: 444381.7879 | AL37: 6653 | AM37: 437728.7879 | AN37: 148827.7879 | AO37: 487482 | AP37: 487482 | AQ37: -5.76255843e-09 | AR37: 330823.8521 | AS37: 2.09377793 | AT37: 158003.3142 | AU37: 0 | AW37: -75000 | AX37: 0.05172413793 | AY37: 81653 | BA37: 81653 | BB37: =BE36 -> 75000 | BD37: =-AW37 -> 75000 | BE37: =BB37+BC37-BD37 -> 0 | BF37: 6653 | BH37: 6653 | BI37: 0.1774133333 | BJ37: 81653 | BK37: 0.05172413793
D38: 2023 | E38: 18.64 | F38: 42040.98712 | G38: 783644 | H38: 489066 | I38: 294578 | J38: 11.63307604 | K38: 294578 | L38: 0 | M38: 0 | N38: 294578 | AD38: 489066 | AF38: 783644 | AG38: 7836.44 | AH38: 329477.257 | AI38: 446330.303 | AJ38: 65611.42857 | AK38: 446330.303 | AL38: 0 | AM38: 446330.303 | AN38: 151752.303 | AO38: 489066 | AP38: 489066 | AQ38: 0 | AR38: 329477.257 | AS38: 2.156591268 | AT38: 152776.8669
D39: 2024 | E39: 18.64 | F39: 42074.35622 | G39: 784266 | H39: 494610 | I39: 289656 | J39: 11.75561659 | K39: 289656 | N39: 289656 | AD39: 494610 | AF39: 784266 | AG39: 7842.66 | AH39: 337550.6127 | AI39: 438872.7273 | AJ39: 65611.42857 | AK39: 438872.7273 | AL39: 0 | AM39: 438872.7273 | AN39: 149216.7273 | AO39: 494610 | AP39: 494610 | AQ39: 0 | AR39: 337550.6127 | AS39: 2.221289006 | AT39: 151961.5916
D40: 2025 | E40: 18.64 | F40: 42108.42275 | G40: 784901 | H40: 495196 | I40: 289705 | J40: 11.76002253 | K40: 289705 | N40: 289705 | AD40: 495196 | AF40: 784901 | AG40: 7849.01 | AH40: 338105.0203 | AI40: 438946.9697 | AJ40: 65611.42857 | AK40: 438946.9697 | AL40: 0 | AM40: 438946.9697 | AN40: 149241.9697 | AO40: 495196 | AP40: 495196 | AQ40: -3.783497959e-09 | AR40: 338105.0203 | AS40: 2.287927676 | AT40: 147777.8445
D41: 2026 | E41: 18.64 | F41: 42143.24034 | G41: 785550 | H41: 507476 | I41: 278074 | J41: 12.0416939 | K41: 278074 | N41: 278074 | AD41: 507476 | AF41: 785550 | AG41: 7855.5 | AH41: 356370.6139 | AI41: 421323.8861 | AJ41: 65611.42857 | AK41: 421323.8861 | AL41: 0 | AM41: 421323.8861 | AN41: 143250.1213 | AO41: 507476.2352 | AP41: 507476 | AQ41: 0.23520437 | AR41: 356370.6139 | AS41: 2.356565506 | AT41: 151224.5737
D42: 2027 | E42: 18.64 | F42: 42178.86266 | G42: 786214 | H42: 509408 | I42: 276806 | J42: 12.07732897 | K42: 276806 | N42: 276806 | AD42: 509408 | AF42: 786214 | AG42: 7862.14 | AH42: 358949.1886 | AI42: 419402.6714 | AJ42: 65611.42857 | AK42: 419402.6714 | AL42: 0 | AM42: 419402.6714 | AN42: 142596.9083 | AO42: 509408.2369 | AP42: 509408 | AQ42: 0.2369062276 | AR42: 358949.1886 | AS42: 2.427262471 | AT42: 147882.3131
D43: 2028 | E43: 18.64 | F43: 42215.1824 | G43: 786891 | H43: 512442 | I43: 274449 | J43: 12.13880814 | K43: 274449 | N43: 274449 | AD43: 512442 | AF43: 786891 | AG43: 7868.91 | AH43: 363190.635 | AI43: 415831.455 | AJ43: 65611.42857 | AK43: 415831.455 | AL43: 0 | AM43: 415831.455 | AN43: 141382.6947 | AO43: 512442.2397 | AP43: 512442 | AQ43: 0.2397055794 | AR43: 363190.635 | AS43: 2.500080345 | AT43: 145271.5852
D44: 2029 | E44: 18.64 | F44: 42252.36052 | G44: 787584 | H44: 523980 | I44: 263604 | J44: 12.40120063 | K44: 263604 | N44: 263604 | AD44: 523980 | AF44: 787584 | AG44: 7875.84 | AH44: 380308.16 | AI44: 399400 | AJ44: 65611.42857 | AK44: 399400 | AL44: 0 | AM44: 399400 | AN44: 135796 | AO44: 523980 | AP44: 523980 | AQ44: -1.0128133e-08 | AR44: 380308.16 | AS44: 2.575082756 | AT44: 147687.7429
D45: 2030 | E45: 18.64 | F45: 42290.2897 | G45: 788291 | H45: 540751 | I45: 247540 | J45: 12.78664686 | K45: 247540 | N45: 247540 | AD45: 540751 | AF45: 788291 | AG45: 7882.91 | AH45: 405347.4839 | AI45: 375060.6061 | AJ45: 65611.42857 | AK45: 375060.6061 | AL45: 0 | AM45: 375060.6061 | AN45: 127520.6061 | AO45: 540751 | AP45: 540751 | AQ45: 2.211891115e-09 | AR45: 405347.4839 | AS45: 2.652335238 | AT45: 152826.6405
D46: 2031 | E46: 18.64 | F46: 42329.07725 | G46: 789014 | H46: 538685 | I46: 250329 | J46: 12.72612197 | K46: 250329 | N46: 250329 | AD46: 538685 | AF46: 789014 | AG46: 7890.14 | AH46: 401837.4964 | AI46: 379286.3636 | AJ46: 65611.42857 | AK46: 379286.3636 | AL46: 0 | AM46: 379286.3636 | AN46: 128957.3636 | AO46: 538685 | AP46: 538685 | AQ46: 1.152511686e-08 | AR46: 401837.4964 | AS46: 2.731905296 | AT46: 147090.5661
D47: 2032 | E47: 18.64 | F47: 42368.72318 | G47: 789753 | H47: 546816 | I47: 242937 | J47: 12.90612412 | K47: 242937 | N47: 242937 | AD47: 546816 | AF47: 789753 | AG47: 7897.53 | AH47: 413769.5201 | AI47: 368085.9499 | AJ47: 65611.42857 | AK47: 368085.9499 | AL47: 0 | AM47: 368085.9499 | AN47: 125149.223 | AO47: 546816.2731 | AP47: 546816 | AQ47: 0.2730876101 | AR47: 413769.5201 | AS47: 2.813862454 | AT47: 147046.818
D48: 2033 | E48: 18.64 | F48: 42409.22747 | G48: 790508 | H48: 549864 | I48: 240644 | J48: 12.96566886 | K48: 240644 | N48: 240644 | AD48: 549864 | AF48: 790508 | AG48: 7905.08 | AH48: 417991.2168 | AI48: 364611.7032 | AJ48: 65611.42857 | AK48: 364611.7032 | AL48: 0 | AM48: 364611.7032 | AN48: 123967.9791 | AO48: 549864.2759 | AP48: 549864 | AQ48: 0.2758739272 | AR48: 417991.2168 | AS48: 2.898278328 | AT48: 144220.5232
D49: 2034 | E49: 18.64 | F49: 42450.59013 | G49: 791279 | H49: 565083 | I49: 226196 | J49: 13.3115464 | K49: 226196 | N49: 226196 | AD49: 565083 | AF49: 791279 | AG49: 7912.79 | AH49: 440645.4385 | AI49: 342720.7715 | AJ49: 65611.42857 | AK49: 342720.7715 | AL49: 0 | AM49: 342720.7715 | AN49: 116525.0623 | AO49: 565083.2908 | AP49: 565083 | AQ49: 0.2908256985 | AR49: 440645.4385 | AS49: 2.985226678 | AT49: 147608.7031
D52: Sources: Petrozuata Planning Documents, Federal Reserve Bulletin, S&P Bond Guide, and casewriter estimates.
G54: =SUM(G13:G49) -> 26362712 | H54: =SUM(H13:H49) -> 14588628 | AD54: =SUM(AD11:AD49) -> 14588628 | AF54: =SUM(AF11:AF49) -> 26362712 | AG54: =SUM(AG11:AG49) -> 263627.12 | AH54: =SUM(AH11:AH49) -> 8904202.889 | AI54: =SUM(AI11:AI49) -> 17194881.99

Sheet Financial Model -->

Sheet Summary
N2: Break-Even Oil Price | P2: =InputS!I12 -> 7.75
B3: Operations
N4: https://youtube.com/shorts/F-0hnzLNsVk?si=l6QMqN1mI8r_YM8o
C5: Total Capital Expenditures | E5: USD | F5: ='Financial Model'!I41 -> 1916939000
C6: Capital Expenditures with Financing | E6: USD | F6: ='Financial Model'!$I$102 -> 2377265000 | I6: Capital Expenditures
J7: Crude Oil Production | K7: ='Financial Model'!G21 -> 448780000
C8: Total Reserves | E8: BBL | F8: ='Financial Model'!G11 -> 1513666719 | J8: Crude Oil Pipeline | K8: ='Financial Model'!G22 -> 216288000
C9: Average Annual Production | E9: BBL | F9: =F8/35 -> 43247620.55 | J9: Upgrader & Loading Facility | K9: ='Financial Model'!G23 -> 1066854000
C10: Average Daily Production | E10: BBL | F10: =F9/365 -> 118486.6316 | J10: Upstream Contingency | K10: ='Financial Model'!G24 -> 37925000
J11: Deferred Development Costs | K11: ='Financial Model'!G25 -> 147093000
C12: Capital Expenditure/Reserve | E12: USD/BBL | F12: =F5/F8 -> 1.266420788
J13: ='Financial Model'!D98 -> Initial Cash Balance | K13: ='Financial Model'!I98 -> 10000000
C14: Average Real O&M Expense | F14: ='Financial Model'!I55/35 -> 149223594.7 | J14: ='Financial Model'!D99 -> Financing Costs | K14: ='Financial Model'!I99 -> 354461000
J15: ='Financial Model'!D100 -> Legal & Advisory Fees | K15: ='Financial Model'!I100 -> 15000000
C16: Average O&M per BBL | E16: USD/BBL | F16: =F14/F8*35 -> 3.450446356 | J16: ='Financial Model'!D101 -> Debt Service Reserve | K16: ='Financial Model'!I101 -> 80865000
J17: ='Financial Model'!D102 -> Total Funding Needs | K17: ='Financial Model'!I102 -> 2377265000
B18: IRR's
C19: Project Pre-tax | E19: % | F19: ='Financial Model'!G64 -> FALSE | I19: Funding Sources
C20: Project After-tax | E20: % | F20: ='Financial Model'!G87 -> FALSE | J20: Operating Cash Flow | K20: ='Financial Model'!I105 -> 482913000
C21: Debt IRR Pre-tax | E21: % | F21: ='Financial Model'!G178 -> FALSE | J21: Debt | K21: ='Financial Model'!I108 -> 1450000000 | L21: =K21/K23 -> 0.7654332458
C22: Debt IRR After-tax | E22: % | F22: ='Financial Model'!G188 -> FALSE | J22: Equity | K22: ='Financial Model'!I109 -> 444352000 | L22: =K22/K23 -> 0.2345667542
J23: Total Debt and Equity | K23: =K21+K22 -> 1894352000 | L23: =K23/K23 -> 1
C24: Equity IRR | E24: % | F24: ='Financial Model'!G172 -> FALSE | J24: Total Sources | K24: =K23+K20 -> 2377265000
C26: Min DSCR | E26: x | F26: ='Financial Model'!$G$193 -> 0.1355434083
N52: Total | O52: 21.5 | P52: =21500000000 -> 21500000000
N53: Project | P53: =F8 -> 1513666719
N54: Percent | P54: =P53/P52 -> 0.07040310322
N56: Daily Capacity | P56: 120000

Sheet InputC
B2: Scenario | F2: 3
I3: 1 | J3: 2 | K3: 3 | L3: 4 | M3: 5 | N3: 6 | O3: 7 | P3: 8
B4: Timing | I4: Base | J4: Cost Over-Run | K4: Inflated Oil Price | L4: Actual Oil Price | M4: Break-even without Inflation | N4: Break-even with Inflation | O4: Higher Royalty | P4: Higher Income Tax
D5: Start Year | F5: Year | G5: =INDEX(I5:P5,$F$2) -> 1996 | I5: 1996 | J5: 1996 | K5: 1996 | L5: 1996 | M5: 1996 | N5: 1996 | O5: 1996 | P5: 1996
D6: Financial Close | F6: Year | G6: =INDEX(I6:P6,$F$2) -> 1997 | I6: 1997 | J6: 1997 | K6: 1997 | L6: 1997 | M6: 1997 | N6: 1997 | O6: 1997 | P6: 1997
D8: Operation | F8: Year | G8: =INDEX(I8:P8,$F$2) -> 2001 | I8: 2001 | J8: 2001 | K8: 2001 | L8: 2001 | M8: 2001 | N8: 2001 | O8: 2001 | P8: 2001
D9: Pre-COD | F9: Years | G9: =INDEX(I9:P9,$F$2) -> 5 | I9: =I8-I5 -> 5 | J9: 5 | K9: =K8-K5 -> 5 | L9: 5 | M9: =M8-M5 -> 5 | N9: =N8-N5 -> 5 | O9: 5 | P9: 5
D10: Project Life | F10: Years | G10: =INDEX(I10:P10,$F$2) -> 35 | I10: 35 | J10: 35 | K10: 35 | L10: 35 | M10: 35 | N10: 35 | O10: 35 | P10: 35
D11: End of Life | F11: Year | G11: =INDEX(I11:P11,$F$2) -> 2036 | I11: =I8+I10 -> 2036 | J11: =J8+J10 -> 2036 | K11: 2036 | L11: 2036 | M11: =M8+M10 -> 2036 | N11: =N8+N10 -> 2036 | O11: 2036 | P11: 2036
B13: Production and Reserves
D14: Total Reserves | F14: BBL | G14: =INDEX(I14:P14,$F$2) -> 1513666719 | I14: 1513666719 | J14: 1513666719 | K14: 1513666719 | L14: 1513666719 | M14: 1513666719 | N14: 1513666719 | O14: 1513666719 | P14: 1513666719
D16: Production | F16: Code | G16: =INDEX(I16:P16,$F$2) -> 1 | I16: 1 | J16: 1 | K16: 1 | L16: 1 | M16: 1 | N16: 1 | O16: 1 | P16: 1
D18: Capacity of Upgrader | F18: BBL p.d | G18: =INDEX(I18:P18,F2) -> 120000 | I18: 120000 | J18: 120000 | K18: 120000 | L18: 120000 | M18: 120000 | N18: 120000 | O18: 120000 | P18: 120000
B20: Operating Cash Flow without Financing
C21: Capital Expenditures
D22: Crude Oil Production | F22: USD | G22: =INDEX(I22:P22,$F$2) -> 448780000 | I22: 448780000 | J22: 448780000 | K22: 448780000 | L22: 448780000 | M22: 448780000 | N22: 448780000 | O22: 448780000 | P22: 448780000
D23: Crude Oil Pipeline | F23: USD | G23: =INDEX(I23:P23,$F$2) -> 216288000 | I23: 216288000 | J23: 216288000 | K23: 216288000 | L23: 216288000 | M23: 216288000 | N23: 216288000 | O23: 216288000 | P23: 216288000
D24: Upgrader & Loading Facility | F24: USD | G24: =INDEX(I24:P24,$F$2) -> 1066854000 | I24: 1066854000 | J24: =I24*1.2 -> 1280224800 | K24: 1066854000 | L24: 1066854000 | M24: 1066854000 | N24: 1066854000 | O24: 1066854000 | P24: 1066854000
D25: Upstream Contingency | F25: USD | G25: =INDEX(I25:P25,$F$2) -> 37925000 | I25: 37925000 | J25: 37925000 | K25: 37925000 | L25: 37925000 | M25: 37925000 | N25: 37925000 | O25: 37925000 | P25: 37925000
D26: Deferred Development Costs and Operating Expenditures | F26: USD | G26: =INDEX(I26:P26,$F$2) -> 147093000 | I26: 147093000 | J26: 147093000 | K26: 147093000 | L26: 147093000 | M26: 147093000 | N26: 147093000 | O26: 147093000 | P26: 147093000
D28: Crude Oil Production | F28: USD/BBL | G28: =G22/$G$14 -> 0.2964853454
D29: Crude Oil Pipeline | F29: USD/BBL | G29: =G23/$G$14 -> 0.1428901074
D30: Upgrader & Loading Facility | F30: USD/BBL | G30: 0.7048143336
D31: Upstream Contingency | F31: USD/BBL | G31: 0.02505505308
D32: Deferred Development Costs and Operating Expenditures | F32: USD/BBL | G32: 0.09717660971
D33: Total | F33: USD/BBL | G33: =SUM(G28:G32) -> 1.266421449
C35: Operating Costs
D36: General Inflation Rate | F36: % | G36: =INDEX(I36:P36,$F$2) -> 0.03 | I36: 0.03 | J36: 0.03 | K36: 0.03 | L36: 0.03 | M36: 0.03 | N36: 0.03 | O36: 0.03 | P36: 0.03
D38: Date of Change in Royalty and Tax | F38: Year | G38: 2001 | I38: 2006 | J38: 2006 | K38: 2006 | L38: 2006 | M38: 2006 | N38: 2006 | O38: 2001 | P38: 2001
D39: Base Royalty Rate | F39: % | G39: =INDEX(I39:P39,$F$2) -> 0.01 | I39: 0.01 | J39: 0.01 | K39: 0.01 | L39: 0.01 | M39: 0.01 | N39: 0.01 | O39: 0.01 | P39: 0.01
D40: Revised Royalty Rate | F40: % | G40: =INDEX(I40:P40,$F$2) -> 0.01 | I40: 0.01 | J40: 0.01 | K40: 0.01 | L40: 0.01 | M40: 0.01 | N40: 0.01 | O40: 0.5 | P40: 0.5
D42: Other Expenses per BBL - Real | F42: Code | G42: =INDEX(I42:P42,$F$2) -> 2 | I42: 1 | J42: 1 | K42: 2 | L42: 2 | M42: 2 | N42: 2 | O42: 2 | P42: 2
D43: Other Expenses per BBL - Real | F43: Description | G43: =INDEX(InputS!$D$41:$D$43,InputC!G42) -> 20% Increase After 2002
C45: Revenues
D46: Oil Price Code | F46: Code | G46: =INDEX(I46:P46,$F$2) -> 2 | I46: 1 | J46: 1 | K46: 2 | L46: 3 | M46: 4 | N46: 5 | O46: 3 | P46: 3
D47: Oil Price Description | F47: Description | G47: =INDEX(InputS!$D$9:$D$13,InputC!G46) -> Oil Price with Future Inflation
B49: Taxes and Depreciation
D50: Base Income Tax Rate | F50: % | G50: =INDEX(I50:P50,$F$2) -> 0.34 | I50: 0.34 | J50: 0.34 | K50: 0.34 | L50: 0.34 | M50: 0.34 | N50: 0.34 | O50: 0.34 | P50: 0.34
D51: Reviesed Income Tax Rate | F51: % | G51: =INDEX(I51:P51,$F$2) -> 0.34 | I51: 0.34 | J51: 0.34 | K51: 0.34 | L51: 0.34 | M51: 0.34 | N51: 0.34 | O51: 0.34 | P51: 0.5
D53: Depreciation Life | F53: Years | G53: =INDEX(I53:P53,$F$2) -> 35 | I53: 35 | J53: 35 | K53: 35 | L53: 35 | M53: 35 | N53: 35 | O53: 35 | P53: 35
B55: Financing
C56: Debt Size
D57: Total Debt | F57: USD | G57: =INDEX(I57:P57,$F$2) -> 1450000 | I57: 1450000 | J57: 1450000 | K57: 1450000 | L57: 1450000 | M57: 1450000 | N57: 1450000 | O57: 1450000 | P57: 1450000
D58: Draw Percent Code | F58: Code | G58: 1
C61: Risk Free Rate | G61: 0.0503
E66: =TRANSPOSE(I4:P4) -> Base
E67: Cost Over-Run
E68: Inflated Oil Price
E69: Actual Oil Price
E70: Break-even without Inflation
E71: Break-even with Inflation
E72: Higher Royalty
E73: Higher Income Tax

Sheet InputS
D3: Year
F4: Code from InputC | G4: Sum | I4: =TRANSPOSE(Exhibit10a!D12:D50) -> 1996 | J4: 1997 | K4: 1998 | L4: 1999 | M4: 2000 | N4: 2001 | O4: 2002 | P4: 2003 | Q4: 2004 | R4: 2005 | S4: 2006 | T4: 2007 | U4: 2008 | V4: 2009 | W4: 2010 | X4: 2011 | Y4: 2012 | Z4: 2013 | AA4: 2014 | AB4: 2015 | AC4: 2016 | AD4: 2017 | AE4: 2018 | AF4: 2019 | AG4: 2020 | AH4: 2021 | AI4: 2022 | AJ4: 2023 | AK4: 2024 | AL4: 2025 | AM4: 2026 | AN4: 2027 | AO4: 2028 | AP4: 2029 | AQ4: 2030 | AR4: 2031 | AS4: 2032 | AT4: 2033 | AU4: 2034
C6: Oil Prices
D7: Oil Price Code from InputC | F7: =InputC!G46 -> 2
D9: Base Oil Price | E9: USD/BBL | I9: 12.25 | J9: 12.56 | K9: 12.87 | L9: 13.19 | M9: 13.52 | N9: 13.86 | O9: 14.21 | P9: 14.56 | Q9: 14.93 | R9: 15.3 | S9: 15.68 | T9: 16.07 | U9: 16.47 | V9: 16.89 | W9: 17.31 | X9: 17.74 | Y9: 18.19 | Z9: 18.64 | AA9: 18.64 | AB9: 18.64 | AC9: 18.64 | AD9: 18.64 | AE9: 18.64 | AF9: 18.64 | AG9: 18.64 | AH9: 18.64 | AI9: 18.64 | AJ9: 18.64 | AK9: 18.64 | AL9: 18.64 | AM9: 18.64 | AN9: 18.64 | AO9: 18.64 | AP9: 18.64 | AQ9: 18.64 | AR9: 18.64 | AS9: 18.64 | AT9: 18.64 | AU9: 18.64
D10: Oil Price with Future Inflation | E10: USD/BBL | I10: =I9 -> 12.25 | J10: =I10*(1+J19) -> 12.56 | K10: =J10*(1+K19) -> 12.87 | L10: 13.19 | M10: 13.52 | N10: 13.86 | O10: 14.21 | P10: 14.56 | Q10: 14.93 | R10: 15.3 | S10: 15.68 | T10: 16.07 | U10: 16.47 | V10: 16.89 | W10: 17.31 | X10: 17.74 | Y10: 18.19 | Z10: 18.64 | AA10: 19.1992 | AB10: 19.775176 | AC10: 20.36843128 | AD10: 20.97948422 | AE10: 21.60886874 | AF10: 22.25713481 | AG10: 22.92484885 | AH10: 23.61259432 | AI10: 24.32097215 | AJ10: 25.05060131 | AK10: 25.80211935 | AL10: 26.57618293 | AM10: 27.37346842 | AN10: 28.19467247 | AO10: 29.04051265 | AP10: 29.91172802 | AQ10: 30.80907987 | AR10: 31.73335226 | AS10: 32.68535283 | AT10: 33.66591341 | AU10: 34.67589082
D11: Actual Oil Price | E11: USD/BBL | I11: 19.863 | J11: 18.29325286 | K11: 12.91428 | L11: 17.31675 | M11: 27.2989125 | N11: 23.3271746 | O11: 23.48385075 | P11: 27.99646038 | Q11: 37.29925561 | R11: 50.80030602 | S11: 59.43832578 | T11: 65.05600734 | U11: 89.60196926 | V11: 55.488276 | W11: 71.4829775 | X11: 85.54889603 | Y11: 84.74299059 | Z11: 88.14848905 | AA11: 83.80125 | AB11: 43.83825 | AC11: 38.86875 | AD11: 45.816 | AE11: 58.33725 | AF11: 51.312 | AG11: 35.3775 | AH11: 61.167 | AI11: 84.98775 | AJ11: 69.90225 | AK11: 68.25975 | AL11: 58.97209091 | AM11: =AL11*(1+AM19) -> 60.74125364 | AN11: =AM11*(1+AN19) -> 62.56349125 | AO11: 64.44039598 | AP11: 66.37360786 | AQ11: 68.3648161 | AR11: 70.41576058 | AS11: 72.5282334 | AT11: 74.7040804 | AU11: 76.94520281
D12: Break-Even Oil Price - No Inflation | E12: USD/BBL | H12: 775 | I12: =H12/100 -> 7.75 | J12: =I12 -> 7.75 | K12: =J12 -> 7.75 | L12: 7.75 | M12: 7.75 | N12: 7.75 | O12: 7.75 | P12: 7.75 | Q12: 7.75 | R12: 7.75 | S12: 7.75 | T12: 7.75 | U12: 7.75 | V12: 7.75 | W12: 7.75 | X12: 7.75 | Y12: 7.75 | Z12: 7.75 | AA12: 7.75 | AB12: 7.75 | AC12: 7.75 | AD12: 7.75 | AE12: 7.75 | AF12: 7.75 | AG12: 7.75 | AH12: 7.75 | AI12: 7.75 | AJ12: 7.75 | AK12: 7.75 | AL12: 7.75 | AM12: 7.75 | AN12: 7.75 | AO12: 7.75 | AP12: 7.75 | AQ12: 7.75 | AR12: 7.75 | AS12: 7.75 | AT12: 7.75 | AU12: 7.75
D13: Break-Even Oil Price - With Inflation | E13: USD/BBL | I13: =I12*(1+I19) -> 7.75 | J13: =I13*(1+J19) -> 7.946122449 | K13: =J13*(1+K19) -> 8.142244898 | L13: 8.344693878 | M13: 8.553469388 | N13: 8.768571429 | O13: 8.99 | P13: 9.211428571 | Q13: 9.445510204 | R13: 9.679591837 | S13: 9.92 | T13: 10.16673469 | U13: 10.41979592 | V13: 10.6855102 | W13: 10.95122449 | X13: 11.22326531 | Y13: 11.50795918 | Z13: 11.79265306 | AA13: 12.14643265 | AB13: 12.51082563 | AC13: 12.8861504 | AD13: 13.27273491 | AE13: 13.67091696 | AF13: 14.08104447 | AG13: 14.5034758 | AH13: 14.93858008 | AI13: 15.38673748 | AJ13: 15.8483396 | AK13: 16.32378979 | AL13: 16.81350349 | AM13: 17.31790859 | AN13: 17.83744585 | AO13: 18.37256922 | AP13: 18.9237463 | AQ13: 19.49145869 | AR13: 20.07620245 | AS13: 20.67848852 | AT13: 21.29884318 | AU13: 21.93780848
D15: =INDEX(D9:D13,$F$7) -> Oil Price with Future Inflation | E15: USD/BBL | I15: =INDEX(I9:I13,$F$7) -> 12.25 | J15: =INDEX(J9:J13,$F$7) -> 12.56 | K15: =INDEX(K9:K13,$F$7) -> 12.87 | L15: =INDEX(L9:L13,$F$7) -> 13.19 | M15: =INDEX(M9:M13,$F$7) -> 13.52 | N15: =INDEX(N9:N13,$F$7) -> 13.86 | O15: =INDEX(O9:O13,$F$7) -> 14.21 | P15: =INDEX(P9:P13,$F$7) -> 14.56 | Q15: =INDEX(Q9:Q13,$F$7) -> 14.93 | R15: =INDEX(R9:R13,$F$7) -> 15.3 | S15: =INDEX(S9:S13,$F$7) -> 15.68 | T15: =INDEX(T9:T13,$F$7) -> 16.07 | U15: =INDEX(U9:U13,$F$7) -> 16.47 | V15: =INDEX(V9:V13,$F$7) -> 16.89 | W15: =INDEX(W9:W13,$F$7) -> 17.31 | X15: =INDEX(X9:X13,$F$7) -> 17.74 | Y15: =INDEX(Y9:Y13,$F$7) -> 18.19 | Z15: =INDEX(Z9:Z13,$F$7) -> 18.64 | AA15: =INDEX(AA9:AA13,$F$7) -> 19.1992 | AB15: =INDEX(AB9:AB13,$F$7) -> 19.775176 | AC15: =INDEX(AC9:AC13,$F$7) -> 20.36843128 | AD15: =INDEX(AD9:AD13,$F$7) -> 20.97948422 | AE15: =INDEX(AE9:AE13,$F$7) -> 21.60886874 | AF15: =INDEX(AF9:AF13,$F$7) -> 22.25713481 | AG15: =INDEX(AG9:AG13,$F$7) -> 22.92484885 | AH15: =INDEX(AH9:AH13,$F$7) -> 23.61259432 | AI15: =INDEX(AI9:AI13,$F$7) -> 24.32097215 | AJ15: =INDEX(AJ9:AJ13,$F$7) -> 25.05060131 | AK15: =INDEX(AK9:AK13,$F$7) -> 25.80211935 | AL15: =INDEX(AL9:AL13,$F$7) -> 26.57618293 | AM15: =INDEX(AM9:AM13,$F$7) -> 27.37346842 | AN15: =INDEX(AN9:AN13,$F$7) -> 28.19467247 | AO15: =INDEX(AO9:AO13,$F$7) -> 29.04051265 | AP15: =INDEX(AP9:AP13,$F$7) -> 29.91172802 | AQ15: =INDEX(AQ9:AQ13,$F$7) -> 30.80907987 | AR15: =INDEX(AR9:AR13,$F$7) -> 31.73335226 | AS15: =INDEX(AS9:AS13,$F$7) -> 32.68535283 | AT15: =INDEX(AT9:AT13,$F$7) -> 33.66591341 | AU15: =INDEX(AU9:AU13,$F$7) -> 34.67589082
D18: Inflation in Oil Price - Base | J18: 0.02530612245 | K18: 0.02468152866 | L18: 0.02486402486 | M18: 0.02501895375 | N18: 0.02514792899 | O18: 0.02525252525 | P18: 0.02463054187 | Q18: 0.02541208791 | R18: 0.02478231748 | S18: 0.02483660131 | T18: 0.02487244898 | U18: 0.02489110143 | V18: 0.02550091075 | W18: 0.02486678508 | X18: 0.02484113229 | Y18: 0.02536640361 | Z18: 0.02473886751 | AA18: 0 | AB18: 0 | AC18: 0 | AD18: 0 | AE18: 0 | AF18: 0 | AG18: 0 | AH18: 0 | AI18: 0 | AJ18: 0 | AK18: 0 | AL18: 0 | AM18: 0 | AN18: 0 | AO18: 0 | AP18: 0 | AQ18: 0 | AR18: 0 | AS18: 0 | AT18: 0 | AU18: 0
D19: Inflation in Oil Price - Future | J19: 0.02530612245 | K19: 0.02468152866 | L19: 0.02486402486 | M19: 0.02501895375 | N19: 0.02514792899 | O19: 0.02525252525 | P19: 0.02463054187 | Q19: 0.02541208791 | R19: 0.02478231748 | S19: 0.02483660131 | T19: 0.02487244898 | U19: 0.02489110143 | V19: 0.02550091075 | W19: 0.02486678508 | X19: 0.02484113229 | Y19: 0.02536640361 | Z19: 0.02473886751 | AA19: 0.03 | AB19: 0.03 | AC19: 0.03 | AD19: 0.03 | AE19: 0.03 | AF19: 0.03 | AG19: 0.03 | AH19: 0.03 | AI19: 0.03 | AJ19: 0.03 | AK19: 0.03 | AL19: 0.03 | AM19: 0.03 | AN19: 0.03 | AO19: 0.03 | AP19: 0.03 | AQ19: 0.03 | AR19: 0.03 | AS19: 0.03 | AT19: 0.03 | AU19: 0.03
D24: Total Production | E24: BBL | G24: =SUM(_xlfn.ANCHORARRAY(I24)) -> 1513666719 | I24: =TRANSPOSE(Exhibit10!F11:F49)*1000 -> 0 | J24: 0 | K24: 6101320.901 | L24: 32529112.96 | M24: 59475443.79 | N24: 41064646.46 | O24: 41069458.13 | P24: 41098763.74 | Q24: 41096316.14 | R24: 41118758.17 | S24: 41138520.41 | T24: 41156565.03 | U24: 41173406.19 | V24: 41165364.12 | W24: 41182495.67 | X24: 41200225.48 | Y24: 41196536.56 | Z24: 41217757.51 | AA24: 41244527.9 | AB24: 41271942.06 | AC24: 41299946.35 | AD24: 41328594.42 | AE24: 41357886.27 | AF24: 41387768.24 | AG24: 41945225.32 | AH24: 41976448.5 | AI24: 42008369.1 | AJ24: 42040987.12 | AK24: 42074356.22 | AL24: 42108422.75 | AM24: 42143240.34 | AN24: 42178862.66 | AO24: 42215182.4 | AP24: 42252360.52 | AQ24: 42290289.7 | AR24: 42329077.25 | AS24: 42368723.18 | AT24: 42409227.47 | AU24: 42450590.13
D25: Production Percent | E25: % | I25: =I24/$G$24 -> 0 | J25: =J24/$G$24 -> 0 | K25: 0.004030821861 | L25: 0.02149027428 | M25: 0.03929229799 | N25: 0.02712925239 | O25: 0.02713243121 | P25: 0.02715179188 | Q25: 0.02715017488 | R25: 0.02716500115 | S25: 0.02717805702 | T25: 0.02718997816 | U25: 0.02720110423 | V25: 0.02719579125 | W25: 0.02720710916 | X25: 0.02721882232 | Y25: 0.02721638524 | Z25: 0.02723040481 | AA25: 0.0272480906 | AB25: 0.02726620169 | AC25: 0.02728470266 | AD25: 0.02730362893 | AE25: 0.02732298051 | AF25: 0.02734272196 | AG25: 0.02771100454 | AH25: 0.02773163205 | AI25: 0.02775272031 | AJ25: 0.02777426932 | AK25: 0.02779631453 | AL25: 0.02781882049 | AM25: 0.02784182265 | AN25: 0.02786535644 | AO25: 0.02788935098 | AP25: 0.02791391261 | AQ25: 0.02793897042 | AR25: 0.02796459532 | AS25: 0.0279907873 | AT25: 0.02801754635 | AU25: 0.02804487249
C28: S-Curve | I28: =_xlfn.SEQUENCE(,10) -> 1 | J28: 2 | K28: 3 | L28: 4 | M28: 5 | N28: 6 | O28: 7 | P28: 8 | Q28: 9 | R28: 10
D29: Crude Oil Production | E29: % | G29: =SUM(I29:XFD29) -> 0.9999977717 | I29: =Exhibit7!E8/Exhibit7!$J8 -> 0.02672801818 | J29: =Exhibit7!F8/Exhibit7!$J8 -> 0.4274900842 | K29: =Exhibit7!G8/Exhibit7!$J8 -> 0.3367819422 | L29: =Exhibit7!H8/Exhibit7!$J8 -> 0.1717812737 | M29: =Exhibit7!I8/Exhibit7!$J8 -> 0.0372164535
D30: Crude Oil Pipeline | E30: % | G30: =SUM(I30:XFD30) -> 1 | I30: =Exhibit7!E9/Exhibit7!$J9 -> 0.003028369581 | J30: =Exhibit7!F9/Exhibit7!$J9 -> 0.7883562657 | K30: =Exhibit7!G9/Exhibit7!$J9 -> 0.2086153647 | L30: =Exhibit7!H9/Exhibit7!$J9 -> 0 | M30: =Exhibit7!I9/Exhibit7!$J9 -> 0
D31: Upgrader & Loading Facility | E31: % | G31: =SUM(I31:XFD31) -> 1.000000937 | I31: =Exhibit7!E10/Exhibit7!$J10 -> 0.01344607603 | J31: =Exhibit7!F10/Exhibit7!$J10 -> 0.2280583847 | K31: =Exhibit7!G10/Exhibit7!$J10 -> 0.4789661941 | L31: =Exhibit7!H10/Exhibit7!$J10 -> 0.2158739621 | M31: =Exhibit7!I10/Exhibit7!$J10 -> 0.06365632036
D32: Upstream Contingency | E32: % | G32: =SUM(I32:XFD32) -> 1 | I32: =Exhibit7!E11/Exhibit7!$J11 -> 0 | J32: =Exhibit7!F11/Exhibit7!$J11 -> 0 | K32: =Exhibit7!G11/Exhibit7!$J11 -> 0 | L32: =Exhibit7!H11/Exhibit7!$J11 -> 0 | M32: =Exhibit7!I11/Exhibit7!$J11 -> 1
D33: Deferred Development Costs and Operating Expenditures | E33: % | G33: =SUM(I33:XFD33) -> 0.9999932016 | I33: =Exhibit7!E14/Exhibit7!$J14 -> 0.3537897793 | J33: =Exhibit7!F14/Exhibit7!$J14 -> 0.1585935429 | K33: =Exhibit7!G14/Exhibit7!$J14 -> 0.4876098795 | L33: =Exhibit7!H14/Exhibit7!$J14 -> 0 | M33: =Exhibit7!I14/Exhibit7!$J14 -> 0
C35: Year | I35: =_xlfn.SEQUENCE(,40,1996) -> 1996 | J35: 1997 | K35: 1998 | L35: 1999 | M35: 2000 | N35: 2001 | O35: 2002 | P35: 2003 | Q35: 2004 | R35: 2005 | S35: 2006 | T35: 2007 | U35: 2008 | V35: 2009 | W35: 2010 | X35: 2011 | Y35: 2012 | Z35: 2013 | AA35: 2014 | AB35: 2015 | AC35: 2016 | AD35: 2017 | AE35: 2018 | AF35: 2019 | AG35: 2020 | AH35: 2021 | AI35: 2022 | AJ35: 2023 | AK35: 2024 | AL35: 2025 | AM35: 2026 | AN35: 2027 | AO35: 2028 | AP35: 2029 | AQ35: 2030 | AR35: 2031 | AS35: 2032 | AT35: 2033 | AU35: 2034 | AV35: 2035
C36: Period
C38: Operating Expense
D39: Code from InputC | F39: =InputC!G42 -> 2
D41: Base Case Operating Expense | E41: kUSD | G41: =SUM(I41:XFD41) -> 8904202.889 | I41: =TRANSPOSE(Exhibit10!AH11:AH49) -> 0 | J41: 0 | K41: 70944.82061 | L41: 180907.8039 | M41: 315035.1018 | N41: 43352.65212 | O41: 49336.38237 | P41: 96537.11654 | Q41: 56960.37696 | R41: 74477.0863 | S41: 33155.08891 | T41: 42530.03101 | U41: 49887.92182 | V41: 159854.2003 | W41: 176112.7588 | X41: 179185.0471 | Y41: 179052.9836 | Z41: 281853.5858 | AA41: 235509.5655 | AB41: 182978.6979 | AC41: 191083.8718 | AD41: 187319.8652 | AE41: 270370.3725 | AF41: 300477.5927 | AG41: 348602.9101 | AH41: 324310.5597 | AI41: 330823.8521 | AJ41: 329477.257 | AK41: 337550.6127 | AL41: 338105.0203 | AM41: 356370.6139 | AN41: 358949.1886 | AO41: 363190.635 | AP41: 380308.16 | AQ41: 405347.4839 | AR41: 401837.4964 | AS41: 413769.5201 | AT41: 417991.2168 | AU41: 440645.4385
D42: 20% Increase After 2002 | E42: kUSD | G42: =SUM(I42:XFD42) -> 10553128.11 | I42: =I41 -> 0 | J42: =J41 -> 0 | K42: 70944.82061 | L42: 180907.8039 | M42: 315035.1018 | N42: 43352.65212 | O42: 49336.38237 | P42: =P41*1.2 -> 115844.5398 | Q42: =Q41*1.2 -> 68352.45235 | R42: 89372.50355 | S42: 39786.1067 | T42: 51036.03722 | U42: 59865.50618 | V42: 191825.0404 | W42: 211335.3106 | X42: 215022.0565 | Y42: 214863.5803 | Z42: 338224.3029 | AA42: 282611.4785 | AB42: 219574.4375 | AC42: 229300.6462 | AD42: 224783.8382 | AE42: 324444.447 | AF42: 360573.1113 | AG42: 418323.4921 | AH42: 389172.6716 | AI42: 396988.6225 | AJ42: 395372.7084 | AK42: 405060.7353 | AL42: 405726.0244 | AM42: 427644.7367 | AN42: 430739.0264 | AO42: 435828.762 | AP42: 456369.792 | AQ42: 486416.9807 | AR42: 482204.9956 | AS42: 496523.4242 | AT42: 501589.4601 | AU42: 528774.5262
D43: Flat Operating Expense | E43: kUSD | G43: 7144434.355 | I43: =I42 -> 0 | J43: 0 | K43: 70944.82061 | L43: 180907.8039 | M43: 315035.1018 | N43: 43352.65212 | O43: 49336.38237 | P43: =P42 -> 115844.5398 | Q43: 68352.45235 | R43: 89372.50355 | S43: 39786.1067 | T43: 51036.03722 | U43: 59865.50618 | V43: 191825.0404 | W43: =W42 -> 211335.3106 | X43: =X42 -> 215022.0565 | Y43: =Y42 -> 214863.5803 | Z43: =Z41 -> 281853.5858 | AA43: =AA41 -> 235509.5655 | AB43: =AA43 -> 235509.5655 | AC43: =AB43 -> 235509.5655 | AD43: 235509.5655 | AE43: 235509.5655 | AF43: 235509.5655 | AG43: 235509.5655 | AH43: 235509.5655 | AI43: 235509.5655 | AJ43: 235509.5655 | AK43: 235509.5655 | AL43: 235509.5655 | AM43: 235509.5655 | AN43: 235509.5655 | AO43: 235509.5655 | AP43: 235509.5655 | AQ43: 235509.5655 | AR43: 235509.5655 | AS43: 235509.5655 | AT43: 235509.5655 | AU43: 235509.5655
D45: =INDEX(D41:D43,$F$39) -> 20% Increase After 2002 | I45: =INDEX(I41:I43,$F$39) -> 0 | J45: =INDEX(J41:J43,$F$39) -> 0 | K45: =INDEX(K41:K43,$F$39) -> 70944.82061 | L45: =INDEX(L41:L43,$F$39) -> 180907.8039 | M45: =INDEX(M41:M43,$F$39) -> 315035.1018 | N45: =INDEX(N41:N43,$F$39) -> 43352.65212 | O45: =INDEX(O41:O43,$F$39) -> 49336.38237 | P45: =INDEX(P41:P43,$F$39) -> 115844.5398 | Q45: =INDEX(Q41:Q43,$F$39) -> 68352.45235 | R45: =INDEX(R41:R43,$F$39) -> 89372.50355 | S45: =INDEX(S41:S43,$F$39) -> 39786.1067 | T45: =INDEX(T41:T43,$F$39) -> 51036.03722 | U45: =INDEX(U41:U43,$F$39) -> 59865.50618 | V45: =INDEX(V41:V43,$F$39) -> 191825.0404 | W45: =INDEX(W41:W43,$F$39) -> 211335.3106 | X45: =INDEX(X41:X43,$F$39) -> 215022.0565 | Y45: =INDEX(Y41:Y43,$F$39) -> 214863.5803 | Z45: =INDEX(Z41:Z43,$F$39) -> 338224.3029 | AA45: =INDEX(AA41:AA43,$F$39) -> 282611.4785 | AB45: =INDEX(AB41:AB43,$F$39) -> 219574.4375 | AC45: =INDEX(AC41:AC43,$F$39) -> 229300.6462 | AD45: =INDEX(AD41:AD43,$F$39) -> 224783.8382 | AE45: =INDEX(AE41:AE43,$F$39) -> 324444.447 | AF45: =INDEX(AF41:AF43,$F$39) -> 360573.1113 | AG45: =INDEX(AG41:AG43,$F$39) -> 418323.4921 | AH45: =INDEX(AH41:AH43,$F$39) -> 389172.6716 | AI45: =INDEX(AI41:AI43,$F$39) -> 396988.6225 | AJ45: =INDEX(AJ41:AJ43,$F$39) -> 395372.7084 | AK45: =INDEX(AK41:AK43,$F$39) -> 405060.7353 | AL45: =INDEX(AL41:AL43,$F$39) -> 405726.0244 | AM45: =INDEX(AM41:AM43,$F$39) -> 427644.7367 | AN45: =INDEX(AN41:AN43,$F$39) -> 430739.0264 | AO45: =INDEX(AO41:AO43,$F$39) -> 435828.762 | AP45: =INDEX(AP41:AP43,$F$39) -> 456369.792 | AQ45: =INDEX(AQ41:AQ43,$F$39) -> 486416.9807 | AR45: =INDEX(AR41:AR43,$F$39) -> 482204.9956 | AS45: =INDEX(AS41:AS43,$F$39) -> 496523.4242 | AT45: =INDEX(AT41:AT43,$F$39) -> 501589.4601 | AU45: =INDEX(AU41:AU43,$F$39) -> 528774.5262
C47: Inflation Index | E47: Index | F47: 0.03 | H47: 1 | I47: =H47*(1+$F$47) -> 1.03 | J47: 1.0609 | K47: 1.092727 | L47: 1.12550881 | M47: 1.159274074 | N47: 1.194052297 | O47: 1.229873865 | P47: 1.266770081 | Q47: 1.304773184 | R47: 1.343916379 | S47: 1.384233871 | T47: 1.425760887 | U47: 1.468533713 | V47: 1.512589725 | W47: 1.557967417 | X47: 1.604706439 | Y47: 1.652847632 | Z47: 1.702433061 | AA47: 1.753506053 | AB47: 1.806111235 | AC47: 1.860294572 | AD47: 1.916103409 | AE47: 1.973586511 | AF47: 2.032794106 | AG47: 2.09377793 | AH47: 2.156591268 | AI47: 2.221289006 | AJ47: 2.287927676 | AK47: 2.356565506 | AL47: 2.427262471 | AM47: 2.500080345 | AN47: 2.575082756 | AO47: 2.652335238 | AP47: 2.731905296 | AQ47: 2.813862454 | AR47: 2.898278328 | AS47: 2.985226678 | AT47: 3.074783478 | AU47: 3.167026983
D48: =D45&" Real" -> 20% Increase After 2002 Real | E48: USD | G48: =SUM(I48:XFD48) -> 5055863383 | I48: =I45/I47*1000 -> 0 | J48: =J45/J47*1000 -> 0 | K48: 64924560.85 | L48: 160734240.7 | M48: 271752046.2 | N48: 36307163.64 | O48: 40114993.7 | P48: 91448749.5 | Q48: 52386463.18 | R48: 66501536.05 | S48: 28742329.99 | T48: 35795649.67 | U48: 40765496.65 | V48: 126818949.8 | W48: 135648094 | X48: 133994636.8 | Y48: 129995999.7 | Z48: 198671131.7 | AA48: 161169377.2 | AB48: 121573042.3 | AC48: 123260396.3 | AD48: 117312999.5 | AE48: 164393324.1 | AF48: 177378077.9 | AG48: 199793629.6 | AH48: 180457315.9 | AI48: 178719933.1 | AJ48: 172808219.7 | AK48: 171886049.5 | AL48: 167153750 | AM48: 171052397.4 | AN48: 167271916 | AO48: 164318882.4 | AP48: 167051834.8 | AQ48: 172864519.4 | AR48: 166376359 | AS48: 166326874.9 | AT48: 163130010.2 | AU48: 166962431.7
B51: Financing and Other
D52: Initial Cash Balance | E52: USD | I52: =Exhibit7!E15*1000 -> 0 | J52: =Exhibit7!F15*1000 -> 0 | K52: =Exhibit7!G15*1000 -> 10000000 | L52: =Exhibit7!H15*1000 -> 0 | M52: =Exhibit7!I15*1000 -> 0 | O52: =Exhibit7!K15*1000 -> 0 | P52: =Exhibit7!L15*1000 -> 0 | Q52: =Exhibit7!M15*1000 -> 0 | R52: =Exhibit7!N15*1000 -> 0 | S52: =Exhibit7!O15*1000 -> 0 | T52: =Exhibit7!P15*1000 -> 0 | U52: =Exhibit7!Q15*1000 -> 0 | V52: =Exhibit7!R15*1000 -> 0 | W52: =Exhibit7!S15*1000 -> 0 | X52: =Exhibit7!T15*1000 -> 0 | Y52: =Exhibit7!U15*1000 -> 0 | Z52: =Exhibit7!V15*1000 -> 0 | AA52: =Exhibit7!W15*1000 -> 0 | AB52: =Exhibit7!X15*1000 -> 0 | AC52: =Exhibit7!Y15*1000 -> 0 | AD52: =Exhibit7!Z15*1000 -> 0 | AE52: =Exhibit7!AA15*1000 -> 0 | AF52: =Exhibit7!AB15*1000 -> 0 | AG52: =Exhibit7!AC15*1000 -> 0 | AH52: =Exhibit7!AD15*1000 -> 0 | AI52: =Exhibit7!AE15*1000 -> 0 | AJ52: =Exhibit7!AF15*1000 -> 0 | AK52: =Exhibit7!AG15*1000 -> 0 | AL52: =Exhibit7!AH15*1000 -> 0 | AM52: =Exhibit7!AI15*1000 -> 0 | AN52: =Exhibit7!AJ15*1000 -> 0 | AO52: =Exhibit7!AK15*1000 -> 0 | AP52: =Exhibit7!AL15*1000 -> 0 | AQ52: =Exhibit7!AM15*1000 -> 0 | AR52: =Exhibit7!AN15*1000 -> 0 | AS52: =Exhibit7!AO15*1000 -> 0 | AT52: =Exhibit7!AP15*1000 -> 0 | AU52: =Exhibit7!AQ15*1000 -> 0
D53: Financing Costs | E53: USD | I53: =Exhibit7!E16*1000 -> 0 | J53: =Exhibit7!F16*1000 -> 61134000 | K53: =Exhibit7!G16*1000 -> 86816000 | L53: =Exhibit7!H16*1000 -> 94955000 | M53: =Exhibit7!I16*1000 -> 111556000 | O53: =Exhibit7!K16*1000 -> 0 | P53: =Exhibit7!L16*1000 -> 0 | Q53: =Exhibit7!M16*1000 -> 0 | R53: =Exhibit7!N16*1000 -> 0 | S53: =Exhibit7!O16*1000 -> 0 | T53: =Exhibit7!P16*1000 -> 0 | U53: =Exhibit7!Q16*1000 -> 0 | V53: =Exhibit7!R16*1000 -> 0 | W53: =Exhibit7!S16*1000 -> 0 | X53: =Exhibit7!T16*1000 -> 0 | Y53: =Exhibit7!U16*1000 -> 0 | Z53: =Exhibit7!V16*1000 -> 0 | AA53: =Exhibit7!W16*1000 -> 0 | AB53: =Exhibit7!X16*1000 -> 0 | AC53: =Exhibit7!Y16*1000 -> 0 | AD53: =Exhibit7!Z16*1000 -> 0 | AE53: =Exhibit7!AA16*1000 -> 0 | AF53: =Exhibit7!AB16*1000 -> 0 | AG53: =Exhibit7!AC16*1000 -> 0 | AH53: =Exhibit7!AD16*1000 -> 0 | AI53: =Exhibit7!AE16*1000 -> 0 | AJ53: =Exhibit7!AF16*1000 -> 0 | AK53: =Exhibit7!AG16*1000 -> 0 | AL53: =Exhibit7!AH16*1000 -> 0 | AM53: =Exhibit7!AI16*1000 -> 0 | AN53: =Exhibit7!AJ16*1000 -> 0 | AO53: =Exhibit7!AK16*1000 -> 0 | AP53: =Exhibit7!AL16*1000 -> 0 | AQ53: =Exhibit7!AM16*1000 -> 0 | AR53: =Exhibit7!AN16*1000 -> 0 | AS53: =Exhibit7!AO16*1000 -> 0 | AT53: =Exhibit7!AP16*1000 -> 0 | AU53: =Exhibit7!AQ16*1000 -> 0
D54: Legal & Advisory Fees | E54: USD | I54: =Exhibit7!E17*1000 -> 0 | J54: =Exhibit7!F17*1000 -> 15000000 | K54: =Exhibit7!G17*1000 -> 0 | L54: =Exhibit7!H17*1000 -> 0 | M54: =Exhibit7!I17*1000 -> 0 | O54: =Exhibit7!K17*1000 -> 0 | P54: =Exhibit7!L17*1000 -> 0 | Q54: =Exhibit7!M17*1000 -> 0 | R54: =Exhibit7!N17*1000 -> 0 | S54: =Exhibit7!O17*1000 -> 0 | T54: =Exhibit7!P17*1000 -> 0 | U54: =Exhibit7!Q17*1000 -> 0 | V54: =Exhibit7!R17*1000 -> 0 | W54: =Exhibit7!S17*1000 -> 0 | X54: =Exhibit7!T17*1000 -> 0 | Y54: =Exhibit7!U17*1000 -> 0 | Z54: =Exhibit7!V17*1000 -> 0 | AA54: =Exhibit7!W17*1000 -> 0 | AB54: =Exhibit7!X17*1000 -> 0 | AC54: =Exhibit7!Y17*1000 -> 0 | AD54: =Exhibit7!Z17*1000 -> 0 | AE54: =Exhibit7!AA17*1000 -> 0 | AF54: =Exhibit7!AB17*1000 -> 0 | AG54: =Exhibit7!AC17*1000 -> 0 | AH54: =Exhibit7!AD17*1000 -> 0 | AI54: =Exhibit7!AE17*1000 -> 0 | AJ54: =Exhibit7!AF17*1000 -> 0 | AK54: =Exhibit7!AG17*1000 -> 0 | AL54: =Exhibit7!AH17*1000 -> 0 | AM54: =Exhibit7!AI17*1000 -> 0 | AN54: =Exhibit7!AJ17*1000 -> 0 | AO54: =Exhibit7!AK17*1000 -> 0 | AP54: =Exhibit7!AL17*1000 -> 0 | AQ54: =Exhibit7!AM17*1000 -> 0 | AR54: =Exhibit7!AN17*1000 -> 0 | AS54: =Exhibit7!AO17*1000 -> 0 | AT54: =Exhibit7!AP17*1000 -> 0 | AU54: =Exhibit7!AQ17*1000 -> 0
D55: Debt Service Reserve | E55: USD | I55: =Exhibit7!E18*1000 -> 0 | J55: =Exhibit7!F18*1000 -> 0 | K55: =Exhibit7!G18*1000 -> 0 | L55: =Exhibit7!H18*1000 -> 0 | M55: =Exhibit7!I18*1000 -> 80865000 | O55: =Exhibit7!K18*1000 -> 0 | P55: =Exhibit7!L18*1000 -> 0 | Q55: =Exhibit7!M18*1000 -> 0 | R55: =Exhibit7!N18*1000 -> 0 | S55: =Exhibit7!O18*1000 -> 0 | T55: =Exhibit7!P18*1000 -> 0 | U55: =Exhibit7!Q18*1000 -> 0 | V55: =Exhibit7!R18*1000 -> 0 | W55: =Exhibit7!S18*1000 -> 0 | X55: =Exhibit7!T18*1000 -> 0 | Y55: =Exhibit7!U18*1000 -> 0 | Z55: =Exhibit7!V18*1000 -> 0 | AA55: =Exhibit7!W18*1000 -> 0 | AB55: =Exhibit7!X18*1000 -> 0 | AC55: =Exhibit7!Y18*1000 -> 0 | AD55: =Exhibit7!Z18*1000 -> 0 | AE55: =Exhibit7!AA18*1000 -> 0 | AF55: =Exhibit7!AB18*1000 -> 0 | AG55: =Exhibit7!AC18*1000 -> 0 | AH55: =Exhibit7!AD18*1000 -> 0 | AI55: =Exhibit7!AE18*1000 -> 0 | AJ55: =Exhibit7!AF18*1000 -> 0 | AK55: =Exhibit7!AG18*1000 -> 0 | AL55: =Exhibit7!AH18*1000 -> 0 | AM55: =Exhibit7!AI18*1000 -> 0 | AN55: =Exhibit7!AJ18*1000 -> 0 | AO55: =Exhibit7!AK18*1000 -> 0 | AP55: =Exhibit7!AL18*1000 -> 0 | AQ55: =Exhibit7!AM18*1000 -> 0 | AR55: =Exhibit7!AN18*1000 -> 0 | AS55: =Exhibit7!AO18*1000 -> 0 | AT55: =Exhibit7!AP18*1000 -> 0 | AU55: =Exhibit7!AQ18*1000 -> 0
D57: Initial Paid in Capital | E57: USD | G57: =SUM(I57:XFD57) -> 79035000 | I57: =Exhibit7!E26*1000 -> 79035000 | J57: =Exhibit7!F26*1000 -> 0 | K57: =Exhibit7!G26*1000 -> 0 | L57: =Exhibit7!H26*1000 -> 0 | M57: =Exhibit7!I26*1000 -> 0
D58: Additional Paid-in Capital | E58: USD | G58: =SUM(I58:XFD58) -> 365511000 | I58: =Exhibit7!E27*1000 -> 0 | J58: =Exhibit7!F27*1000 -> 1986000 | K58: =Exhibit7!G27*1000 -> 550148000 | L58: =Exhibit7!H27*1000 -> -1576000 | M58: =Exhibit7!I27*1000 -> -185047000
D60: Debt Funding | E60: USD | G60: =SUM(I60:XFD60) -> 1450000000 | I60: =Exhibit7!E23*1000 -> 0 | J60: =Exhibit7!F23*1000 -> 1000000000 | K60: =Exhibit7!G23*1000 -> 24299000 | L60: =Exhibit7!H23*1000 -> 242981000 | M60: =Exhibit7!I23*1000 -> 182720000
D62: Repayment Percent | E62: % | G62: =SUM(I62:XFD62) -> 1 | I62: =TRANSPOSE(Exhibit10!BK11:BK37) -> 0 | J62: 0 | K62: 0 | L62: 0 | M62: 0 | N62: 0.02682 | O62: 0.02682 | P62: 0.02682 | Q62: 0.04446689655 | R62: 0.05602896552 | S62: 0.06941586207 | T62: 0.07550137931 | U62: 0.0882262069 | V62: 0.06511655172 | W62: 0.05931034483 | X62: 0.07034482759 | Y62: 0.08137931034 | Z62: 0.03272275862 | AA62: 0.03686068966 | AB62: 0.06634965517 | AC62: 0.0810937931 | AD62: 0.04099862069 | AE62: 0 | AF62: 0 | AG62: 0 | AH62: 0 | AI62: 0.05172413793
D64: Interest Rate on Average Balance | E64: % p.a. | I64: =TRANSPOSE(Exhibit10!BI11:BI39) -> 0 | J64: 0.122268 | K64: 0.08577389012 | L64: 0.08287298845 | M64: 0.08210857917 | N64: 0.08530462467 | O64: 0.0853688725 | P64: 0.08543681426 | Q64: 0.08644414376 | R64: 0.08692717599 | S64: 0.08762428146 | T64: 0.08886359288 | U64: 0.09000897627 | V64: 0.08939903147 | W64: 0.09050926999 | X64: 0.09120470058 | Y64: 0.09242389356 | Z64: 0.08984210638 | AA64: 0.09055511848 | AB64: 0.09451001624 | AC64: 0.1009982354 | AD64: 0.08826057064 | AE64: 0.08870666667 | AF64: 0.08870666667 | AG64: 0.08870666667 | AH64: 0.08870666667 | AI64: 0.1774133333 | AJ64: 0 | AK64: 0
D66: DSRA Flows | E66: USD | I66: =TRANSPOSE(Exhibit10!M11:M49)*1000 -> 0 | J66: 0 | K66: 0 | L66: 0 | M66: -80865000 | N66: 1614000 | O66: 1614000 | P66: -11509000 | Q66: -5700000 | R66: -6345000 | S66: -550000 | T66: -4671000 | U66: 10623000 | V66: 19595000 | W66: -4135000 | X66: -3438000 | Y66: 40417000 | Z66: -933000 | AA66: -19051000 | AB66: -6498000 | AC66: 4468000 | AD66: 62038000 | AE66: 0 | AF66: 0 | AG66: 0 | AH66: 0 | AI66: 3327000 | AJ66: 0 | AK66: 0 | AL66: 0 | AM66: 0 | AN66: 0 | AO66: 0 | AP66: 0 | AQ66: 0 | AR66: 0 | AS66: 0 | AT66: 0 | AU66: 0

Sheet Financial Model
F2: Units | G2: Driver 1 | H2: Driver 2 | I2: Sum
B4: Time Line
C5: Period | F5: Number | G5: =InputC!G9 -> 5 | H5: =-G5+1 -> -4 | L5: =_xlfn.SEQUENCE(,50,-G5+1) -> -4 | M5: -3 | N5: -2 | O5: -1 | P5: 0 | Q5: 1 | R5: 2 | S5: 3 | T5: 4 | U5: 5 | V5: 6 | W5: 7 | X5: 8 | Y5: 9 | Z5: 10 | AA5: 11 | AB5: 12 | AC5: 13 | AD5: 14 | AE5: 15 | AF5: 16 | AG5: 17 | AH5: 18 | AI5: 19 | AJ5: 20 | AK5: 21 | AL5: 22 | AM5: 23 | AN5: 24 | AO5: 25 | AP5: 26 | AQ5: 27 | AR5: 28 | AS5: 29 | AT5: 30 | AU5: 31 | AV5: 32 | AW5: 33 | AX5: 34 | AY5: 35 | AZ5: 36 | BA5: 37 | BB5: 38 | BC5: 39 | BD5: 40 | BE5: 41 | BF5: 42 | BG5: 43 | BH5: 44 | BI5: 45
C6: Date | F6: Year | G6: =InputC!G5 -> 1996 | K6: =G6-1 -> 1995 | L6: =K6+1 -> 1996 | M6: =L6+1 -> 1997 | N6: 1998 | O6: 1999 | P6: 2000 | Q6: 2001 | R6: 2002 | S6: 2003 | T6: 2004 | U6: 2005 | V6: 2006 | W6: 2007 | X6: 2008 | Y6: 2009 | Z6: 2010 | AA6: 2011 | AB6: 2012 | AC6: 2013 | AD6: 2014 | AE6: 2015 | AF6: 2016 | AG6: 2017 | AH6: 2018 | AI6: 2019 | AJ6: 2020 | AK6: 2021 | AL6: 2022 | AM6: 2023 | AN6: 2024 | AO6: 2025 | AP6: 2026 | AQ6: 2027 | AR6: 2028 | AS6: 2029 | AT6: 2030 | AU6: 2031 | AV6: 2032 | AW6: 2033 | AX6: 2034 | AY6: 2035 | AZ6: 2036 | BA6: 2037 | BB6: 2038 | BC6: 2039 | BD6: 2040 | BE6: 2041 | BF6: 2042 | BG6: 2043 | BH6: 2044 | BI6: 2045
C7: Pre-COD Period | F7: Flag | G7: 0 | L7: =(L5<=$G$7)*1 -> 1 | M7: =(M5<=$G$7)*1 -> 1 | N7: 1 | O7: 1 | P7: 1 | Q7: 0 | R7: 0 | S7: 0 | T7: 0 | U7: 0 | V7: 0 | W7: 0 | X7: 0 | Y7: 0 | Z7: 0 | AA7: 0 | AB7: 0 | AC7: 0 | AD7: 0 | AE7: 0 | AF7: 0 | AG7: 0 | AH7: 0 | AI7: 0 | AJ7: 0 | AK7: 0 | AL7: 0 | AM7: 0 | AN7: 0 | AO7: 0 | AP7: 0 | AQ7: 0 | AR7: 0 | AS7: 0 | AT7: 0 | AU7: 0 | AV7: 0 | AW7: 0 | AX7: 0 | AY7: 0 | AZ7: 0 | BA7: 0 | BB7: 0 | BC7: 0 | BD7: 0 | BE7: 0 | BF7: 0 | BG7: 0 | BH7: 0 | BI7: 0
C8: Operating Period | F8: Flag | G8: =InputC!G8 -> 2001 | H8: =InputC!G11 -> 2036 | I8: =SUM(L8:XFD8) -> 35 | L8: =(AND(L6>=$G$8,L6<$H$8))*1 -> 0 | M8: =(AND(M6>=$G$8,M6<$H$8))*1 -> 0 | N8: 0 | O8: 0 | P8: 0 | Q8: 1 | R8: 1 | S8: 1 | T8: 1 | U8: 1 | V8: 1 | W8: 1 | X8: 1 | Y8: 1 | Z8: 1 | AA8: 1 | AB8: 1 | AC8: 1 | AD8: 1 | AE8: 1 | AF8: 1 | AG8: 1 | AH8: 1 | AI8: 1 | AJ8: 1 | AK8: 1 | AL8: 1 | AM8: 1 | AN8: 1 | AO8: 1 | AP8: 1 | AQ8: 1 | AR8: 1 | AS8: 1 | AT8: 1 | AU8: 1 | AV8: 1 | AW8: 1 | AX8: 1 | AY8: 1 | AZ8: 0 | BA8: 0 | BB8: 0 | BC8: 0 | BD8: 0 | BE8: 0 | BF8: 0 | BG8: 0 | BH8: 0 | BI8: 0
B10: Operations
C11: Total Reserves | F11: BBL | G11: =InputC!G14 -> 1513666719 | L11: =$G$11 -> 1513666719 | M11: =$G$11 -> 1513666719 | N11: 1513666719 | O11: 1513666719 | P11: 1513666719 | Q11: 1513666719 | R11: 1513666719 | S11: 1513666719 | T11: 1513666719 | U11: 1513666719 | V11: 1513666719 | W11: 1513666719 | X11: 1513666719 | Y11: 1513666719 | Z11: 1513666719 | AA11: 1513666719 | AB11: 1513666719 | AC11: 1513666719 | AD11: 1513666719 | AE11: 1513666719 | AF11: 1513666719 | AG11: 1513666719 | AH11: 1513666719 | AI11: 1513666719 | AJ11: 1513666719 | AK11: 1513666719 | AL11: 1513666719 | AM11: 1513666719 | AN11: 1513666719 | AO11: 1513666719 | AP11: 1513666719 | AQ11: 1513666719 | AR11: 1513666719 | AS11: 1513666719 | AT11: 1513666719 | AU11: 1513666719 | AV11: 1513666719 | AW11: 1513666719 | AX11: 1513666719 | AY11: 1513666719 | AZ11: 1513666719 | BA11: 1513666719 | BB11: 1513666719 | BC11: 1513666719 | BD11: 1513666719 | BE11: 1513666719 | BF11: 1513666719 | BG11: 1513666719 | BH11: 1513666719 | BI11: 1513666719
C12: Production Percent | F12: % | L12: =LOOKUP(L6,InputS!4:4,InputS!25:25)*OR(L7,L8) -> 0 | M12: =LOOKUP(M6,InputS!4:4,InputS!25:25)*OR(M7,M8) -> 0 | N12: =LOOKUP(N6,InputS!4:4,InputS!25:25)*OR(N7,N8) -> 0.004030821861 | O12: =LOOKUP(O6,InputS!4:4,InputS!25:25)*OR(O7,O8) -> 0.02149027428 | P12: =LOOKUP(P6,InputS!4:4,InputS!25:25)*OR(P7,P8) -> 0.03929229799 | Q12: =LOOKUP(Q6,InputS!4:4,InputS!25:25)*OR(Q7,Q8) -> 0.02712925239 | R12: =LOOKUP(R6,InputS!4:4,InputS!25:25)*OR(R7,R8) -> 0.02713243121 | S12: =LOOKUP(S6,InputS!4:4,InputS!25:25)*OR(S7,S8) -> 0.02715179188 | T12: =LOOKUP(T6,InputS!4:4,InputS!25:25)*OR(T7,T8) -> 0.02715017488 | U12: =LOOKUP(U6,InputS!4:4,InputS!25:25)*OR(U7,U8) -> 0.02716500115 | V12: =LOOKUP(V6,InputS!4:4,InputS!25:25)*OR(V7,V8) -> 0.02717805702 | W12: =LOOKUP(W6,InputS!4:4,InputS!25:25)*OR(W7,W8) -> 0.02718997816 | X12: =LOOKUP(X6,InputS!4:4,InputS!25:25)*OR(X7,X8) -> 0.02720110423 | Y12: =LOOKUP(Y6,InputS!4:4,InputS!25:25)*OR(Y7,Y8) -> 0.02719579125 | Z12: =LOOKUP(Z6,InputS!4:4,InputS!25:25)*OR(Z7,Z8) -> 0.02720710916 | AA12: =LOOKUP(AA6,InputS!4:4,InputS!25:25)*OR(AA7,AA8) -> 0.02721882232 | AB12: =LOOKUP(AB6,InputS!4:4,InputS!25:25)*OR(AB7,AB8) -> 0.02721638524 | AC12: =LOOKUP(AC6,InputS!4:4,InputS!25:25)*OR(AC7,AC8) -> 0.02723040481 | AD12: =LOOKUP(AD6,InputS!4:4,InputS!25:25)*OR(AD7,AD8) -> 0.0272480906 | AE12: =LOOKUP(AE6,InputS!4:4,InputS!25:25)*OR(AE7,AE8) -> 0.02726620169 | AF12: =LOOKUP(AF6,InputS!4:4,InputS!25:25)*OR(AF7,AF8) -> 0.02728470266 | AG12: =LOOKUP(AG6,InputS!4:4,InputS!25:25)*OR(AG7,AG8) -> 0.02730362893 | AH12: =LOOKUP(AH6,InputS!4:4,InputS!25:25)*OR(AH7,AH8) -> 0.02732298051 | AI12: =LOOKUP(AI6,InputS!4:4,InputS!25:25)*OR(AI7,AI8) -> 0.02734272196 | AJ12: =LOOKUP(AJ6,InputS!4:4,InputS!25:25)*OR(AJ7,AJ8) -> 0.02771100454 | AK12: =LOOKUP(AK6,InputS!4:4,InputS!25:25)*OR(AK7,AK8) -> 0.02773163205 | AL12: =LOOKUP(AL6,InputS!4:4,InputS!25:25)*OR(AL7,AL8) -> 0.02775272031 | AM12: =LOOKUP(AM6,InputS!4:4,InputS!25:25)*OR(AM7,AM8) -> 0.02777426932 | AN12: =LOOKUP(AN6,InputS!4:4,InputS!25:25)*OR(AN7,AN8) -> 0.02779631453 | AO12: =LOOKUP(AO6,InputS!4:4,InputS!25:25)*OR(AO7,AO8) -> 0.02781882049 | AP12: =LOOKUP(AP6,InputS!4:4,InputS!25:25)*OR(AP7,AP8) -> 0.02784182265 | AQ12: =LOOKUP(AQ6,InputS!4:4,InputS!25:25)*OR(AQ7,AQ8) -> 0.02786535644 | AR12: =LOOKUP(AR6,InputS!4:4,InputS!25:25)*OR(AR7,AR8) -> 0.02788935098 | AS12: =LOOKUP(AS6,InputS!4:4,InputS!25:25)*OR(AS7,AS8) -> 0.02791391261 | AT12: =LOOKUP(AT6,InputS!4:4,InputS!25:25)*OR(AT7,AT8) -> 0.02793897042 | AU12: =LOOKUP(AU6,InputS!4:4,InputS!25:25)*OR(AU7,AU8) -> 0.02796459532 | AV12: =LOOKUP(AV6,InputS!4:4,InputS!25:25)*OR(AV7,AV8) -> 0.0279907873 | AW12: =LOOKUP(AW6,InputS!4:4,InputS!25:25)*OR(AW7,AW8) -> 0.02801754635 | AX12: =LOOKUP(AX6,InputS!4:4,InputS!25:25)*OR(AX7,AX8) -> 0.02804487249 | AY12: =LOOKUP(AY6,InputS!4:4,InputS!25:25)*OR(AY7,AY8) -> 0.02804487249 | AZ12: =LOOKUP(AZ6,InputS!4:4,InputS!25:25)*OR(AZ7,AZ8) -> 0 | BA12: =LOOKUP(BA6,InputS!4:4,InputS!25:25)*OR(BA7,BA8) -> 0 | BB12: =LOOKUP(BB6,InputS!4:4,InputS!25:25)*OR(BB7,BB8) -> 0 | BC12: =LOOKUP(BC6,InputS!4:4,InputS!25:25)*OR(BC7,BC8) -> 0 | BD12: =LOOKUP(BD6,InputS!4:4,InputS!25:25)*OR(BD7,BD8) -> 0 | BE12: =LOOKUP(BE6,InputS!4:4,InputS!25:25)*OR(BE7,BE8) -> 0 | BF12: =LOOKUP(BF6,InputS!4:4,InputS!25:25)*OR(BF7,BF8) -> 0 | BG12: =LOOKUP(BG6,InputS!4:4,InputS!25:25)*OR(BG7,BG8) -> 0 | BH12: =LOOKUP(BH6,InputS!4:4,InputS!25:25)*OR(BH7,BH8) -> 0 | BI12: =LOOKUP(BI6,InputS!4:4,InputS!25:25)*OR(BI7,BI8) -> 0
C13: Oil Production | F13: BBL p.a. | L13: =L11*L12 -> 0 | M13: =M11*M12 -> 0 | N13: 6101320.901 | O13: 32529112.96 | P13: 59475443.79 | Q13: 41064646.46 | R13: 41069458.13 | S13: 41098763.74 | T13: 41096316.14 | U13: 41118758.17 | V13: 41138520.41 | W13: 41156565.03 | X13: 41173406.19 | Y13: 41165364.12 | Z13: 41182495.67 | AA13: 41200225.48 | AB13: 41196536.56 | AC13: 41217757.51 | AD13: 41244527.9 | AE13: 41271942.06 | AF13: 41299946.35 | AG13: 41328594.42 | AH13: 41357886.27 | AI13: 41387768.24 | AJ13: 41945225.32 | AK13: 41976448.5 | AL13: 42008369.1 | AM13: 42040987.12 | AN13: 42074356.22 | AO13: 42108422.75 | AP13: 42143240.34 | AQ13: 42178862.66 | AR13: 42215182.4 | AS13: 42252360.52 | AT13: 42290289.7 | AU13: 42329077.25 | AV13: 42368723.18 | AW13: 42409227.47 | AX13: 42450590.13 | AY13: 42450590.13 | AZ13: 0 | BA13: 0 | BB13: 0 | BC13: 0 | BD13: 0 | BE13: 0 | BF13: 0 | BG13: 0 | BH13: 0 | BI13: 0
C14: Average Production per Day | F14: BBL p.d | L14: =L13/365 -> 0 | M14: =M13/365 -> 0 | N14: 16715.94767 | O14: 89120.85744 | P14: 162946.4213 | Q14: 112505.8807 | R14: 112519.0634 | S14: 112599.3527 | T14: 112592.647 | U14: 112654.132 | V14: 112708.2751 | W14: 112757.7124 | X14: 112803.8526 | Y14: 112781.8195 | Z14: 112828.7553 | AA14: 112877.3301 | AB14: 112867.2234 | AC14: 112925.363 | AD14: 112998.7066 | AE14: 113073.8139 | AF14: 113150.538 | AG14: 113229.0258 | AH14: 113309.2774 | AI14: 113391.1459 | AJ14: 114918.4255 | AK14: 115003.9685 | AL14: 115091.4222 | AM14: 115180.7866 | AN14: 115272.2088 | AO14: 115365.5418 | AP14: 115460.9324 | AQ14: 115558.5278 | AR14: 115658.034 | AS14: 115759.8918 | AT14: 115863.8074 | AU14: 115970.0747 | AV14: 116078.6936 | AW14: 116189.6643 | AX14: 116302.9867 | AY14: 116302.9867 | AZ14: 0 | BA14: 0 | BB14: 0 | BC14: 0 | BD14: 0 | BE14: 0 | BF14: 0 | BG14: 0 | BH14: 0 | BI14: 0
C16: Capacity of Upgrader | F16: BBL p.d | G16: =InputC!G18 -> 120000 | L16: =$G16*L8 -> 0 | M16: =$G16*M8 -> 0 | N16: 0 | O16: 0 | P16: 0 | Q16: 120000 | R16: 120000 | S16: 120000 | T16: 120000 | U16: 120000 | V16: 120000 | W16: 120000 | X16: 120000 | Y16: 120000 | Z16: 120000 | AA16: 120000 | AB16: 120000 | AC16: 120000 | AD16: 120000 | AE16: 120000 | AF16: 120000 | AG16: 120000 | AH16: 120000 | AI16: 120000 | AJ16: 120000 | AK16: 120000 | AL16: 120000 | AM16: 120000 | AN16: 120000 | AO16: 120000 | AP16: 120000 | AQ16: 120000 | AR16: 120000 | AS16: 120000 | AT16: 120000 | AU16: 120000 | AV16: 120000 | AW16: 120000 | AX16: 120000 | AY16: 120000 | AZ16: 0 | BA16: 0 | BB16: 0 | BC16: 0 | BD16: 0 | BE16: 0 | BF16: 0 | BG16: 0 | BH16: 0 | BI16: 0
C17: Capacity Utilisation | F17: % | L17: =(IF(L16,L14/L16))*1 -> 0 | M17: =(IF(M16,M14/M16))*1 -> 0 | N17: 0 | O17: 0 | P17: 0 | Q17: 0.937549006 | R17: 0.9376588614 | S17: 0.9383279392 | T17: 0.938272058 | U17: 0.9387844331 | V17: 0.9392356258 | W17: 0.9396476034 | X17: 0.9400321049 | Y17: 0.9398484959 | Z17: 0.9402396271 | AA17: 0.9406444173 | AB17: 0.9405601954 | AC17: 0.941044692 | AD17: 0.9416558881 | AE17: 0.9422817822 | AF17: 0.9429211496 | AG17: 0.9435752151 | AH17: 0.9442439787 | AI17: 0.9449262155 | AJ17: 0.9576535462 | AK17: 0.9583664041 | AL17: 0.9590951849 | AM17: 0.9598398887 | AN17: 0.9606017403 | AO17: 0.9613795148 | AP17: 0.9621744371 | AQ17: 0.962987732 | AR17: 0.9638169499 | AS17: 0.9646657652 | AT17: 0.9655317283 | AU17: 0.9664172889 | AV17: 0.9673224469 | AW17: 0.9682472025 | AX17: 0.9691915555 | AY17: 0.9691915555 | AZ17: 0 | BA17: 0 | BB17: 0 | BC17: 0 | BD17: 0 | BE17: 0 | BF17: 0 | BG17: 0 | BH17: 0 | BI17: 0
B19: Free Cash Flow for Project IRR
C20: Total Cost | G20: Total | H20: Per BBL
D21: Crude Oil Production | F21: USD | G21: =InputC!G22 -> 448780000 | H21: =G21/$G$11 -> 0.2964853454 | L21: =$G21*L$7 -> 448780000 | M21: =$G21*M$7 -> 448780000 | N21: 448780000 | O21: 448780000 | P21: 448780000 | Q21: 0 | R21: 0 | S21: 0 | T21: 0 | U21: 0 | V21: 0 | W21: 0 | X21: 0 | Y21: 0 | Z21: 0 | AA21: 0 | AB21: 0 | AC21: 0 | AD21: 0 | AE21: 0 | AF21: 0 | AG21: 0 | AH21: 0 | AI21: 0 | AJ21: 0 | AK21: 0 | AL21: 0 | AM21: 0 | AN21: 0 | AO21: 0 | AP21: 0 | AQ21: 0 | AR21: 0 | AS21: 0 | AT21: 0 | AU21: 0 | AV21: 0 | AW21: 0 | AX21: 0 | AY21: 0 | AZ21: 0 | BA21: 0 | BB21: 0 | BC21: 0 | BD21: 0 | BE21: 0 | BF21: 0 | BG21: 0 | BH21: 0 | BI21: 0
D22: Crude Oil Pipeline | F22: USD | G22: =InputC!G23 -> 216288000 | H22: =G22/$G$11 -> 0.1428901074 | L22: =$G22*L$7 -> 216288000 | M22: 216288000 | N22: 216288000 | O22: 216288000 | P22: 216288000 | Q22: 0 | R22: 0 | S22: 0 | T22: 0 | U22: 0 | V22: 0 | W22: 0 | X22: 0 | Y22: 0 | Z22: 0 | AA22: 0 | AB22: 0 | AC22: 0 | AD22: 0 | AE22: 0 | AF22: 0 | AG22: 0 | AH22: 0 | AI22: 0 | AJ22: 0 | AK22: 0 | AL22: 0 | AM22: 0 | AN22: 0 | AO22: 0 | AP22: 0 | AQ22: 0 | AR22: 0 | AS22: 0 | AT22: 0 | AU22: 0 | AV22: 0 | AW22: 0 | AX22: 0 | AY22: 0 | AZ22: 0 | BA22: 0 | BB22: 0 | BC22: 0 | BD22: 0 | BE22: 0 | BF22: 0 | BG22: 0 | BH22: 0 | BI22: 0
D23: Upgrader & Loading Facility | F23: USD | G23: =InputC!G24 -> 1066854000 | H23: 0.7048143336 | L23: 1066854000 | M23: 1066854000 | N23: 1066854000 | O23: 1066854000 | P23: 1066854000 | Q23: 0 | R23: 0 | S23: 0 | T23: 0 | U23: 0 | V23: 0 | W23: 0 | X23: 0 | Y23: 0 | Z23: 0 | AA23: 0 | AB23: 0 | AC23: 0 | AD23: 0 | AE23: 0 | AF23: 0 | AG23: 0 | AH23: 0 | AI23: 0 | AJ23: 0 | AK23: 0 | AL23: 0 | AM23: 0 | AN23: 0 | AO23: 0 | AP23: 0 | AQ23: 0 | AR23: 0 | AS23: 0 | AT23: 0 | AU23: 0 | AV23: 0 | AW23: 0 | AX23: 0 | AY23: 0 | AZ23: 0 | BA23: 0 | BB23: 0 | BC23: 0 | BD23: 0 | BE23: 0 | BF23: 0 | BG23: 0 | BH23: 0 | BI23: 0
D24: Upstream Contingency | F24: USD | G24: =InputC!G25 -> 37925000 | H24: 0.02505505308 | L24: 37925000 | M24: 37925000 | N24: 37925000 | O24: 37925000 | P24: 37925000 | Q24: 0 | R24: 0 | S24: 0 | T24: 0 | U24: 0 | V24: 0 | W24: 0 | X24: 0 | Y24: 0 | Z24: 0 | AA24: 0 | AB24: 0 | AC24: 0 | AD24: 0 | AE24: 0 | AF24: 0 | AG24: 0 | AH24: 0 | AI24: 0 | AJ24: 0 | AK24: 0 | AL24: 0 | AM24: 0 | AN24: 0 | AO24: 0 | AP24: 0 | AQ24: 0 | AR24: 0 | AS24: 0 | AT24: 0 | AU24: 0 | AV24: 0 | AW24: 0 | AX24: 0 | AY24: 0 | AZ24: 0 | BA24: 0 | BB24: 0 | BC24: 0 | BD24: 0 | BE24: 0 | BF24: 0 | BG24: 0 | BH24: 0 | BI24: 0
D25: Deferred Dev Costs, Op Exp | F25: USD | G25: =InputC!G26 -> 147093000 | H25: 0.09717660971 | L25: 147093000 | M25: 147093000 | N25: 147093000 | O25: 147093000 | P25: 147093000 | Q25: 0 | R25: 0 | S25: 0 | T25: 0 | U25: 0 | V25: 0 | W25: 0 | X25: 0 | Y25: 0 | Z25: 0 | AA25: 0 | AB25: 0 | AC25: 0 | AD25: 0 | AE25: 0 | AF25: 0 | AG25: 0 | AH25: 0 | AI25: 0 | AJ25: 0 | AK25: 0 | AL25: 0 | AM25: 0 | AN25: 0 | AO25: 0 | AP25: 0 | AQ25: 0 | AR25: 0 | AS25: 0 | AT25: 0 | AU25: 0 | AV25: 0 | AW25: 0 | AX25: 0 | AY25: 0 | AZ25: 0 | BA25: 0 | BB25: 0 | BC25: 0 | BD25: 0 | BE25: 0 | BF25: 0 | BG25: 0 | BH25: 0 | BI25: 0
E26: Total | F26: USD | G26: =SUM(G21:G25) -> 1916940000 | H26: =SUM(H21:H25) -> 1.266421449
C28: S-Curve
D29: Crude Oil Production | F29: % | I29: =SUM(L29:XFD29) -> 0.9999977717 | L29: =LOOKUP(L$6,InputS!$4:$4,InputS!29:29) -> 0.02672801818 | M29: =LOOKUP(M$6,InputS!$4:$4,InputS!29:29) -> 0.4274900842 | N29: =LOOKUP(N$6,InputS!$4:$4,InputS!29:29) -> 0.3367819422 | O29: =LOOKUP(O$6,InputS!$4:$4,InputS!29:29) -> 0.1717812737 | P29: =LOOKUP(P$6,InputS!$4:$4,InputS!29:29) -> 0.0372164535 | Q29: =LOOKUP(Q$6,InputS!$4:$4,InputS!29:29) -> 0 | R29: =LOOKUP(R$6,InputS!$4:$4,InputS!29:29) -> 0 | S29: =LOOKUP(S$6,InputS!$4:$4,InputS!29:29) -> 0 | T29: =LOOKUP(T$6,InputS!$4:$4,InputS!29:29) -> 0 | U29: =LOOKUP(U$6,InputS!$4:$4,InputS!29:29) -> 0 | V29: =LOOKUP(V$6,InputS!$4:$4,InputS!29:29) -> 0 | W29: =LOOKUP(W$6,InputS!$4:$4,InputS!29:29) -> 0 | X29: =LOOKUP(X$6,InputS!$4:$4,InputS!29:29) -> 0 | Y29: =LOOKUP(Y$6,InputS!$4:$4,InputS!29:29) -> 0 | Z29: =LOOKUP(Z$6,InputS!$4:$4,InputS!29:29) -> 0 | AA29: =LOOKUP(AA$6,InputS!$4:$4,InputS!29:29) -> 0 | AB29: =LOOKUP(AB$6,InputS!$4:$4,InputS!29:29) -> 0 | AC29: =LOOKUP(AC$6,InputS!$4:$4,InputS!29:29) -> 0 | AD29: =LOOKUP(AD$6,InputS!$4:$4,InputS!29:29) -> 0 | AE29: =LOOKUP(AE$6,InputS!$4:$4,InputS!29:29) -> 0 | AF29: =LOOKUP(AF$6,InputS!$4:$4,InputS!29:29) -> 0 | AG29: =LOOKUP(AG$6,InputS!$4:$4,InputS!29:29) -> 0 | AH29: =LOOKUP(AH$6,InputS!$4:$4,InputS!29:29) -> 0 | AI29: =LOOKUP(AI$6,InputS!$4:$4,InputS!29:29) -> 0 | AJ29: =LOOKUP(AJ$6,InputS!$4:$4,InputS!29:29) -> 0 | AK29: =LOOKUP(AK$6,InputS!$4:$4,InputS!29:29) -> 0 | AL29: =LOOKUP(AL$6,InputS!$4:$4,InputS!29:29) -> 0 | AM29: =LOOKUP(AM$6,InputS!$4:$4,InputS!29:29) -> 0 | AN29: =LOOKUP(AN$6,InputS!$4:$4,InputS!29:29) -> 0 | AO29: =LOOKUP(AO$6,InputS!$4:$4,InputS!29:29) -> 0 | AP29: =LOOKUP(AP$6,InputS!$4:$4,InputS!29:29) -> 0 | AQ29: =LOOKUP(AQ$6,InputS!$4:$4,InputS!29:29) -> 0 | AR29: =LOOKUP(AR$6,InputS!$4:$4,InputS!29:29) -> 0 | AS29: =LOOKUP(AS$6,InputS!$4:$4,InputS!29:29) -> 0 | AT29: =LOOKUP(AT$6,InputS!$4:$4,InputS!29:29) -> 0 | AU29: =LOOKUP(AU$6,InputS!$4:$4,InputS!29:29) -> 0 | AV29: =LOOKUP(AV$6,InputS!$4:$4,InputS!29:29) -> 0 | AW29: =LOOKUP(AW$6,InputS!$4:$4,InputS!29:29) -> 0 | AX29: =LOOKUP(AX$6,InputS!$4:$4,InputS!29:29) -> 0 | AY29: =LOOKUP(AY$6,InputS!$4:$4,InputS!29:29) -> 0 | AZ29: =LOOKUP(AZ$6,InputS!$4:$4,InputS!29:29) -> 0 | BA29: =LOOKUP(BA$6,InputS!$4:$4,InputS!29:29) -> 0 | BB29: =LOOKUP(BB$6,InputS!$4:$4,InputS!29:29) -> 0 | BC29: =LOOKUP(BC$6,InputS!$4:$4,InputS!29:29) -> 0 | BD29: =LOOKUP(BD$6,InputS!$4:$4,InputS!29:29) -> 0 | BE29: =LOOKUP(BE$6,InputS!$4:$4,InputS!29:29) -> 0 | BF29: =LOOKUP(BF$6,InputS!$4:$4,InputS!29:29) -> 0 | BG29: =LOOKUP(BG$6,InputS!$4:$4,InputS!29:29) -> 0 | BH29: =LOOKUP(BH$6,InputS!$4:$4,InputS!29:29) -> 0 | BI29: =LOOKUP(BI$6,InputS!$4:$4,InputS!29:29) -> 0
D30: Crude Oil Pipeline | F30: % | I30: =SUM(L30:XFD30) -> 1 | L30: =LOOKUP(L$6,InputS!$4:$4,InputS!30:30) -> 0.003028369581 | M30: =LOOKUP(M$6,InputS!$4:$4,InputS!30:30) -> 0.7883562657 | N30: =LOOKUP(N$6,InputS!$4:$4,InputS!30:30) -> 0.2086153647 | O30: =LOOKUP(O$6,InputS!$4:$4,InputS!30:30) -> 0 | P30: =LOOKUP(P$6,InputS!$4:$4,InputS!30:30) -> 0 | Q30: =LOOKUP(Q$6,InputS!$4:$4,InputS!30:30) -> 0 | R30: =LOOKUP(R$6,InputS!$4:$4,InputS!30:30) -> 0 | S30: =LOOKUP(S$6,InputS!$4:$4,InputS!30:30) -> 0 | T30: =LOOKUP(T$6,InputS!$4:$4,InputS!30:30) -> 0 | U30: =LOOKUP(U$6,InputS!$4:$4,InputS!30:30) -> 0 | V30: =LOOKUP(V$6,InputS!$4:$4,InputS!30:30) -> 0 | W30: =LOOKUP(W$6,InputS!$4:$4,InputS!30:30) -> 0 | X30: =LOOKUP(X$6,InputS!$4:$4,InputS!30:30) -> 0 | Y30: =LOOKUP(Y$6,InputS!$4:$4,InputS!30:30) -> 0 | Z30: =LOOKUP(Z$6,InputS!$4:$4,InputS!30:30) -> 0 | AA30: =LOOKUP(AA$6,InputS!$4:$4,InputS!30:30) -> 0 | AB30: =LOOKUP(AB$6,InputS!$4:$4,InputS!30:30) -> 0 | AC30: =LOOKUP(AC$6,InputS!$4:$4,InputS!30:30) -> 0 | AD30: =LOOKUP(AD$6,InputS!$4:$4,InputS!30:30) -> 0 | AE30: =LOOKUP(AE$6,InputS!$4:$4,InputS!30:30) -> 0 | AF30: =LOOKUP(AF$6,InputS!$4:$4,InputS!30:30) -> 0 | AG30: =LOOKUP(AG$6,InputS!$4:$4,InputS!30:30) -> 0 | AH30: =LOOKUP(AH$6,InputS!$4:$4,InputS!30:30) -> 0 | AI30: =LOOKUP(AI$6,InputS!$4:$4,InputS!30:30) -> 0 | AJ30: =LOOKUP(AJ$6,InputS!$4:$4,InputS!30:30) -> 0 | AK30: =LOOKUP(AK$6,InputS!$4:$4,InputS!30:30) -> 0 | AL30: =LOOKUP(AL$6,InputS!$4:$4,InputS!30:30) -> 0 | AM30: =LOOKUP(AM$6,InputS!$4:$4,InputS!30:30) -> 0 | AN30: =LOOKUP(AN$6,InputS!$4:$4,InputS!30:30) -> 0 | AO30: =LOOKUP(AO$6,InputS!$4:$4,InputS!30:30) -> 0 | AP30: =LOOKUP(AP$6,InputS!$4:$4,InputS!30:30) -> 0 | AQ30: =LOOKUP(AQ$6,InputS!$4:$4,InputS!30:30) -> 0 | AR30: =LOOKUP(AR$6,InputS!$4:$4,InputS!30:30) -> 0 | AS30: =LOOKUP(AS$6,InputS!$4:$4,InputS!30:30) -> 0 | AT30: =LOOKUP(AT$6,InputS!$4:$4,InputS!30:30) -> 0 | AU30: =LOOKUP(AU$6,InputS!$4:$4,InputS!30:30) -> 0 | AV30: =LOOKUP(AV$6,InputS!$4:$4,InputS!30:30) -> 0 | AW30: =LOOKUP(AW$6,InputS!$4:$4,InputS!30:30) -> 0 | AX30: =LOOKUP(AX$6,InputS!$4:$4,InputS!30:30) -> 0 | AY30: =LOOKUP(AY$6,InputS!$4:$4,InputS!30:30) -> 0 | AZ30: =LOOKUP(AZ$6,InputS!$4:$4,InputS!30:30) -> 0 | BA30: =LOOKUP(BA$6,InputS!$4:$4,InputS!30:30) -> 0 | BB30: =LOOKUP(BB$6,InputS!$4:$4,InputS!30:30) -> 0 | BC30: =LOOKUP(BC$6,InputS!$4:$4,InputS!30:30) -> 0 | BD30: =LOOKUP(BD$6,InputS!$4:$4,InputS!30:30) -> 0 | BE30: =LOOKUP(BE$6,InputS!$4:$4,InputS!30:30) -> 0 | BF30: =LOOKUP(BF$6,InputS!$4:$4,InputS!30:30) -> 0 | BG30: =LOOKUP(BG$6,InputS!$4:$4,InputS!30:30) -> 0 | BH30: =LOOKUP(BH$6,InputS!$4:$4,InputS!30:30) -> 0 | BI30: =LOOKUP(BI$6,InputS!$4:$4,InputS!30:30) -> 0
D31: Upgrader & Loading Facility | F31: % | I31: 1.000000937 | L31: =LOOKUP(L$6,InputS!$4:$4,InputS!31:31) -> 0.01344607603 | M31: =LOOKUP(M$6,InputS!$4:$4,InputS!31:31) -> 0.2280583847 | N31: =LOOKUP(N$6,InputS!$4:$4,InputS!31:31) -> 0.4789661941 | O31: =LOOKUP(O$6,InputS!$4:$4,InputS!31:31) -> 0.2158739621 | P31: =LOOKUP(P$6,InputS!$4:$4,InputS!31:31) -> 0.06365632036 | Q31: =LOOKUP(Q$6,InputS!$4:$4,InputS!31:31) -> 0 | R31: =LOOKUP(R$6,InputS!$4:$4,InputS!31:31) -> 0 | S31: =LOOKUP(S$6,InputS!$4:$4,InputS!31:31) -> 0 | T31: =LOOKUP(T$6,InputS!$4:$4,InputS!31:31) -> 0 | U31: =LOOKUP(U$6,InputS!$4:$4,InputS!31:31) -> 0 | V31: =LOOKUP(V$6,InputS!$4:$4,InputS!31:31) -> 0 | W31: =LOOKUP(W$6,InputS!$4:$4,InputS!31:31) -> 0 | X31: =LOOKUP(X$6,InputS!$4:$4,InputS!31:31) -> 0 | Y31: =LOOKUP(Y$6,InputS!$4:$4,InputS!31:31) -> 0 | Z31: =LOOKUP(Z$6,InputS!$4:$4,InputS!31:31) -> 0 | AA31: =LOOKUP(AA$6,InputS!$4:$4,InputS!31:31) -> 0 | AB31: =LOOKUP(AB$6,InputS!$4:$4,InputS!31:31) -> 0 | AC31: =LOOKUP(AC$6,InputS!$4:$4,InputS!31:31) -> 0 | AD31: =LOOKUP(AD$6,InputS!$4:$4,InputS!31:31) -> 0 | AE31: =LOOKUP(AE$6,InputS!$4:$4,InputS!31:31) -> 0 | AF31: =LOOKUP(AF$6,InputS!$4:$4,InputS!31:31) -> 0 | AG31: =LOOKUP(AG$6,InputS!$4:$4,InputS!31:31) -> 0 | AH31: =LOOKUP(AH$6,InputS!$4:$4,InputS!31:31) -> 0 | AI31: =LOOKUP(AI$6,InputS!$4:$4,InputS!31:31) -> 0 | AJ31: =LOOKUP(AJ$6,InputS!$4:$4,InputS!31:31) -> 0 | AK31: =LOOKUP(AK$6,InputS!$4:$4,InputS!31:31) -> 0 | AL31: =LOOKUP(AL$6,InputS!$4:$4,InputS!31:31) -> 0 | AM31: =LOOKUP(AM$6,InputS!$4:$4,InputS!31:31) -> 0 | AN31: =LOOKUP(AN$6,InputS!$4:$4,InputS!31:31) -> 0 | AO31: =LOOKUP(AO$6,InputS!$4:$4,InputS!31:31) -> 0 | AP31: =LOOKUP(AP$6,InputS!$4:$4,InputS!31:31) -> 0 | AQ31: =LOOKUP(AQ$6,InputS!$4:$4,InputS!31:31) -> 0 | AR31: =LOOKUP(AR$6,InputS!$4:$4,InputS!31:31) -> 0 | AS31: =LOOKUP(AS$6,InputS!$4:$4,InputS!31:31) -> 0 | AT31: =LOOKUP(AT$6,InputS!$4:$4,InputS!31:31) -> 0 | AU31: =LOOKUP(AU$6,InputS!$4:$4,InputS!31:31) -> 0 | AV31: =LOOKUP(AV$6,InputS!$4:$4,InputS!31:31) -> 0 | AW31: =LOOKUP(AW$6,InputS!$4:$4,InputS!31:31) -> 0 | AX31: =LOOKUP(AX$6,InputS!$4:$4,InputS!31:31) -> 0 | AY31: =LOOKUP(AY$6,InputS!$4:$4,InputS!31:31) -> 0 | AZ31: =LOOKUP(AZ$6,InputS!$4:$4,InputS!31:31) -> 0 | BA31: =LOOKUP(BA$6,InputS!$4:$4,InputS!31:31) -> 0 | BB31: =LOOKUP(BB$6,InputS!$4:$4,InputS!31:31) -> 0 | BC31: =LOOKUP(BC$6,InputS!$4:$4,InputS!31:31) -> 0 | BD31: =LOOKUP(BD$6,InputS!$4:$4,InputS!31:31) -> 0 | BE31: =LOOKUP(BE$6,InputS!$4:$4,InputS!31:31) -> 0 | BF31: =LOOKUP(BF$6,InputS!$4:$4,InputS!31:31) -> 0 | BG31: =LOOKUP(BG$6,InputS!$4:$4,InputS!31:31) -> 0 | BH31: =LOOKUP(BH$6,InputS!$4:$4,InputS!31:31) -> 0 | BI31: =LOOKUP(BI$6,InputS!$4:$4,InputS!31:31) -> 0
D32: Upstream Contingency | F32: % | I32: 1 | L32: =LOOKUP(L$6,InputS!$4:$4,InputS!32:32) -> 0 | M32: =LOOKUP(M$6,InputS!$4:$4,InputS!32:32) -> 0 | N32: =LOOKUP(N$6,InputS!$4:$4,InputS!32:32) -> 0 | O32: =LOOKUP(O$6,InputS!$4:$4,InputS!32:32) -> 0 | P32: =LOOKUP(P$6,InputS!$4:$4,InputS!32:32) -> 1 | Q32: =LOOKUP(Q$6,InputS!$4:$4,InputS!32:32) -> 0 | R32: =LOOKUP(R$6,InputS!$4:$4,InputS!32:32) -> 0 | S32: =LOOKUP(S$6,InputS!$4:$4,InputS!32:32) -> 0 | T32: =LOOKUP(T$6,InputS!$4:$4,InputS!32:32) -> 0 | U32: =LOOKUP(U$6,InputS!$4:$4,InputS!32:32) -> 0 | V32: =LOOKUP(V$6,InputS!$4:$4,InputS!32:32) -> 0 | W32: =LOOKUP(W$6,InputS!$4:$4,InputS!32:32) -> 0 | X32: =LOOKUP(X$6,InputS!$4:$4,InputS!32:32) -> 0 | Y32: =LOOKUP(Y$6,InputS!$4:$4,InputS!32:32) -> 0 | Z32: =LOOKUP(Z$6,InputS!$4:$4,InputS!32:32) -> 0 | AA32: =LOOKUP(AA$6,InputS!$4:$4,InputS!32:32) -> 0 | AB32: =LOOKUP(AB$6,InputS!$4:$4,InputS!32:32) -> 0 | AC32: =LOOKUP(AC$6,InputS!$4:$4,InputS!32:32) -> 0 | AD32: =LOOKUP(AD$6,InputS!$4:$4,InputS!32:32) -> 0 | AE32: =LOOKUP(AE$6,InputS!$4:$4,InputS!32:32) -> 0 | AF32: =LOOKUP(AF$6,InputS!$4:$4,InputS!32:32) -> 0 | AG32: =LOOKUP(AG$6,InputS!$4:$4,InputS!32:32) -> 0 | AH32: =LOOKUP(AH$6,InputS!$4:$4,InputS!32:32) -> 0 | AI32: =LOOKUP(AI$6,InputS!$4:$4,InputS!32:32) -> 0 | AJ32: =LOOKUP(AJ$6,InputS!$4:$4,InputS!32:32) -> 0 | AK32: =LOOKUP(AK$6,InputS!$4:$4,InputS!32:32) -> 0 | AL32: =LOOKUP(AL$6,InputS!$4:$4,InputS!32:32) -> 0 | AM32: =LOOKUP(AM$6,InputS!$4:$4,InputS!32:32) -> 0 | AN32: =LOOKUP(AN$6,InputS!$4:$4,InputS!32:32) -> 0 | AO32: =LOOKUP(AO$6,InputS!$4:$4,InputS!32:32) -> 0 | AP32: =LOOKUP(AP$6,InputS!$4:$4,InputS!32:32) -> 0 | AQ32: =LOOKUP(AQ$6,InputS!$4:$4,InputS!32:32) -> 0 | AR32: =LOOKUP(AR$6,InputS!$4:$4,InputS!32:32) -> 0 | AS32: =LOOKUP(AS$6,InputS!$4:$4,InputS!32:32) -> 0 | AT32: =LOOKUP(AT$6,InputS!$4:$4,InputS!32:32) -> 0 | AU32: =LOOKUP(AU$6,InputS!$4:$4,InputS!32:32) -> 0 | AV32: =LOOKUP(AV$6,InputS!$4:$4,InputS!32:32) -> 0 | AW32: =LOOKUP(AW$6,InputS!$4:$4,InputS!32:32) -> 0 | AX32: =LOOKUP(AX$6,InputS!$4:$4,InputS!32:32) -> 0 | AY32: =LOOKUP(AY$6,InputS!$4:$4,InputS!32:32) -> 0 | AZ32: =LOOKUP(AZ$6,InputS!$4:$4,InputS!32:32) -> 0 | BA32: =LOOKUP(BA$6,InputS!$4:$4,InputS!32:32) -> 0 | BB32: =LOOKUP(BB$6,InputS!$4:$4,InputS!32:32) -> 0 | BC32: =LOOKUP(BC$6,InputS!$4:$4,InputS!32:32) -> 0 | BD32: =LOOKUP(BD$6,InputS!$4:$4,InputS!32:32) -> 0 | BE32: =LOOKUP(BE$6,InputS!$4:$4,InputS!32:32) -> 0 | BF32: =LOOKUP(BF$6,InputS!$4:$4,InputS!32:32) -> 0 | BG32: =LOOKUP(BG$6,InputS!$4:$4,InputS!32:32) -> 0 | BH32: =LOOKUP(BH$6,InputS!$4:$4,InputS!32:32) -> 0 | BI32: =LOOKUP(BI$6,InputS!$4:$4,InputS!32:32) -> 0
D33: Deferred Dev Costs, Op Exp | F33: % | I33: 0.9999932016 | L33: =LOOKUP(L$6,InputS!$4:$4,InputS!33:33) -> 0.3537897793 | M33: =LOOKUP(M$6,InputS!$4:$4,InputS!33:33) -> 0.1585935429 | N33: =LOOKUP(N$6,InputS!$4:$4,InputS!33:33) -> 0.4876098795 | O33: =LOOKUP(O$6,InputS!$4:$4,InputS!33:33) -> 0 | P33: =LOOKUP(P$6,InputS!$4:$4,InputS!33:33) -> 0 | Q33: =LOOKUP(Q$6,InputS!$4:$4,InputS!33:33) -> 0 | R33: =LOOKUP(R$6,InputS!$4:$4,InputS!33:33) -> 0 | S33: =LOOKUP(S$6,InputS!$4:$4,InputS!33:33) -> 0 | T33: =LOOKUP(T$6,InputS!$4:$4,InputS!33:33) -> 0 | U33: =LOOKUP(U$6,InputS!$4:$4,InputS!33:33) -> 0 | V33: =LOOKUP(V$6,InputS!$4:$4,InputS!33:33) -> 0 | W33: =LOOKUP(W$6,InputS!$4:$4,InputS!33:33) -> 0 | X33: =LOOKUP(X$6,InputS!$4:$4,InputS!33:33) -> 0 | Y33: =LOOKUP(Y$6,InputS!$4:$4,InputS!33:33) -> 0 | Z33: =LOOKUP(Z$6,InputS!$4:$4,InputS!33:33) -> 0 | AA33: =LOOKUP(AA$6,InputS!$4:$4,InputS!33:33) -> 0 | AB33: =LOOKUP(AB$6,InputS!$4:$4,InputS!33:33) -> 0 | AC33: =LOOKUP(AC$6,InputS!$4:$4,InputS!33:33) -> 0 | AD33: =LOOKUP(AD$6,InputS!$4:$4,InputS!33:33) -> 0 | AE33: =LOOKUP(AE$6,InputS!$4:$4,InputS!33:33) -> 0 | AF33: =LOOKUP(AF$6,InputS!$4:$4,InputS!33:33) -> 0 | AG33: =LOOKUP(AG$6,InputS!$4:$4,InputS!33:33) -> 0 | AH33: =LOOKUP(AH$6,InputS!$4:$4,InputS!33:33) -> 0 | AI33: =LOOKUP(AI$6,InputS!$4:$4,InputS!33:33) -> 0 | AJ33: =LOOKUP(AJ$6,InputS!$4:$4,InputS!33:33) -> 0 | AK33: =LOOKUP(AK$6,InputS!$4:$4,InputS!33:33) -> 0 | AL33: =LOOKUP(AL$6,InputS!$4:$4,InputS!33:33) -> 0 | AM33: =LOOKUP(AM$6,InputS!$4:$4,InputS!33:33) -> 0 | AN33: =LOOKUP(AN$6,InputS!$4:$4,InputS!33:33) -> 0 | AO33: =LOOKUP(AO$6,InputS!$4:$4,InputS!33:33) -> 0 | AP33: =LOOKUP(AP$6,InputS!$4:$4,InputS!33:33) -> 0 | AQ33: =LOOKUP(AQ$6,InputS!$4:$4,InputS!33:33) -> 0 | AR33: =LOOKUP(AR$6,InputS!$4:$4,InputS!33:33) -> 0 | AS33: =LOOKUP(AS$6,InputS!$4:$4,InputS!33:33) -> 0 | AT33: =LOOKUP(AT$6,InputS!$4:$4,InputS!33:33) -> 0 | AU33: =LOOKUP(AU$6,InputS!$4:$4,InputS!33:33) -> 0 | AV33: =LOOKUP(AV$6,InputS!$4:$4,InputS!33:33) -> 0 | AW33: =LOOKUP(AW$6,InputS!$4:$4,InputS!33:33) -> 0 | AX33: =LOOKUP(AX$6,InputS!$4:$4,InputS!33:33) -> 0 | AY33: =LOOKUP(AY$6,InputS!$4:$4,InputS!33:33) -> 0 | AZ33: =LOOKUP(AZ$6,InputS!$4:$4,InputS!33:33) -> 0 | BA33: =LOOKUP(BA$6,InputS!$4:$4,InputS!33:33) -> 0 | BB33: =LOOKUP(BB$6,InputS!$4:$4,InputS!33:33) -> 0 | BC33: =LOOKUP(BC$6,InputS!$4:$4,InputS!33:33) -> 0 | BD33: =LOOKUP(BD$6,InputS!$4:$4,InputS!33:33) -> 0 | BE33: =LOOKUP(BE$6,InputS!$4:$4,InputS!33:33) -> 0 | BF33: =LOOKUP(BF$6,InputS!$4:$4,InputS!33:33) -> 0 | BG33: =LOOKUP(BG$6,InputS!$4:$4,InputS!33:33) -> 0 | BH33: =LOOKUP(BH$6,InputS!$4:$4,InputS!33:33) -> 0 | BI33: =LOOKUP(BI$6,InputS!$4:$4,InputS!33:33) -> 0
C35: Total Capital Expenditures
D36: Crude Oil Production | F36: USD | I36: =SUM(L36:XFD36) -> 448779000 | L36: =L21*L29 -> 11995000 | M36: 191849000 | N36: 151141000 | O36: 77092000 | P36: 16702000 | Q36: 0 | R36: 0 | S36: 0 | T36: 0 | U36: 0 | V36: 0 | W36: 0 | X36: 0 | Y36: 0 | Z36: 0 | AA36: 0 | AB36: 0 | AC36: 0 | AD36: 0 | AE36: 0 | AF36: 0 | AG36: 0 | AH36: 0 | AI36: 0 | AJ36: 0 | AK36: 0 | AL36: 0 | AM36: 0 | AN36: 0 | AO36: 0 | AP36: 0 | AQ36: 0 | AR36: =AR21*AR29 -> 0 | AS36: 0 | AT36: 0 | AU36: 0 | AV36: 0 | AW36: 0 | AX36: 0 | AY36: 0 | AZ36: 0 | BA36: 0 | BB36: 0 | BC36: 0 | BD36: 0 | BE36: 0 | BF36: 0 | BG36: 0 | BH36: 0 | BI36: 0
D37: Crude Oil Pipeline | F37: USD | I37: =SUM(L37:XFD37) -> 216288000 | L37: =L22*L30 -> 655000 | M37: 170512000 | N37: 45121000 | O37: 0 | P37: 0 | Q37: 0 | R37: 0 | S37: 0 | T37: 0 | U37: 0 | V37: 0 | W37: 0 | X37: 0 | Y37: 0 | Z37: 0 | AA37: 0 | AB37: 0 | AC37: 0 | AD37: 0 | AE37: 0 | AF37: 0 | AG37: 0 | AH37: 0 | AI37: 0 | AJ37: 0 | AK37: 0 | AL37: 0 | AM37: 0 | AN37: 0 | AO37: 0 | AP37: 0 | AQ37: 0 | AR37: =AR22*AR30 -> 0 | AS37: 0 | AT37: 0 | AU37: 0 | AV37: 0 | AW37: 0 | AX37: 0 | AY37: 0 | AZ37: 0 | BA37: 0 | BB37: 0 | BC37: 0 | BD37: 0 | BE37: 0 | BF37: 0 | BG37: 0 | BH37: 0 | BI37: 0
D38: Upgrader & Loading Facility | F38: USD | I38: 1066855000 | L38: =L23*L31 -> 14345000 | M38: 243305000 | N38: 510987000 | O38: 230306000 | P38: 67912000 | Q38: 0 | R38: 0 | S38: 0 | T38: 0 | U38: 0 | V38: 0 | W38: 0 | X38: 0 | Y38: 0 | Z38: 0 | AA38: 0 | AB38: 0 | AC38: 0 | AD38: 0 | AE38: 0 | AF38: 0 | AG38: 0 | AH38: 0 | AI38: 0 | AJ38: 0 | AK38: 0 | AL38: 0 | AM38: 0 | AN38: 0 | AO38: 0 | AP38: 0 | AQ38: 0 | AR38: =AR23*AR31 -> 0 | AS38: 0 | AT38: 0 | AU38: 0 | AV38: 0 | AW38: 0 | AX38: 0 | AY38: 0 | AZ38: 0 | BA38: 0 | BB38: 0 | BC38: 0 | BD38: 0 | BE38: 0 | BF38: 0 | BG38: 0 | BH38: 0 | BI38: 0
D39: Upstream Contingency | F39: USD | I39: 37925000 | L39: =L24*L32 -> 0 | M39: 0 | N39: 0 | O39: 0 | P39: 37925000 | Q39: 0 | R39: 0 | S39: 0 | T39: 0 | U39: 0 | V39: 0 | W39: 0 | X39: 0 | Y39: 0 | Z39: 0 | AA39: 0 | AB39: 0 | AC39: 0 | AD39: 0 | AE39: 0 | AF39: 0 | AG39: 0 | AH39: 0 | AI39: 0 | AJ39: 0 | AK39: 0 | AL39: 0 | AM39: 0 | AN39: 0 | AO39: 0 | AP39: 0 | AQ39: 0 | AR39: =AR24*AR32 -> 0 | AS39: 0 | AT39: 0 | AU39: 0 | AV39: 0 | AW39: 0 | AX39: 0 | AY39: 0 | AZ39: 0 | BA39: 0 | BB39: 0 | BC39: 0 | BD39: 0 | BE39: 0 | BF39: 0 | BG39: 0 | BH39: 0 | BI39: 0
D40: Deferred Dev Costs, Op Exp | F40: USD | I40: 147092000 | L40: =L25*L33 -> 52040000 | M40: 23328000 | N40: 71724000 | O40: 0 | P40: 0 | Q40: 0 | R40: 0 | S40: 0 | T40: 0 | U40: 0 | V40: 0 | W40: 0 | X40: 0 | Y40: 0 | Z40: 0 | AA40: 0 | AB40: 0 | AC40: 0 | AD40: 0 | AE40: 0 | AF40: 0 | AG40: 0 | AH40: 0 | AI40: 0 | AJ40: 0 | AK40: 0 | AL40: 0 | AM40: 0 | AN40: 0 | AO40: 0 | AP40: 0 | AQ40: 0 | AR40: =AR25*AR33 -> 0 | AS40: 0 | AT40: 0 | AU40: 0 | AV40: 0 | AW40: 0 | AX40: 0 | AY40: 0 | AZ40: 0 | BA40: 0 | BB40: 0 | BC40: 0 | BD40: 0 | BE40: 0 | BF40: 0 | BG40: 0 | BH40: 0 | BI40: 0
E41: Total Capital Expenditures | F41: USD | I41: =SUM(L41:XFD41) -> 1916939000 | L41: =SUM(L36:L40) -> 79035000 | M41: =SUM(M36:M40) -> 628994000 | N41: 778973000 | O41: 307398000 | P41: 122539000 | Q41: 0 | R41: 0 | S41: 0 | T41: 0 | U41: 0 | V41: 0 | W41: 0 | X41: 0 | Y41: 0 | Z41: 0 | AA41: 0 | AB41: 0 | AC41: 0 | AD41: 0 | AE41: 0 | AF41: 0 | AG41: 0 | AH41: 0 | AI41: 0 | AJ41: 0 | AK41: 0 | AL41: 0 | AM41: 0 | AN41: 0 | AO41: 0 | AP41: 0 | AQ41: 0 | AR41: 0 | AS41: 0 | AT41: 0 | AU41: 0 | AV41: 0 | AW41: 0 | AX41: 0 | AY41: 0 | AZ41: 0 | BA41: 0 | BB41: 0 | BC41: 0 | BD41: 0 | BE41: 0 | BF41: 0 | BG41: 0 | BH41: 0 | BI41: 0
C43: Revenues
D44: Oil Price | F44: USD/BBL | L44: =LOOKUP(L6,InputS!4:4,InputS!15:15) -> 12.25 | M44: =LOOKUP(M6,InputS!4:4,InputS!15:15) -> 12.56 | N44: =LOOKUP(N6,InputS!4:4,InputS!15:15) -> 12.87 | O44: =LOOKUP(O6,InputS!4:4,InputS!15:15) -> 13.19 | P44: =LOOKUP(P6,InputS!4:4,InputS!15:15) -> 13.52 | Q44: =LOOKUP(Q6,InputS!4:4,InputS!15:15) -> 13.86 | R44: =LOOKUP(R6,InputS!4:4,InputS!15:15) -> 14.21 | S44: =LOOKUP(S6,InputS!4:4,InputS!15:15) -> 14.56 | T44: =LOOKUP(T6,InputS!4:4,InputS!15:15) -> 14.93 | U44: =LOOKUP(U6,InputS!4:4,InputS!15:15) -> 15.3 | V44: =LOOKUP(V6,InputS!4:4,InputS!15:15) -> 15.68 | W44: =LOOKUP(W6,InputS!4:4,InputS!15:15) -> 16.07 | X44: =LOOKUP(X6,InputS!4:4,InputS!15:15) -> 16.47 | Y44: =LOOKUP(Y6,InputS!4:4,InputS!15:15) -> 16.89 | Z44: =LOOKUP(Z6,InputS!4:4,InputS!15:15) -> 17.31 | AA44: =LOOKUP(AA6,InputS!4:4,InputS!15:15) -> 17.74 | AB44: =LOOKUP(AB6,InputS!4:4,InputS!15:15) -> 18.19 | AC44: =LOOKUP(AC6,InputS!4:4,InputS!15:15) -> 18.64 | AD44: =LOOKUP(AD6,InputS!4:4,InputS!15:15) -> 19.1992 | AE44: =LOOKUP(AE6,InputS!4:4,InputS!15:15) -> 19.775176 | AF44: =LOOKUP(AF6,InputS!4:4,InputS!15:15) -> 20.36843128 | AG44: =LOOKUP(AG6,InputS!4:4,InputS!15:15) -> 20.97948422 | AH44: =LOOKUP(AH6,InputS!4:4,InputS!15:15) -> 21.60886874 | AI44: =LOOKUP(AI6,InputS!4:4,InputS!15:15) -> 22.25713481 | AJ44: =LOOKUP(AJ6,InputS!4:4,InputS!15:15) -> 22.92484885 | AK44: =LOOKUP(AK6,InputS!4:4,InputS!15:15) -> 23.61259432 | AL44: =LOOKUP(AL6,InputS!4:4,InputS!15:15) -> 24.32097215 | AM44: =LOOKUP(AM6,InputS!4:4,InputS!15:15) -> 25.05060131 | AN44: =LOOKUP(AN6,InputS!4:4,InputS!15:15) -> 25.80211935 | AO44: =LOOKUP(AO6,InputS!4:4,InputS!15:15) -> 26.57618293 | AP44: =LOOKUP(AP6,InputS!4:4,InputS!15:15) -> 27.37346842 | AQ44: =LOOKUP(AQ6,InputS!4:4,InputS!15:15) -> 28.19467247 | AR44: =LOOKUP(AR6,InputS!4:4,InputS!15:15) -> 29.04051265 | AS44: =LOOKUP(AS6,InputS!4:4,InputS!15:15) -> 29.91172802 | AT44: =LOOKUP(AT6,InputS!4:4,InputS!15:15) -> 30.80907987 | AU44: =LOOKUP(AU6,InputS!4:4,InputS!15:15) -> 31.73335226 | AV44: =LOOKUP(AV6,InputS!4:4,InputS!15:15) -> 32.68535283 | AW44: =LOOKUP(AW6,InputS!4:4,InputS!15:15) -> 33.66591341 | AX44: =LOOKUP(AX6,InputS!4:4,InputS!15:15) -> 34.67589082 | AY44: =LOOKUP(AY6,InputS!4:4,InputS!15:15) -> 34.67589082 | AZ44: =LOOKUP(AZ6,InputS!4:4,InputS!15:15) -> 34.67589082 | BA44: =LOOKUP(BA6,InputS!4:4,InputS!15:15) -> 34.67589082 | BB44: =LOOKUP(BB6,InputS!4:4,InputS!15:15) -> 34.67589082 | BC44: =LOOKUP(BC6,InputS!4:4,InputS!15:15) -> 34.67589082 | BD44: =LOOKUP(BD6,InputS!4:4,InputS!15:15) -> 34.67589082 | BE44: =LOOKUP(BE6,InputS!4:4,InputS!15:15) -> 34.67589082 | BF44: =LOOKUP(BF6,InputS!4:4,InputS!15:15) -> 34.67589082 | BG44: =LOOKUP(BG6,InputS!4:4,InputS!15:15) -> 34.67589082 | BH44: =LOOKUP(BH6,InputS!4:4,InputS!15:15) -> 34.67589082 | BI44: =LOOKUP(BI6,InputS!4:4,InputS!15:15) -> 34.67589082
D45: Oil Production | F45: BBL | I45: =SUM(L45:XFD45) -> 1556117309 | L45: =L13 -> 0 | M45: =M13 -> 0 | N45: 6101320.901 | O45: 32529112.96 | P45: 59475443.79 | Q45: 41064646.46 | R45: 41069458.13 | S45: 41098763.74 | T45: 41096316.14 | U45: 41118758.17 | V45: 41138520.41 | W45: 41156565.03 | X45: 41173406.19 | Y45: 41165364.12 | Z45: 41182495.67 | AA45: 41200225.48 | AB45: 41196536.56 | AC45: 41217757.51 | AD45: 41244527.9 | AE45: 41271942.06 | AF45: 41299946.35 | AG45: 41328594.42 | AH45: 41357886.27 | AI45: 41387768.24 | AJ45: 41945225.32 | AK45: 41976448.5 | AL45: 42008369.1 | AM45: 42040987.12 | AN45: 42074356.22 | AO45: 42108422.75 | AP45: 42143240.34 | AQ45: 42178862.66 | AR45: 42215182.4 | AS45: 42252360.52 | AT45: 42290289.7 | AU45: 42329077.25 | AV45: 42368723.18 | AW45: 42409227.47 | AX45: 42450590.13 | AY45: 42450590.13 | AZ45: 0 | BA45: 0 | BB45: 0 | BC45: 0 | BD45: 0 | BE45: 0 | BF45: 0 | BG45: 0 | BH45: 0 | BI45: 0
E46: Revenues | F46: USD | I46: =SUM(L46:XFD46) -> 3.45456368e+10 | L46: =L44*L45 -> 0 | M46: =M44*M45 -> 0 | N46: 78524000 | O46: 429059000 | P46: 804108000 | Q46: 569156000 | R46: 583597000 | S46: 598398000 | T46: 613568000 | U46: 629117000 | V46: 645052000 | W46: 661386000 | X46: 678126000 | Y46: 695283000 | Z46: 712869000 | AA46: 730892000 | AB46: 749365000 | AC46: 768299000 | AD46: 791861940 | AE46: 816159918.1 | AF46: 841215119.1 | AG46: 867052594.4 | AH46: 893697135.9 | AI46: 921173137.1 | AJ46: 961587950.5 | AK46: 991172849.3 | AL46: 1021684375 | AM46: 1053152007 | AN46: 1085607561 | AO46: 1119081146 | AP46: 1153606659 | AQ46: 1189219218 | AR46: 1225950538 | AS46: 1263841116 | AT46: 1302924913 | AU46: 1343243519 | AV46: 1384836666 | AW46: 1427745380 | AX46: 1472012028 | AY46: 1472012028 | AZ46: 0 | BA46: 0 | BB46: 0 | BC46: 0 | BD46: 0 | BE46: 0 | BF46: 0 | BG46: 0 | BH46: 0 | BI46: 0
C48: Expenses
D49: Base Royalty Period (TRUE) | F49: Flag | G49: =InputC!G38 -> 2001 | L49: =L6<=$G$49 -> TRUE | M49: =M6<=$G$49 -> TRUE | N49: TRUE | O49: TRUE | P49: TRUE | Q49: TRUE | R49: FALSE | S49: FALSE | T49: FALSE | U49: FALSE | V49: FALSE | W49: FALSE | X49: FALSE | Y49: FALSE | Z49: FALSE | AA49: FALSE | AB49: FALSE | AC49: FALSE | AD49: FALSE | AE49: FALSE | AF49: FALSE | AG49: FALSE | AH49: FALSE | AI49: FALSE | AJ49: FALSE | AK49: FALSE | AL49: FALSE | AM49: FALSE | AN49: FALSE | AO49: FALSE | AP49: FALSE | AQ49: FALSE | AR49: FALSE | AS49: FALSE | AT49: FALSE | AU49: FALSE | AV49: FALSE | AW49: FALSE | AX49: FALSE | AY49: FALSE | AZ49: FALSE | BA49: FALSE | BB49: FALSE | BC49: FALSE | BD49: FALSE | BE49: FALSE | BF49: FALSE | BG49: FALSE | BH49: FALSE | BI49: FALSE
D50: Royalty | F50: % | G50: =InputC!G39 -> 0.01 | H50: =InputC!G40 -> 0.01 | L50: =IF(L49,$G$50,$H$50) -> 0.01 | M50: =IF(M49,$G$50,$H$50) -> 0.01 | N50: 0.01 | O50: 0.01 | P50: 0.01 | Q50: 0.01 | R50: 0.01 | S50: 0.01 | T50: 0.01 | U50: 0.01 | V50: 0.01 | W50: 0.01 | X50: 0.01 | Y50: 0.01 | Z50: 0.01 | AA50: 0.01 | AB50: 0.01 | AC50: 0.01 | AD50: 0.01 | AE50: 0.01 | AF50: 0.01 | AG50: 0.01 | AH50: 0.01 | AI50: 0.01 | AJ50: 0.01 | AK50: 0.01 | AL50: 0.01 | AM50: 0.01 | AN50: 0.01 | AO50: 0.01 | AP50: 0.01 | AQ50: 0.01 | AR50: 0.01 | AS50: 0.01 | AT50: 0.01 | AU50: 0.01 | AV50: 0.01 | AW50: 0.01 | AX50: 0.01 | AY50: 0.01 | AZ50: 0.01 | BA50: 0.01 | BB50: 0.01 | BC50: 0.01 | BD50: 0.01 | BE50: 0.01 | BF50: 0.01 | BG50: 0.01 | BH50: 0.01 | BI50: 0.01
D51: Royalty Amount | F51: USD | L51: =L50*L46 -> 0 | M51: =M50*M46 -> 0 | N51: 785240 | O51: 4290590 | P51: 8041080 | Q51: 5691560 | R51: 5835970 | S51: 5983980 | T51: 6135680 | U51: 6291170 | V51: 6450520 | W51: 6613860 | X51: 6781260 | Y51: 6952830 | Z51: 7128690 | AA51: 7308920 | AB51: 7493650 | AC51: 7682990 | AD51: 7918619.4 | AE51: 8161599.181 | AF51: 8412151.191 | AG51: 8670525.944 | AH51: 8936971.359 | AI51: 9211731.371 | AJ51: 9615879.505 | AK51: 9911728.493 | AL51: 10216843.75 | AM51: 10531520.07 | AN51: 10856075.61 | AO51: 11190811.46 | AP51: 11536066.59 | AQ51: 11892192.18 | AR51: 12259505.38 | AS51: 12638411.16 | AT51: 13029249.13 | AU51: 13432435.19 | AV51: 13848366.66 | AW51: 14277453.8 | AX51: 14720120.28 | AY51: 14720120.28 | AZ51: 0 | BA51: 0 | BB51: 0 | BC51: 0 | BD51: 0 | BE51: 0 | BF51: 0 | BG51: 0 | BH51: 0 | BI51: 0
D53: Inflation Rate | F53: % | G53: =InputC!G36 -> 0.03 | K53: 1 | L53: 1 | M53: =L53*(1+$G$53) -> 1.03 | N53: 1.0609 | O53: 1.092727 | P53: 1.12550881 | Q53: 1.159274074 | R53: 1.194052297 | S53: 1.229873865 | T53: 1.266770081 | U53: 1.304773184 | V53: 1.343916379 | W53: 1.384233871 | X53: 1.425760887 | Y53: 1.468533713 | Z53: 1.512589725 | AA53: 1.557967417 | AB53: 1.604706439 | AC53: 1.652847632 | AD53: 1.702433061 | AE53: 1.753506053 | AF53: 1.806111235 | AG53: 1.860294572 | AH53: 1.916103409 | AI53: 1.973586511 | AJ53: 2.032794106 | AK53: 2.09377793 | AL53: 2.156591268 | AM53: 2.221289006 | AN53: 2.287927676 | AO53: 2.356565506 | AP53: 2.427262471 | AQ53: 2.500080345 | AR53: 2.575082756 | AS53: 2.652335238 | AT53: 2.731905296 | AU53: 2.813862454 | AV53: 2.898278328 | AW53: 2.985226678 | AX53: 3.074783478 | AY53: 3.167026983 | AZ53: 3.262037792 | BA53: 3.359898926 | BB53: 3.460695894 | BC53: 3.56451677 | BD53: 3.671452273 | BE53: 3.781595842 | BF53: 3.895043717 | BG53: 4.011895028 | BH53: 4.132251879 | BI53: 4.256219436
D55: Real Expenses | F55: USD | I55: =SUM(L55:XFD55) -> 5222825815 | L55: =LOOKUP(L6,InputS!4:4,InputS!48:48)*OR(L7,L8) -> 0 | M55: =LOOKUP(M6,InputS!4:4,InputS!48:48)*OR(M7,M8) -> 0 | N55: =LOOKUP(N6,InputS!4:4,InputS!48:48)*OR(N7,N8) -> 64924560.85 | O55: =LOOKUP(O6,InputS!4:4,InputS!48:48)*OR(O7,O8) -> 160734240.7 | P55: =LOOKUP(P6,InputS!4:4,InputS!48:48)*OR(P7,P8) -> 271752046.2 | Q55: =LOOKUP(Q6,InputS!4:4,InputS!48:48)*OR(Q7,Q8) -> 36307163.64 | R55: =LOOKUP(R6,InputS!4:4,InputS!48:48)*OR(R7,R8) -> 40114993.7 | S55: =LOOKUP(S6,InputS!4:4,InputS!48:48)*OR(S7,S8) -> 91448749.5 | T55: =LOOKUP(T6,InputS!4:4,InputS!48:48)*OR(T7,T8) -> 52386463.18 | U55: =LOOKUP(U6,InputS!4:4,InputS!48:48)*OR(U7,U8) -> 66501536.05 | V55: =LOOKUP(V6,InputS!4:4,InputS!48:48)*OR(V7,V8) -> 28742329.99 | W55: =LOOKUP(W6,InputS!4:4,InputS!48:48)*OR(W7,W8) -> 35795649.67 | X55: =LOOKUP(X6,InputS!4:4,InputS!48:48)*OR(X7,X8) -> 40765496.65 | Y55: =LOOKUP(Y6,InputS!4:4,InputS!48:48)*OR(Y7,Y8) -> 126818949.8 | Z55: =LOOKUP(Z6,InputS!4:4,InputS!48:48)*OR(Z7,Z8) -> 135648094 | AA55: =LOOKUP(AA6,InputS!4:4,InputS!48:48)*OR(AA7,AA8) -> 133994636.8 | AB55: =LOOKUP(AB6,InputS!4:4,InputS!48:48)*OR(AB7,AB8) -> 129995999.7 | AC55: =LOOKUP(AC6,InputS!4:4,InputS!48:48)*OR(AC7,AC8) -> 198671131.7 | AD55: =LOOKUP(AD6,InputS!4:4,InputS!48:48)*OR(AD7,AD8) -> 161169377.2 | AE55: =LOOKUP(AE6,InputS!4:4,InputS!48:48)*OR(AE7,AE8) -> 121573042.3 | AF55: =LOOKUP(AF6,InputS!4:4,InputS!48:48)*OR(AF7,AF8) -> 123260396.3 | AG55: =LOOKUP(AG6,InputS!4:4,InputS!48:48)*OR(AG7,AG8) -> 117312999.5 | AH55: =LOOKUP(AH6,InputS!4:4,InputS!48:48)*OR(AH7,AH8) -> 164393324.1 | AI55: =LOOKUP(AI6,InputS!4:4,InputS!48:48)*OR(AI7,AI8) -> 177378077.9 | AJ55: =LOOKUP(AJ6,InputS!4:4,InputS!48:48)*OR(AJ7,AJ8) -> 199793629.6 | AK55: =LOOKUP(AK6,InputS!4:4,InputS!48:48)*OR(AK7,AK8) -> 180457315.9 | AL55: =LOOKUP(AL6,InputS!4:4,InputS!48:48)*OR(AL7,AL8) -> 178719933.1 | AM55: =LOOKUP(AM6,InputS!4:4,InputS!48:48)*OR(AM7,AM8) -> 172808219.7 | AN55: =LOOKUP(AN6,InputS!4:4,InputS!48:48)*OR(AN7,AN8) -> 171886049.5 | AO55: =LOOKUP(AO6,InputS!4:4,InputS!48:48)*OR(AO7,AO8) -> 167153750 | AP55: =LOOKUP(AP6,InputS!4:4,InputS!48:48)*OR(AP7,AP8) -> 171052397.4 | AQ55: =LOOKUP(AQ6,InputS!4:4,InputS!48:48)*OR(AQ7,AQ8) -> 167271916 | AR55: =LOOKUP(AR6,InputS!4:4,InputS!48:48)*OR(AR7,AR8) -> 164318882.4 | AS55: =LOOKUP(AS6,InputS!4:4,InputS!48:48)*OR(AS7,AS8) -> 167051834.8 | AT55: =LOOKUP(AT6,InputS!4:4,InputS!48:48)*OR(AT7,AT8) -> 172864519.4 | AU55: =LOOKUP(AU6,InputS!4:4,InputS!48:48)*OR(AU7,AU8) -> 166376359 | AV55: =LOOKUP(AV6,InputS!4:4,InputS!48:48)*OR(AV7,AV8) -> 166326874.9 | AW55: =LOOKUP(AW6,InputS!4:4,InputS!48:48)*OR(AW7,AW8) -> 163130010.2 | AX55: =LOOKUP(AX6,InputS!4:4,InputS!48:48)*OR(AX7,AX8) -> 166962431.7 | AY55: =LOOKUP(AY6,InputS!4:4,InputS!48:48)*OR(AY7,AY8) -> 166962431.7 | AZ55: =LOOKUP(AZ6,InputS!4:4,InputS!48:48)*OR(AZ7,AZ8) -> 0 | BA55: =LOOKUP(BA6,InputS!4:4,InputS!48:48)*OR(BA7,BA8) -> 0 | BB55: =LOOKUP(BB6,InputS!4:4,InputS!48:48)*OR(BB7,BB8) -> 0 | BC55: =LOOKUP(BC6,InputS!4:4,InputS!48:48)*OR(BC7,BC8) -> 0 | BD55: =LOOKUP(BD6,InputS!4:4,InputS!48:48)*OR(BD7,BD8) -> 0 | BE55: =LOOKUP(BE6,InputS!4:4,InputS!48:48)*OR(BE7,BE8) -> 0 | BF55: =LOOKUP(BF6,InputS!4:4,InputS!48:48)*OR(BF7,BF8) -> 0 | BG55: =LOOKUP(BG6,InputS!4:4,InputS!48:48)*OR(BG7,BG8) -> 0 | BH55: =LOOKUP(BH6,InputS!4:4,InputS!48:48)*OR(BH7,BH8) -> 0 | BI55: =LOOKUP(BI6,InputS!4:4,InputS!48:48)*OR(BI7,BI8) -> 0
D56: Nominal Expenses | F56: USD | I56: =SUM(L56:XFD56) -> 1.077452998e+10 | L56: =L55*L53 -> 0 | M56: =M55*M53 -> 0 | N56: 68878466.61 | O56: 175638644.6 | P56: 305859322.2 | Q56: 42089953.52 | R56: 47899400.36 | S56: 112470427 | T56: 66361604.23 | U56: 86769420.93 | V56: 38627288.05 | W56: 49549550.7 | X56: 58121850.66 | Y56: 186237903.3 | Z56: 205179913.2 | AA56: 208759278.1 | AB56: 208605417.8 | AC56: 328373109.6 | AD56: 274380076.3 | AE56: 213179065.5 | AF56: 222621986.6 | AG56: 218236736.1 | AH56: 314994608.7 | AI56: 350070981.8 | AJ56: 406139312.8 | AK56: 377837545.3 | AL56: 385425847.1 | AM56: 383856998.4 | AN56: 393262849.8 | AO56: 393908761.5 | AP56: 415189064.8 | AQ56: 418193229.5 | AR56: 423134720.4 | AS56: 443077468 | AT56: 472249495.9 | AU56: 468160189.9 | AV56: 482061576.9 | AW56: 486980058.4 | AX56: 513373326.4 | AY56: 528774526.2 | AZ56: 0 | BA56: 0 | BB56: 0 | BC56: 0 | BD56: 0 | BE56: 0 | BF56: 0 | BG56: 0 | BH56: 0 | BI56: 0
E57: Total Expenses | F57: USD | I57: =SUM(L57:XFD57) -> 1.111998635e+10 | L57: =L56+L51 -> 0 | M57: =M56+M51 -> 0 | N57: =N56+N51 -> 69663706.61 | O57: =O56+O51 -> 179929234.6 | P57: =P56+P51 -> 313900402.2 | Q57: =Q56+Q51 -> 47781513.52 | R57: =R56+R51 -> 53735370.36 | S57: =S56+S51 -> 118454407 | T57: =T56+T51 -> 72497284.23 | U57: =U56+U51 -> 93060590.93 | V57: =V56+V51 -> 45077808.05 | W57: =W56+W51 -> 56163410.7 | X57: =X56+X51 -> 64903110.66 | Y57: =Y56+Y51 -> 193190733.3 | Z57: =Z56+Z51 -> 212308603.2 | AA57: =AA56+AA51 -> 216068198.1 | AB57: =AB56+AB51 -> 216099067.8 | AC57: =AC56+AC51 -> 336056099.6 | AD57: =AD56+AD51 -> 282298695.7 | AE57: =AE56+AE51 -> 221340664.7 | AF57: =AF56+AF51 -> 231034137.8 | AG57: =AG56+AG51 -> 226907262 | AH57: =AH56+AH51 -> 323931580.1 | AI57: =AI56+AI51 -> 359282713.2 | AJ57: =AJ56+AJ51 -> 415755192.3 | AK57: =AK56+AK51 -> 387749273.8 | AL57: =AL56+AL51 -> 395642690.9 | AM57: =AM56+AM51 -> 394388518.5 | AN57: =AN56+AN51 -> 404118925.4 | AO57: =AO56+AO51 -> 405099573 | AP57: =AP56+AP51 -> 426725131.4 | AQ57: =AQ56+AQ51 -> 430085421.7 | AR57: =AR56+AR51 -> 435394225.8 | AS57: =AS56+AS51 -> 455715879.1 | AT57: =AT56+AT51 -> 485278745 | AU57: =AU56+AU51 -> 481592625.1 | AV57: =AV56+AV51 -> 495909943.5 | AW57: =AW56+AW51 -> 501257512.2 | AX57: =AX56+AX51 -> 528093446.7 | AY57: =AY56+AY51 -> 543494646.5 | AZ57: =AZ56+AZ51 -> 0 | BA57: =BA56+BA51 -> 0 | BB57: =BB56+BB51 -> 0 | BC57: =BC56+BC51 -> 0 | BD57: =BD56+BD51 -> 0 | BE57: =BE56+BE51 -> 0 | BF57: =BF56+BF51 -> 0 | BG57: =BG56+BG51 -> 0 | BH57: =BH56+BH51 -> 0 | BI57: =BI56+BI51 -> 0
D59: Free Cash Flow and Project IRR
E60: EBITDA | F60: USD | I60: =SUM(L60:XFD60) -> 0
E61: Less: Capital Expenditues | F61: USD | I61: =SUM(L61:XFD61) -> 0
E62: Free Cash Flow | F62: USD | I62: =SUM(L62:XFD62) -> 0
D64: Project IRR | F64: % p.a. | G64: =IFERROR(IRR(L62:BI62),FALSE) -> FALSE
B66: Depreciation and Taxes Before Financing
C67: Depreciation
D68: Depreciation Period | I68: =SUM(L68:XFD68) -> 35 | L68: =L8 -> 0 | M68: 0 | N68: 0 | O68: 0 | P68: 0 | Q68: 1 | R68: 1 | S68: 1 | T68: 1 | U68: 1 | V68: 1 | W68: 1 | X68: 1 | Y68: 1 | Z68: 1 | AA68: 1 | AB68: 1 | AC68: 1 | AD68: 1 | AE68: 1 | AF68: 1 | AG68: 1 | AH68: 1 | AI68: 1 | AJ68: 1 | AK68: 1 | AL68: 1 | AM68: 1 | AN68: 1 | AO68: 1 | AP68: 1 | AQ68: 1 | AR68: =AR8 -> 1 | AS68: 1 | AT68: 1 | AU68: 1 | AV68: 1 | AW68: 1 | AX68: 1 | AY68: 1 | AZ68: 0 | BA68: 0 | BB68: 0 | BC68: 0 | BD68: 0 | BE68: 0 | BF68: 0 | BG68: 0 | BH68: 0 | BI68: 0
D69: Depreciation Rate | G69: =I68 -> 35 | I69: =SUM(L69:XFD69) -> 1 | L69: =L68/$G$69 -> 0 | M69: =M68/$G$69 -> 0 | N69: 0 | O69: 0 | P69: 0 | Q69: 0.02857142857 | R69: 0.02857142857 | S69: 0.02857142857 | T69: 0.02857142857 | U69: 0.02857142857 | V69: 0.02857142857 | W69: 0.02857142857 | X69: 0.02857142857 | Y69: 0.02857142857 | Z69: 0.02857142857 | AA69: 0.02857142857 | AB69: 0.02857142857 | AC69: 0.02857142857 | AD69: 0.02857142857 | AE69: 0.02857142857 | AF69: 0.02857142857 | AG69: 0.02857142857 | AH69: 0.02857142857 | AI69: 0.02857142857 | AJ69: 0.02857142857 | AK69: 0.02857142857 | AL69: 0.02857142857 | AM69: 0.02857142857 | AN69: 0.02857142857 | AO69: 0.02857142857 | AP69: 0.02857142857 | AQ69: 0.02857142857 | AR69: 0.02857142857 | AS69: 0.02857142857 | AT69: 0.02857142857 | AU69: 0.02857142857 | AV69: 0.02857142857 | AW69: 0.02857142857 | AX69: 0.02857142857 | AY69: 0.02857142857 | AZ69: 0 | BA69: 0 | BB69: 0 | BC69: 0 | BD69: 0 | BE69: 0 | BF69: 0 | BG69: 0 | BH69: 0 | BI69: 0
D71: Accumulated Direct Capital Expenditures | F71: USD | L71: =K71+L25 -> 147093000 | M71: =L71+M25 -> 294186000 | N71: =M71+N25 -> 441279000 | O71: =N71+O25 -> 588372000 | P71: =O71+P25 -> 735465000 | Q71: =P71+Q25 -> 735465000 | R71: =Q71+R25 -> 735465000 | S71: =R71+S25 -> 735465000 | T71: =S71+T25 -> 735465000 | U71: =T71+U25 -> 735465000 | V71: =U71+V25 -> 735465000 | W71: =V71+W25 -> 735465000 | X71: =W71+X25 -> 735465000 | Y71: =X71+Y25 -> 735465000 | Z71: =Y71+Z25 -> 735465000 | AA71: =Z71+AA25 -> 735465000 | AB71: =AA71+AB25 -> 735465000 | AC71: =AB71+AC25 -> 735465000 | AD71: =AC71+AD25 -> 735465000 | AE71: =AD71+AE25 -> 735465000 | AF71: =AE71+AF25 -> 735465000 | AG71: =AF71+AG25 -> 735465000 | AH71: =AG71+AH25 -> 735465000 | AI71: =AH71+AI25 -> 735465000 | AJ71: =AI71+AJ25 -> 735465000 | AK71: =AJ71+AK25 -> 735465000 | AL71: =AK71+AL25 -> 735465000 | AM71: =AL71+AM25 -> 735465000 | AN71: =AM71+AN25 -> 735465000 | AO71: =AN71+AO25 -> 735465000 | AP71: =AO71+AP25 -> 735465000 | AQ71: =AP71+AQ25 -> 735465000 | AR71: =AQ71+AR25 -> 735465000 | AS71: =AR71+AS25 -> 735465000 | AT71: =AS71+AT25 -> 735465000 | AU71: =AT71+AU25 -> 735465000 | AV71: =AU71+AV25 -> 735465000 | AW71: =AV71+AW25 -> 735465000 | AX71: =AW71+AX25 -> 735465000 | AY71: =AX71+AY25 -> 735465000 | AZ71: =AY71+AZ25 -> 735465000 | BA71: =AZ71+BA25 -> 735465000 | BB71: =BA71+BB25 -> 735465000 | BC71: =BB71+BC25 -> 735465000 | BD71: =BC71+BD25 -> 735465000 | BE71: =BD71+BE25 -> 735465000 | BF71: =BE71+BF25 -> 735465000 | BG71: =BF71+BG25 -> 735465000 | BH71: =BG71+BH25 -> 735465000 | BI71: =BH71+BI25 -> 735465000
D72: Total Depreciation Base | F72: USD | L72: =L71 -> 147093000 | M72: =M71 -> 294186000 | N72: 441279000 | O72: 588372000 | P72: 735465000 | Q72: 735465000 | R72: 735465000 | S72: 735465000 | T72: 735465000 | U72: 735465000 | V72: 735465000 | W72: 735465000 | X72: 735465000 | Y72: 735465000 | Z72: 735465000 | AA72: 735465000 | AB72: 735465000 | AC72: 735465000 | AD72: 735465000 | AE72: 735465000 | AF72: 735465000 | AG72: 735465000 | AH72: 735465000 | AI72: 735465000 | AJ72: 735465000 | AK72: 735465000 | AL72: 735465000 | AM72: 735465000 | AN72: 735465000 | AO72: 735465000 | AP72: 735465000 | AQ72: 735465000 | AR72: 735465000 | AS72: 735465000 | AT72: 735465000 | AU72: 735465000 | AV72: 735465000 | AW72: 735465000 | AX72: 735465000 | AY72: 735465000 | AZ72: 735465000 | BA72: 735465000 | BB72: 735465000 | BC72: 735465000 | BD72: 735465000 | BE72: 735465000 | BF72: 735465000 | BG72: 735465000 | BH72: 735465000 | BI72: 735465000
D74: Depreciation Expense | F74: USD | I74: =SUM(L74:XFD74) -> 735465000 | L74: =L72*L69 -> 0 | M74: =M72*M69 -> 0 | N74: 0 | O74: 0 | P74: 0 | Q74: 21013285.71 | R74: 21013285.71 | S74: 21013285.71 | T74: 21013285.71 | U74: 21013285.71 | V74: 21013285.71 | W74: 21013285.71 | X74: 21013285.71 | Y74: 21013285.71 | Z74: 21013285.71 | AA74: 21013285.71 | AB74: 21013285.71 | AC74: 21013285.71 | AD74: 21013285.71 | AE74: 21013285.71 | AF74: 21013285.71 | AG74: 21013285.71 | AH74: 21013285.71 | AI74: 21013285.71 | AJ74: 21013285.71 | AK74: 21013285.71 | AL74: 21013285.71 | AM74: 21013285.71 | AN74: 21013285.71 | AO74: 21013285.71 | AP74: 21013285.71 | AQ74: 21013285.71 | AR74: 21013285.71 | AS74: 21013285.71 | AT74: 21013285.71 | AU74: 21013285.71 | AV74: 21013285.71 | AW74: 21013285.71 | AX74: 21013285.71 | AY74: 21013285.71 | AZ74: 0 | BA74: 0 | BB74: 0 | BC74: 0 | BD74: 0 | BE74: 0 | BF74: 0 | BG74: 0 | BH74: 0 | BI74: 0
D76: EBITDA | F76: USD | I76: =SUM(L76:XFD76) -> 0 | L76: =L60 -> 0 | M76: =M60 -> 0 | N76: 0 | O76: 0 | P76: 0 | Q76: 0 | R76: 0 | S76: 0 | T76: 0 | U76: 0 | V76: 0 | W76: 0 | X76: 0 | Y76: 0 | Z76: 0 | AA76: 0 | AB76: 0 | AC76: 0 | AD76: 0 | AE76: 0 | AF76: 0 | AG76: 0 | AH76: 0 | AI76: 0 | AJ76: 0 | AK76: 0 | AL76: 0 | AM76: 0 | AN76: 0 | AO76: 0 | AP76: 0 | AQ76: 0 | AR76: 0 | AS76: 0 | AT76: 0 | AU76: 0 | AV76: 0 | AW76: 0 | AX76: 0 | AY76: 0 | AZ76: 0 | BA76: 0 | BB76: 0 | BC76: 0 | BD76: 0 | BE76: 0 | BF76: 0 | BG76: 0 | BH76: 0 | BI76: 0
D77: Less: Depreciation | F77: USD | I77: =SUM(L77:XFD77) -> 735465000 | L77: =L74 -> 0 | M77: =M74 -> 0 | N77: 0 | O77: 0 | P77: 0 | Q77: 21013285.71 | R77: 21013285.71 | S77: 21013285.71 | T77: 21013285.71 | U77: 21013285.71 | V77: 21013285.71 | W77: 21013285.71 | X77: 21013285.71 | Y77: 21013285.71 | Z77: 21013285.71 | AA77: 21013285.71 | AB77: 21013285.71 | AC77: 21013285.71 | AD77: 21013285.71 | AE77: 21013285.71 | AF77: 21013285.71 | AG77: 21013285.71 | AH77: 21013285.71 | AI77: 21013285.71 | AJ77: 21013285.71 | AK77: 21013285.71 | AL77: 21013285.71 | AM77: 21013285.71 | AN77: 21013285.71 | AO77: 21013285.71 | AP77: 21013285.71 | AQ77: 21013285.71 | AR77: 21013285.71 | AS77: 21013285.71 | AT77: 21013285.71 | AU77: 21013285.71 | AV77: 21013285.71 | AW77: 21013285.71 | AX77: 21013285.71 | AY77: 21013285.71 | AZ77: 0 | BA77: 0 | BB77: 0 | BC77: 0 | BD77: 0 | BE77: 0 | BF77: 0 | BG77: 0 | BH77: 0 | BI77: 0
D78: EBIT | F78: USD | I78: =SUM(L78:XFD78) -> -735465000 | L78: =L76-L77 -> 0 | M78: =M76-M77 -> 0 | N78: 0 | O78: 0 | P78: 0 | Q78: -21013285.71 | R78: -21013285.71 | S78: -21013285.71 | T78: -21013285.71 | U78: -21013285.71 | V78: -21013285.71 | W78: -21013285.71 | X78: -21013285.71 | Y78: -21013285.71 | Z78: -21013285.71 | AA78: -21013285.71 | AB78: -21013285.71 | AC78: -21013285.71 | AD78: -21013285.71 | AE78: -21013285.71 | AF78: -21013285.71 | AG78: -21013285.71 | AH78: -21013285.71 | AI78: -21013285.71 | AJ78: -21013285.71 | AK78: -21013285.71 | AL78: -21013285.71 | AM78: -21013285.71 | AN78: -21013285.71 | AO78: -21013285.71 | AP78: -21013285.71 | AQ78: -21013285.71 | AR78: -21013285.71 | AS78: -21013285.71 | AT78: -21013285.71 | AU78: -21013285.71 | AV78: -21013285.71 | AW78: -21013285.71 | AX78: -21013285.71 | AY78: -21013285.71 | AZ78: 0 | BA78: 0 | BB78: 0 | BC78: 0 | BD78: 0 | BE78: 0 | BF78: 0 | BG78: 0 | BH78: 0 | BI78: 0
D80: Tax Rate | F80: % | G80: =InputC!$G$50 -> 0.34 | H80: =InputC!G51 -> 0.34 | L80: =IF(L49,$G$80,$H$80) -> 0.34 | M80: =IF(M49,$G$80,$H$80) -> 0.34 | N80: =IF(N49,$G$80,$H$80) -> 0.34 | O80: =IF(O49,$G$80,$H$80) -> 0.34 | P80: =IF(P49,$G$80,$H$80) -> 0.34 | Q80: =IF(Q49,$G$80,$H$80) -> 0.34 | R80: =IF(R49,$G$80,$H$80) -> 0.34 | S80: =IF(S49,$G$80,$H$80) -> 0.34 | T80: =IF(T49,$G$80,$H$80) -> 0.34 | U80: =IF(U49,$G$80,$H$80) -> 0.34 | V80: =IF(V49,$G$80,$H$80) -> 0.34 | W80: =IF(W49,$G$80,$H$80) -> 0.34 | X80: =IF(X49,$G$80,$H$80) -> 0.34 | Y80: =IF(Y49,$G$80,$H$80) -> 0.34 | Z80: =IF(Z49,$G$80,$H$80) -> 0.34 | AA80: =IF(AA49,$G$80,$H$80) -> 0.34 | AB80: =IF(AB49,$G$80,$H$80) -> 0.34 | AC80: =IF(AC49,$G$80,$H$80) -> 0.34 | AD80: =IF(AD49,$G$80,$H$80) -> 0.34 | AE80: =IF(AE49,$G$80,$H$80) -> 0.34 | AF80: =IF(AF49,$G$80,$H$80) -> 0.34 | AG80: =IF(AG49,$G$80,$H$80) -> 0.34 | AH80: =IF(AH49,$G$80,$H$80) -> 0.34 | AI80: =IF(AI49,$G$80,$H$80) -> 0.34 | AJ80: =IF(AJ49,$G$80,$H$80) -> 0.34 | AK80: =IF(AK49,$G$80,$H$80) -> 0.34 | AL80: =IF(AL49,$G$80,$H$80) -> 0.34 | AM80: =IF(AM49,$G$80,$H$80) -> 0.34 | AN80: =IF(AN49,$G$80,$H$80) -> 0.34 | AO80: =IF(AO49,$G$80,$H$80) -> 0.34 | AP80: =IF(AP49,$G$80,$H$80) -> 0.34 | AQ80: =IF(AQ49,$G$80,$H$80) -> 0.34 | AR80: =IF(AR49,$G$80,$H$80) -> 0.34 | AS80: =IF(AS49,$G$80,$H$80) -> 0.34 | AT80: =IF(AT49,$G$80,$H$80) -> 0.34 | AU80: =IF(AU49,$G$80,$H$80) -> 0.34 | AV80: =IF(AV49,$G$80,$H$80) -> 0.34 | AW80: =IF(AW49,$G$80,$H$80) -> 0.34 | AX80: =IF(AX49,$G$80,$H$80) -> 0.34 | AY80: =IF(AY49,$G$80,$H$80) -> 0.34 | AZ80: =IF(AZ49,$G$80,$H$80) -> 0.34 | BA80: =IF(BA49,$G$80,$H$80) -> 0.34 | BB80: =IF(BB49,$G$80,$H$80) -> 0.34 | BC80: =IF(BC49,$G$80,$H$80) -> 0.34 | BD80: =IF(BD49,$G$80,$H$80) -> 0.34 | BE80: =IF(BE49,$G$80,$H$80) -> 0.34 | BF80: =IF(BF49,$G$80,$H$80) -> 0.34 | BG80: =IF(BG49,$G$80,$H$80) -> 0.34 | BH80: =IF(BH49,$G$80,$H$80) -> 0.34 | BI80: =IF(BI49,$G$80,$H$80) -> 0.34
D81: Taxes on EBIT | F81: USD | I81: =SUM(L81:XFD81) -> -250058100 | L81: =L78*L80 -> 0 | M81: =M78*M80 -> 0 | N81: 0 | O81: 0 | P81: 0 | Q81: -7144517.143 | R81: -7144517.143 | S81: -7144517.143 | T81: -7144517.143 | U81: -7144517.143 | V81: -7144517.143 | W81: -7144517.143 | X81: -7144517.143 | Y81: -7144517.143 | Z81: -7144517.143 | AA81: -7144517.143 | AB81: -7144517.143 | AC81: -7144517.143 | AD81: -7144517.143 | AE81: -7144517.143 | AF81: -7144517.143 | AG81: -7144517.143 | AH81: -7144517.143 | AI81: -7144517.143 | AJ81: -7144517.143 | AK81: -7144517.143 | AL81: -7144517.143 | AM81: -7144517.143 | AN81: -7144517.143 | AO81: -7144517.143 | AP81: -7144517.143 | AQ81: -7144517.143 | AR81: -7144517.143 | AS81: -7144517.143 | AT81: -7144517.143 | AU81: -7144517.143 | AV81: -7144517.143 | AW81: -7144517.143 | AX81: -7144517.143 | AY81: -7144517.143 | AZ81: 0 | BA81: 0 | BB81: 0 | BC81: 0 | BD81: 0 | BE81: 0 | BF81: 0 | BG81: 0 | BH81: 0 | BI81: 0
D83: Free Cash Flow Before Tax | F83: USD | I83: =SUM(L83:XFD83) -> 0 | L83: =L61 -> 0 | M83: =M61 -> 0 | N83: 0 | O83: 0 | P83: 0 | Q83: 0 | R83: 0 | S83: 0 | T83: 0 | U83: 0 | V83: 0 | W83: 0 | X83: 0 | Y83: 0 | Z83: 0 | AA83: 0 | AB83: 0 | AC83: 0 | AD83: 0 | AE83: 0 | AF83: 0 | AG83: 0 | AH83: 0 | AI83: 0 | AJ83: 0 | AK83: 0 | AL83: 0 | AM83: 0 | AN83: 0 | AO83: 0 | AP83: 0 | AQ83: 0 | AR83: 0 | AS83: 0 | AT83: 0 | AU83: 0 | AV83: 0 | AW83: 0 | AX83: 0 | AY83: 0 | AZ83: 0 | BA83: 0 | BB83: 0 | BC83: 0 | BD83: 0 | BE83: 0 | BF83: 0 | BG83: 0 | BH83: 0 | BI83: 0
D84: Less: Operating Taxes | F84: USD | I84: =SUM(L84:XFD84) -> 0
D85: Free Cash Flow After Tax | F85: USD | I85: =SUM(L85:XFD85) -> 0
D87: Project IRR After Tax | F87: % | G87: =IFERROR(IRR(L85:BI85),FALSE) -> FALSE
B89: Cash Flow Statement Pre-COD
C90: Operating Cash Flow Pre-COD
D91: Revenues | F91: USD | I91: =SUM(L91:XFD91) -> 1311691000 | L91: =L46*L7 -> 0 | M91: =M46*M7 -> 0 | N91: =N46*N7 -> 78524000 | O91: =O46*O7 -> 429059000 | P91: =P46*P7 -> 804108000 | Q91: =Q46*Q7 -> 0 | R91: =R46*R7 -> 0 | S91: =S46*S7 -> 0 | T91: =T46*T7 -> 0 | U91: =U46*U7 -> 0 | V91: =V46*V7 -> 0 | W91: =W46*W7 -> 0 | X91: =X46*X7 -> 0 | Y91: =Y46*Y7 -> 0 | Z91: =Z46*Z7 -> 0 | AA91: =AA46*AA7 -> 0 | AB91: =AB46*AB7 -> 0 | AC91: =AC46*AC7 -> 0 | AD91: =AD46*AD7 -> 0 | AE91: =AE46*AE7 -> 0 | AF91: =AF46*AF7 -> 0 | AG91: =AG46*AG7 -> 0 | AH91: =AH46*AH7 -> 0 | AI91: =AI46*AI7 -> 0 | AJ91: =AJ46*AJ7 -> 0 | AK91: =AK46*AK7 -> 0 | AL91: =AL46*AL7 -> 0 | AM91: =AM46*AM7 -> 0 | AN91: =AN46*AN7 -> 0 | AO91: =AO46*AO7 -> 0 | AP91: =AP46*AP7 -> 0 | AQ91: =AQ46*AQ7 -> 0 | AR91: =AR46*AR7 -> 0 | AS91: =AS46*AS7 -> 0 | AT91: =AT46*AT7 -> 0 | AU91: =AU46*AU7 -> 0 | AV91: =AV46*AV7 -> 0 | AW91: =AW46*AW7 -> 0 | AX91: =AX46*AX7 -> 0 | AY91: =AY46*AY7 -> 0 | AZ91: =AZ46*AZ7 -> 0 | BA91: =BA46*BA7 -> 0 | BB91: =BB46*BB7 -> 0 | BC91: =BC46*BC7 -> 0 | BD91: =BD46*BD7 -> 0 | BE91: =BE46*BE7 -> 0 | BF91: =BF46*BF7 -> 0 | BG91: =BG46*BG7 -> 0 | BH91: =BH46*BH7 -> 0 | BI91: =BI46*BI7 -> 0
D92: Operating Expenses | F92: USD | I92: =SUM(L92:XFD92) -> 563493343.4 | L92: =L57*L7 -> 0 | M92: =M57*M7 -> 0 | N92: =N57*N7 -> 69663706.61 | O92: =O57*O7 -> 179929234.6 | P92: =P57*P7 -> 313900402.2 | Q92: =Q57*Q7 -> 0 | R92: =R57*R7 -> 0 | S92: =S57*S7 -> 0 | T92: =T57*T7 -> 0 | U92: =U57*U7 -> 0 | V92: =V57*V7 -> 0 | W92: =W57*W7 -> 0 | X92: =X57*X7 -> 0 | Y92: =Y57*Y7 -> 0 | Z92: =Z57*Z7 -> 0 | AA92: =AA57*AA7 -> 0 | AB92: =AB57*AB7 -> 0 | AC92: =AC57*AC7 -> 0 | AD92: =AD57*AD7 -> 0 | AE92: =AE57*AE7 -> 0 | AF92: =AF57*AF7 -> 0 | AG92: =AG57*AG7 -> 0 | AH92: =AH57*AH7 -> 0 | AI92: =AI57*AI7 -> 0 | AJ92: =AJ57*AJ7 -> 0 | AK92: =AK57*AK7 -> 0 | AL92: =AL57*AL7 -> 0 | AM92: =AM57*AM7 -> 0 | AN92: =AN57*AN7 -> 0 | AO92: =AO57*AO7 -> 0 | AP92: =AP57*AP7 -> 0 | AQ92: =AQ57*AQ7 -> 0 | AR92: =AR57*AR7 -> 0 | AS92: =AS57*AS7 -> 0 | AT92: =AT57*AT7 -> 0 | AU92: =AU57*AU7 -> 0 | AV92: =AV57*AV7 -> 0 | AW92: =AW57*AW7 -> 0 | AX92: =AX57*AX7 -> 0 | AY92: =AY57*AY7 -> 0 | AZ92: =AZ57*AZ7 -> 0 | BA92: =BA57*BA7 -> 0 | BB92: =BB57*BB7 -> 0 | BC92: =BC57*BC7 -> 0 | BD92: =BD57*BD7 -> 0 | BE92: =BE57*BE7 -> 0 | BF92: =BF57*BF7 -> 0 | BG92: =BG57*BG7 -> 0 | BH92: =BH57*BH7 -> 0 | BI92: =BI57*BI7 -> 0
D93: EBITDA | F93: USD | I93: 748197656.6 | L93: =L91-L92 -> 0 | M93: =M91-M92 -> 0 | N93: 8860293.392 | O93: 249129765.4 | P93: 490207597.8 | Q93: 0 | R93: 0 | S93: 0 | T93: 0 | U93: 0 | V93: 0 | W93: 0 | X93: 0 | Y93: 0 | Z93: 0 | AA93: 0 | AB93: 0 | AC93: 0 | AD93: 0 | AE93: 0 | AF93: 0 | AG93: 0 | AH93: 0 | AI93: 0 | AJ93: 0 | AK93: 0 | AL93: 0 | AM93: 0 | AN93: 0 | AO93: 0 | AP93: 0 | AQ93: 0 | AR93: 0 | AS93: 0 | AT93: 0 | AU93: 0 | AV93: 0 | AW93: 0 | AX93: 0 | AY93: 0 | AZ93: 0 | BA93: 0 | BB93: 0 | BC93: 0 | BD93: 0 | BE93: 0 | BF93: 0 | BG93: 0 | BH93: 0 | BI93: 0
D94: Input Cash Flow | F94: USD | I94: 482913000 | L94: =Exhibit7!E28*1000 -> 0 | M94: 0 | N94: =Exhibit7!G28*1000 -> 4484000 | O94: =Exhibit7!H28*1000 -> 160948000 | P94: =Exhibit7!I28*1000 -> 317481000
C96: Financing Requirements and Financing Sources
D97: Direct Capital Expenditures | F97: USD | I97: =SUM(L97:XFD97) -> 1916939000 | L97: =L41 -> 79035000 | M97: =M41 -> 628994000 | N97: =N41 -> 778973000 | O97: =O41 -> 307398000 | P97: =P41 -> 122539000 | Q97: =Q41 -> 0 | R97: =R41 -> 0 | S97: =S41 -> 0 | T97: =T41 -> 0 | U97: =U41 -> 0 | V97: =V41 -> 0 | W97: =W41 -> 0 | X97: =X41 -> 0 | Y97: =Y41 -> 0 | Z97: =Z41 -> 0 | AA97: =AA41 -> 0 | AB97: =AB41 -> 0 | AC97: =AC41 -> 0 | AD97: =AD41 -> 0 | AE97: =AE41 -> 0 | AF97: =AF41 -> 0 | AG97: =AG41 -> 0 | AH97: =AH41 -> 0 | AI97: =AI41 -> 0 | AJ97: =AJ41 -> 0 | AK97: =AK41 -> 0 | AL97: =AL41 -> 0 | AM97: =AM41 -> 0 | AN97: =AN41 -> 0 | AO97: =AO41 -> 0 | AP97: =AP41 -> 0 | AQ97: =AQ41 -> 0 | AR97: =AR41 -> 0 | AS97: =AS41 -> 0 | AT97: =AT41 -> 0 | AU97: =AU41 -> 0 | AV97: =AV41 -> 0 | AW97: =AW41 -> 0 | AX97: =AX41 -> 0 | AY97: =AY41 -> 0 | AZ97: =AZ41 -> 0 | BA97: =BA41 -> 0 | BB97: =BB41 -> 0 | BC97: =BC41 -> 0 | BD97: =BD41 -> 0 | BE97: =BE41 -> 0 | BF97: =BF41 -> 0 | BG97: =BG41 -> 0 | BH97: =BH41 -> 0 | BI97: =BI41 -> 0
D98: Initial Cash Balance | F98: USD | I98: =SUM(L98:XFD98) -> 10000000 | L98: =InputS!I52 -> 0 | M98: =InputS!J52 -> 0 | N98: =InputS!K52 -> 10000000 | O98: =InputS!L52 -> 0 | P98: =InputS!M52 -> 0 | Q98: =InputS!N52 -> 0 | R98: =InputS!O52 -> 0 | S98: =InputS!P52 -> 0 | T98: =InputS!Q52 -> 0 | U98: =InputS!R52 -> 0 | V98: =InputS!S52 -> 0 | W98: =InputS!T52 -> 0 | X98: =InputS!U52 -> 0 | Y98: =InputS!V52 -> 0 | Z98: =InputS!W52 -> 0 | AA98: =InputS!X52 -> 0 | AB98: =InputS!Y52 -> 0 | AC98: =InputS!Z52 -> 0 | AD98: =InputS!AA52 -> 0 | AE98: =InputS!AB52 -> 0 | AF98: =InputS!AC52 -> 0 | AG98: =InputS!AD52 -> 0 | AH98: =InputS!AE52 -> 0 | AI98: =InputS!AF52 -> 0 | AJ98: =InputS!AG52 -> 0 | AK98: =InputS!AH52 -> 0 | AL98: =InputS!AI52 -> 0 | AM98: =InputS!AJ52 -> 0 | AN98: =InputS!AK52 -> 0 | AO98: =InputS!AL52 -> 0 | AP98: =InputS!AM52 -> 0 | AQ98: =InputS!AN52 -> 0 | AR98: =InputS!AO52 -> 0 | AS98: =InputS!AP52 -> 0 | AT98: =InputS!AQ52 -> 0 | AU98: =InputS!AR52 -> 0 | AV98: =InputS!AS52 -> 0 | AW98: =InputS!AT52 -> 0 | AX98: =InputS!AU52 -> 0 | AY98: =InputS!AV52 -> 0 | AZ98: =InputS!AW52 -> 0 | BA98: =InputS!AX52 -> 0 | BB98: =InputS!AY52 -> 0 | BC98: =InputS!AZ52 -> 0 | BD98: =InputS!BA52 -> 0 | BE98: =InputS!BB52 -> 0 | BF98: =InputS!BC52 -> 0 | BG98: =InputS!BD52 -> 0 | BH98: =InputS!BE52 -> 0 | BI98: =InputS!BF52 -> 0
D99: Financing Costs | F99: USD | I99: 354461000 | L99: =InputS!I53 -> 0 | M99: =InputS!J53 -> 61134000 | N99: =InputS!K53 -> 86816000 | O99: =InputS!L53 -> 94955000 | P99: =InputS!M53 -> 111556000 | Q99: =InputS!N53 -> 0 | R99: =InputS!O53 -> 0 | S99: =InputS!P53 -> 0 | T99: =InputS!Q53 -> 0 | U99: =InputS!R53 -> 0 | V99: =InputS!S53 -> 0 | W99: =InputS!T53 -> 0 | X99: =InputS!U53 -> 0 | Y99: =InputS!V53 -> 0 | Z99: =InputS!W53 -> 0 | AA99: =InputS!X53 -> 0 | AB99: =InputS!Y53 -> 0 | AC99: =InputS!Z53 -> 0 | AD99: =InputS!AA53 -> 0 | AE99: =InputS!AB53 -> 0 | AF99: =InputS!AC53 -> 0 | AG99: =InputS!AD53 -> 0 | AH99: =InputS!AE53 -> 0 | AI99: =InputS!AF53 -> 0 | AJ99: =InputS!AG53 -> 0 | AK99: =InputS!AH53 -> 0 | AL99: =InputS!AI53 -> 0 | AM99: =InputS!AJ53 -> 0 | AN99: =InputS!AK53 -> 0 | AO99: =InputS!AL53 -> 0 | AP99: =InputS!AM53 -> 0 | AQ99: =InputS!AN53 -> 0 | AR99: =InputS!AO53 -> 0 | AS99: =InputS!AP53 -> 0 | AT99: =InputS!AQ53 -> 0 | AU99: =InputS!AR53 -> 0 | AV99: =InputS!AS53 -> 0 | AW99: =InputS!AT53 -> 0 | AX99: =InputS!AU53 -> 0 | AY99: =InputS!AV53 -> 0 | AZ99: =InputS!AW53 -> 0 | BA99: =InputS!AX53 -> 0 | BB99: =InputS!AY53 -> 0 | BC99: =InputS!AZ53 -> 0 | BD99: =InputS!BA53 -> 0 | BE99: =InputS!BB53 -> 0 | BF99: =InputS!BC53 -> 0 | BG99: =InputS!BD53 -> 0 | BH99: =InputS!BE53 -> 0 | BI99: =InputS!BF53 -> 0
D100: Legal & Advisory Fees | F100: USD | I100: 15000000 | L100: =InputS!I54 -> 0 | M100: =InputS!J54 -> 15000000 | N100: =InputS!K54 -> 0 | O100: =InputS!L54 -> 0 | P100: =InputS!M54 -> 0 | Q100: =InputS!N54 -> 0 | R100: =InputS!O54 -> 0 | S100: =InputS!P54 -> 0 | T100: =InputS!Q54 -> 0 | U100: =InputS!R54 -> 0 | V100: =InputS!S54 -> 0 | W100: =InputS!T54 -> 0 | X100: =InputS!U54 -> 0 | Y100: =InputS!V54 -> 0 | Z100: =InputS!W54 -> 0 | AA100: =InputS!X54 -> 0 | AB100: =InputS!Y54 -> 0 | AC100: =InputS!Z54 -> 0 | AD100: =InputS!AA54 -> 0 | AE100: =InputS!AB54 -> 0 | AF100: =InputS!AC54 -> 0 | AG100: =InputS!AD54 -> 0 | AH100: =InputS!AE54 -> 0 | AI100: =InputS!AF54 -> 0 | AJ100: =InputS!AG54 -> 0 | AK100: =InputS!AH54 -> 0 | AL100: =InputS!AI54 -> 0 | AM100: =InputS!AJ54 -> 0 | AN100: =InputS!AK54 -> 0 | AO100: =InputS!AL54 -> 0 | AP100: =InputS!AM54 -> 0 | AQ100: =InputS!AN54 -> 0 | AR100: =InputS!AO54 -> 0 | AS100: =InputS!AP54 -> 0 | AT100: =InputS!AQ54 -> 0 | AU100: =InputS!AR54 -> 0 | AV100: =InputS!AS54 -> 0 | AW100: =InputS!AT54 -> 0 | AX100: =InputS!AU54 -> 0 | AY100: =InputS!AV54 -> 0 | AZ100: =InputS!AW54 -> 0 | BA100: =InputS!AX54 -> 0 | BB100: =InputS!AY54 -> 0 | BC100: =InputS!AZ54 -> 0 | BD100: =InputS!BA54 -> 0 | BE100: =InputS!BB54 -> 0 | BF100: =InputS!BC54 -> 0 | BG100: =InputS!BD54 -> 0 | BH100: =InputS!BE54 -> 0 | BI100: =InputS!BF54 -> 0
D101: Debt Service Reserve | F101: USD | I101: 80865000 | L101: =InputS!I55 -> 0 | M101: =InputS!J55 -> 0 | N101: =InputS!K55 -> 0 | O101: =InputS!L55 -> 0 | P101: =InputS!M55 -> 80865000 | Q101: =InputS!N55 -> 0 | R101: =InputS!O55 -> 0 | S101: =InputS!P55 -> 0 | T101: =InputS!Q55 -> 0 | U101: =InputS!R55 -> 0 | V101: =InputS!S55 -> 0 | W101: =InputS!T55 -> 0 | X101: =InputS!U55 -> 0 | Y101: =InputS!V55 -> 0 | Z101: =InputS!W55 -> 0 | AA101: =InputS!X55 -> 0 | AB101: =InputS!Y55 -> 0 | AC101: =InputS!Z55 -> 0 | AD101: =InputS!AA55 -> 0 | AE101: =InputS!AB55 -> 0 | AF101: =InputS!AC55 -> 0 | AG101: =InputS!AD55 -> 0 | AH101: =InputS!AE55 -> 0 | AI101: =InputS!AF55 -> 0 | AJ101: =InputS!AG55 -> 0 | AK101: =InputS!AH55 -> 0 | AL101: =InputS!AI55 -> 0 | AM101: =InputS!AJ55 -> 0 | AN101: =InputS!AK55 -> 0 | AO101: =InputS!AL55 -> 0 | AP101: =InputS!AM55 -> 0 | AQ101: =InputS!AN55 -> 0 | AR101: =InputS!AO55 -> 0 | AS101: =InputS!AP55 -> 0 | AT101: =InputS!AQ55 -> 0 | AU101: =InputS!AR55 -> 0 | AV101: =InputS!AS55 -> 0 | AW101: =InputS!AT55 -> 0 | AX101: =InputS!AU55 -> 0 | AY101: =InputS!AV55 -> 0 | AZ101: =InputS!AW55 -> 0 | BA101: =InputS!AX55 -> 0 | BB101: =InputS!AY55 -> 0 | BC101: =InputS!AZ55 -> 0 | BD101: =InputS!BA55 -> 0 | BE101: =InputS!BB55 -> 0 | BF101: =InputS!BC55 -> 0 | BG101: =InputS!BD55 -> 0 | BH101: =InputS!BE55 -> 0 | BI101: =InputS!BF55 -> 0
D102: Total Funding Needs | F102: USD | I102: =SUM(I97:I101) -> 2377265000 | L102: =SUM(L97:L101) -> 79035000 | M102: =SUM(M97:M101) -> 705128000 | N102: 875789000 | O102: 402353000 | P102: 314960000 | Q102: 0 | R102: 0 | S102: 0 | T102: 0 | U102: 0 | V102: 0 | W102: 0 | X102: 0 | Y102: 0 | Z102: 0 | AA102: 0 | AB102: 0 | AC102: 0 | AD102: 0 | AE102: 0 | AF102: 0 | AG102: 0 | AH102: 0 | AI102: 0 | AJ102: 0 | AK102: 0 | AL102: 0 | AM102: 0 | AN102: 0 | AO102: 0 | AP102: 0 | AQ102: 0 | AR102: 0 | AS102: 0 | AT102: 0 | AU102: 0 | AV102: 0 | AW102: 0 | AX102: 0 | AY102: 0 | AZ102: 0 | BA102: 0 | BB102: 0 | BC102: 0 | BD102: 0 | BE102: 0 | BF102: 0 | BG102: 0 | BH102: 0 | BI102: 0
C104: Funding Sources
D105: Operating Cash Flow | F105: USD | I105: =SUM(L105:XFD105) -> 482913000 | L105: =L94 -> 0 | M105: =M94 -> 0 | N105: 4484000 | O105: 160948000 | P105: 317481000 | Q105: =Q93 -> 0 | R105: 0 | S105: 0 | T105: 0 | U105: 0 | V105: 0 | W105: 0 | X105: 0 | Y105: 0 | Z105: 0 | AA105: 0 | AB105: 0 | AC105: 0 | AD105: 0 | AE105: 0 | AF105: 0 | AG105: 0 | AH105: 0 | AI105: 0 | AJ105: 0 | AK105: 0 | AL105: 0 | AM105: 0 | AN105: 0 | AO105: 0 | AP105: 0 | AQ105: 0 | AR105: 0 | AS105: 0 | AT105: 0 | AU105: 0 | AV105: 0 | AW105: 0 | AX105: 0 | AY105: 0 | AZ105: 0 | BA105: 0 | BB105: 0 | BC105: 0 | BD105: 0 | BE105: 0 | BF105: 0 | BG105: 0 | BH105: 0 | BI105: 0
D106: Required External Financing | F106: USD | I106: =SUM(L106:XFD106) -> 1894352000 | L106: =L102-L105 -> 79035000 | M106: =M102-M105 -> 705128000 | N106: 871305000 | O106: 241405000 | P106: -2521000 | Q106: 0 | R106: 0 | S106: 0 | T106: 0 | U106: 0 | V106: 0 | W106: 0 | X106: 0 | Y106: 0 | Z106: 0 | AA106: 0 | AB106: 0 | AC106: 0 | AD106: 0 | AE106: 0 | AF106: 0 | AG106: 0 | AH106: 0 | AI106: 0 | AJ106: 0 | AK106: 0 | AL106: 0 | AM106: 0 | AN106: 0 | AO106: 0 | AP106: 0 | AQ106: 0 | AR106: 0 | AS106: 0 | AT106: 0 | AU106: 0 | AV106: 0 | AW106: 0 | AX106: 0 | AY106: 0 | AZ106: 0 | BA106: 0 | BB106: 0 | BC106: 0 | BD106: 0 | BE106: 0 | BF106: 0 | BG106: 0 | BH106: 0 | BI106: 0
D108: Debt Funding | F108: USD | I108: =SUM(L108:XFD108) -> 1450000000 | L108: =InputS!I60 -> 0 | M108: =InputS!J60 -> 1000000000 | N108: =InputS!K60 -> 24299000 | O108: =InputS!L60 -> 242981000 | P108: =InputS!M60 -> 182720000 | Q108: =InputS!N60 -> 0 | R108: =InputS!O60 -> 0 | S108: =InputS!P60 -> 0 | T108: =InputS!Q60 -> 0 | U108: =InputS!R60 -> 0 | V108: =InputS!S60 -> 0 | W108: =InputS!T60 -> 0 | X108: =InputS!U60 -> 0 | Y108: =InputS!V60 -> 0 | Z108: =InputS!W60 -> 0 | AA108: =InputS!X60 -> 0 | AB108: =InputS!Y60 -> 0 | AC108: =InputS!Z60 -> 0 | AD108: =InputS!AA60 -> 0 | AE108: =InputS!AB60 -> 0 | AF108: =InputS!AC60 -> 0 | AG108: =InputS!AD60 -> 0 | AH108: =InputS!AE60 -> 0 | AI108: =InputS!AF60 -> 0 | AJ108: =InputS!AG60 -> 0 | AK108: =InputS!AH60 -> 0 | AL108: =InputS!AI60 -> 0 | AM108: =InputS!AJ60 -> 0 | AN108: =InputS!AK60 -> 0 | AO108: =InputS!AL60 -> 0 | AP108: =InputS!AM60 -> 0 | AQ108: =InputS!AN60 -> 0 | AR108: =InputS!AO60 -> 0 | AS108: =InputS!AP60 -> 0 | AT108: =InputS!AQ60 -> 0 | AU108: =InputS!AR60 -> 0 | AV108: =InputS!AS60 -> 0 | AW108: =InputS!AT60 -> 0 | AX108: =InputS!AU60 -> 0 | AY108: =InputS!AV60 -> 0 | AZ108: =InputS!AW60 -> 0 | BA108: =InputS!AX60 -> 0 | BB108: =InputS!AY60 -> 0 | BC108: =InputS!AZ60 -> 0 | BD108: =InputS!BA60 -> 0 | BE108: =InputS!BB60 -> 0 | BF108: =InputS!BC60 -> 0 | BG108: =InputS!BD60 -> 0 | BH108: =InputS!BE60 -> 0 | BI108: =InputS!BF60 -> 0
D109: Equity Funded | F109: USD | I109: =SUM(L109:XFD109) -> 444352000 | L109: =InputS!I57+InputS!I58 -> 79035000 | M109: =InputS!J57+InputS!J58 -> 1986000 | N109: =InputS!K57+InputS!K58 -> 550148000 | O109: =O106-O108-N113 -> -1576000 | P109: =P106-P108-O113 -> -185241000
D110: Total Debt and Equity | F110: USD | I110: =SUM(L110:XFD110) -> 1894352000 | L110: =L108+L109 -> 79035000 | M110: =M108+M109 -> 1001986000 | N110: 574447000 | O110: 241405000 | P110: -2521000
D112: Difference - Cash Flow | F112: USD | I112: =SUM(L112:XFD112) -> 0 | L112: =L110-L106 -> 0 | M112: =M110-M106 -> 296858000 | N112: -296858000 | O112: 0 | P112: 0
D113: Accumulated Cash Flow Pre-COD | F113: USD | I113: =SUM(L113:XFD113) -> 296858000 | L113: =K113+L112 -> 0 | M113: =L113+M112 -> 296858000 | N113: 0 | O113: 0 | P113: 0
B115: Debt Schedule
C117: Debt Balance | F117: USD | L117: =K117+L108 -> 0 | M117: =L117+M108 -> 1000000000 | N117: 1024299000 | O117: 1267280000 | P117: 1450000000 | Q117: 1450000000 | R117: 1450000000 | S117: 1450000000 | T117: 1450000000 | U117: 1450000000 | V117: 1450000000 | W117: 1450000000 | X117: 1450000000 | Y117: 1450000000 | Z117: 1450000000 | AA117: 1450000000 | AB117: 1450000000 | AC117: 1450000000 | AD117: 1450000000 | AE117: 1450000000 | AF117: 1450000000 | AG117: 1450000000 | AH117: 1450000000 | AI117: 1450000000 | AJ117: 1450000000 | AK117: 1450000000 | AL117: 1450000000 | AM117: 1450000000 | AN117: 1450000000 | AO117: 1450000000 | AP117: 1450000000 | AQ117: 1450000000 | AR117: 1450000000 | AS117: 1450000000 | AT117: 1450000000 | AU117: 1450000000 | AV117: 1450000000 | AW117: 1450000000 | AX117: 1450000000 | AY117: 1450000000 | AZ117: 1450000000 | BA117: 1450000000 | BB117: 1450000000 | BC117: 1450000000 | BD117: 1450000000 | BE117: 1450000000 | BF117: 1450000000 | BG117: 1450000000 | BH117: 1450000000 | BI117: 1450000000
C118: Debt Repayment Percent | F118: % | I118: =SUM(L118:XFD118) -> 1 | L118: =InputS!I62 -> 0 | M118: =InputS!J62 -> 0 | N118: =InputS!K62 -> 0 | O118: =InputS!L62 -> 0 | P118: =InputS!M62 -> 0 | Q118: =InputS!N62 -> 0.02682 | R118: =InputS!O62 -> 0.02682 | S118: =InputS!P62 -> 0.02682 | T118: =InputS!Q62 -> 0.04446689655 | U118: =InputS!R62 -> 0.05602896552 | V118: =InputS!S62 -> 0.06941586207 | W118: =InputS!T62 -> 0.07550137931 | X118: =InputS!U62 -> 0.0882262069 | Y118: =InputS!V62 -> 0.06511655172 | Z118: =InputS!W62 -> 0.05931034483 | AA118: =InputS!X62 -> 0.07034482759 | AB118: =InputS!Y62 -> 0.08137931034 | AC118: =InputS!Z62 -> 0.03272275862 | AD118: =InputS!AA62 -> 0.03686068966 | AE118: =InputS!AB62 -> 0.06634965517 | AF118: =InputS!AC62 -> 0.0810937931 | AG118: =InputS!AD62 -> 0.04099862069 | AH118: =InputS!AE62 -> 0 | AI118: =InputS!AF62 -> 0 | AJ118: =InputS!AG62 -> 0 | AK118: =InputS!AH62 -> 0 | AL118: =InputS!AI62 -> 0.05172413793 | AM118: =InputS!AJ62 -> 0 | AN118: =InputS!AK62 -> 0 | AO118: =InputS!AL62 -> 0 | AP118: =InputS!AM62 -> 0 | AQ118: =InputS!AN62 -> 0 | AR118: =InputS!AO62 -> 0 | AS118: =InputS!AP62 -> 0 | AT118: =InputS!AQ62 -> 0 | AU118: =InputS!AR62 -> 0 | AV118: =InputS!AS62 -> 0 | AW118: =InputS!AT62 -> 0 | AX118: =InputS!AU62 -> 0 | AY118: =InputS!AV62 -> 0 | AZ118: =InputS!AW62 -> 0 | BA118: =InputS!AX62 -> 0 | BB118: =InputS!AY62 -> 0 | BC118: =InputS!AZ62 -> 0 | BD118: =InputS!BA62 -> 0 | BE118: =InputS!BB62 -> 0 | BF118: =InputS!BC62 -> 0 | BG118: =InputS!BD62 -> 0 | BH118: =InputS!BE62 -> 0 | BI118: =InputS!BF62 -> 0
C119: Debt Repayment | F119: USD | I119: =SUM(L119:XFD119) -> 1450000000 | L119: =L117*L118 -> 0 | M119: =M117*M118 -> 0 | N119: 0 | O119: 0 | P119: 0 | Q119: 38889000 | R119: 38889000 | S119: 38889000 | T119: 64477000 | U119: 81242000 | V119: 100653000 | W119: 109477000 | X119: 127928000 | Y119: 94419000 | Z119: 86000000 | AA119: 102000000 | AB119: 118000000 | AC119: 47448000 | AD119: 53448000 | AE119: 96207000 | AF119: 117586000 | AG119: 59448000 | AH119: 0 | AI119: 0 | AJ119: 0 | AK119: 0 | AL119: 75000000 | AM119: 0 | AN119: 0 | AO119: 0 | AP119: 0 | AQ119: 0 | AR119: 0 | AS119: 0 | AT119: 0 | AU119: 0 | AV119: 0 | AW119: 0 | AX119: 0 | AY119: 0 | AZ119: 0 | BA119: 0 | BB119: 0 | BC119: 0 | BD119: 0 | BE119: 0 | BF119: 0 | BG119: 0 | BH119: 0 | BI119: 0
C121: Debt Balance and Interest
D122: Opening Balance | F122: USD | L122: =K125 -> 0 | M122: =L125 -> 0 | N122: 1000000000 | O122: 1024299000 | P122: 1267280000 | Q122: 1450000000 | R122: 1411111000 | S122: 1372222000 | T122: 1333333000 | U122: 1268856000 | V122: 1187614000 | W122: 1086961000 | X122: 977484000 | Y122: 849556000 | Z122: 755137000 | AA122: 669137000 | AB122: 567137000 | AC122: 449137000 | AD122: 401689000 | AE122: 348241000 | AF122: 252034000 | AG122: 134448000 | AH122: 75000000 | AI122: 75000000 | AJ122: 75000000 | AK122: 75000000 | AL122: 75000000 | AM122: 0 | AN122: 0 | AO122: 0 | AP122: 0 | AQ122: 0 | AR122: 0 | AS122: 0 | AT122: 0 | AU122: 0 | AV122: 0 | AW122: 0 | AX122: 0 | AY122: 0 | AZ122: 0 | BA122: 0 | BB122: 0 | BC122: 0 | BD122: 0 | BE122: 0 | BF122: 0 | BG122: 0 | BH122: 0 | BI122: 0
D123: Add: Debt Draw | F123: USD | I123: =SUM(L123:XFD123) -> 1450000000 | L123: =L108 -> 0 | M123: =M108 -> 1000000000 | N123: 24299000 | O123: 242981000 | P123: 182720000 | Q123: 0 | R123: 0 | S123: 0 | T123: 0 | U123: 0 | V123: 0 | W123: 0 | X123: 0 | Y123: 0 | Z123: 0 | AA123: 0 | AB123: 0 | AC123: 0 | AD123: 0 | AE123: 0 | AF123: 0 | AG123: 0 | AH123: 0 | AI123: 0 | AJ123: 0 | AK123: 0 | AL123: 0 | AM123: 0 | AN123: 0 | AO123: 0 | AP123: 0 | AQ123: 0 | AR123: 0 | AS123: 0 | AT123: 0 | AU123: 0 | AV123: 0 | AW123: 0 | AX123: 0 | AY123: 0 | AZ123: 0 | BA123: 0 | BB123: 0 | BC123: 0 | BD123: 0 | BE123: 0 | BF123: 0 | BG123: 0 | BH123: 0 | BI123: 0
D124: Less: Debt Repayment | F124: USD | I124: =SUM(L124:XFD124) -> 1450000000 | L124: =L119 -> 0 | M124: =M119 -> 0 | N124: 0 | O124: 0 | P124: 0 | Q124: 38889000 | R124: 38889000 | S124: 38889000 | T124: 64477000 | U124: 81242000 | V124: 100653000 | W124: 109477000 | X124: 127928000 | Y124: 94419000 | Z124: 86000000 | AA124: 102000000 | AB124: 118000000 | AC124: 47448000 | AD124: 53448000 | AE124: 96207000 | AF124: 117586000 | AG124: 59448000 | AH124: 0 | AI124: 0 | AJ124: 0 | AK124: 0 | AL124: 75000000 | AM124: 0 | AN124: 0 | AO124: 0 | AP124: 0 | AQ124: 0 | AR124: 0 | AS124: 0 | AT124: 0 | AU124: 0 | AV124: 0 | AW124: 0 | AX124: 0 | AY124: 0 | AZ124: 0 | BA124: 0 | BB124: 0 | BC124: 0 | BD124: 0 | BE124: 0 | BF124: 0 | BG124: 0 | BH124: 0 | BI124: 0
D125: Closing Balance | F125: USD | L125: =L122+L123-L124 -> 0 | M125: =M122+M123-M124 -> 1000000000 | N125: 1024299000 | O125: 1267280000 | P125: 1450000000 | Q125: 1411111000 | R125: 1372222000 | S125: 1333333000 | T125: 1268856000 | U125: 1187614000 | V125: 1086961000 | W125: 977484000 | X125: 849556000 | Y125: 755137000 | Z125: 669137000 | AA125: 567137000 | AB125: 449137000 | AC125: 401689000 | AD125: 348241000 | AE125: 252034000 | AF125: 134448000 | AG125: 75000000 | AH125: 75000000 | AI125: 75000000 | AJ125: 75000000 | AK125: 75000000 | AL125: 0 | AM125: 0 | AN125: 0 | AO125: 0 | AP125: 0 | AQ125: 0 | AR125: 0 | AS125: 0 | AT125: 0 | AU125: 0 | AV125: 0 | AW125: 0 | AX125: 0 | AY125: 0 | AZ125: 0 | BA125: 0 | BB125: 0 | BC125: 0 | BD125: 0 | BE125: 0 | BF125: 0 | BG125: 0 | BH125: 0 | BI125: 0
D127: Interest Rate | F127: % | L127: =InputS!I64 -> 0 | M127: =InputS!J64 -> 0.122268 | N127: =InputS!K64 -> 0.08577389012 | O127: =InputS!L64 -> 0.08287298845 | P127: =InputS!M64 -> 0.08210857917 | Q127: =InputS!N64 -> 0.08530462467 | R127: =InputS!O64 -> 0.0853688725 | S127: =InputS!P64 -> 0.08543681426 | T127: =InputS!Q64 -> 0.08644414376 | U127: =InputS!R64 -> 0.08692717599 | V127: =InputS!S64 -> 0.08762428146 | W127: =InputS!T64 -> 0.08886359288 | X127: =InputS!U64 -> 0.09000897627 | Y127: =InputS!V64 -> 0.08939903147 | Z127: =InputS!W64 -> 0.09050926999 | AA127: =InputS!X64 -> 0.09120470058 | AB127: =InputS!Y64 -> 0.09242389356 | AC127: =InputS!Z64 -> 0.08984210638 | AD127: =InputS!AA64 -> 0.09055511848 | AE127: =InputS!AB64 -> 0.09451001624 | AF127: =InputS!AC64 -> 0.1009982354 | AG127: =InputS!AD64 -> 0.08826057064 | AH127: =InputS!AE64 -> 0.08870666667 | AI127: =InputS!AF64 -> 0.08870666667 | AJ127: =InputS!AG64 -> 0.08870666667 | AK127: =InputS!AH64 -> 0.08870666667 | AL127: =InputS!AI64 -> 0.1774133333 | AM127: =InputS!AJ64 -> 0 | AN127: =InputS!AK64 -> 0 | AO127: =InputS!AL64 -> 0 | AP127: =InputS!AM64 -> 0 | AQ127: =InputS!AN64 -> 0 | AR127: =InputS!AO64 -> 0 | AS127: =InputS!AP64 -> 0 | AT127: =InputS!AQ64 -> 0 | AU127: =InputS!AR64 -> 0 | AV127: =InputS!AS64 -> 0 | AW127: =InputS!AT64 -> 0 | AX127: =InputS!AU64 -> 0 | AY127: =InputS!AV64 -> 0 | AZ127: =InputS!AW64 -> 0 | BA127: =InputS!AX64 -> 0 | BB127: =InputS!AY64 -> 0 | BC127: =InputS!AZ64 -> 0 | BD127: =InputS!BA64 -> 0 | BE127: =InputS!BB64 -> 0 | BF127: =InputS!BC64 -> 0 | BG127: =InputS!BD64 -> 0 | BH127: =InputS!BE64 -> 0 | BI127: =InputS!BF64 -> 0
D128: Interest Expense | F128: USD | L128: =L127*L122 -> 0 | M128: =M127*M122 -> 0 | N128: 85773890.12 | O128: 84886719.2 | P128: 104054560.2 | Q128: 123691705.8 | R128: 120464955 | S128: 117238276.1 | T128: 115258829.5 | U128: 110298068.8 | V128: 104063823.4 | W128: 96591259.78 | X128: 87982334.16 | Y128: 75949483.58 | Z128: 68346898.61 | AA128: 61028439.73 | AB128: 52417009.72 | AC128: 40351414.13 | AD128: 36374994.99 | AE128: 32912262.57 | AF128: 25454989.25 | AG128: 11866457.2 | AH128: 6653000 | AI128: 6653000 | AJ128: 6653000 | AK128: 6653000 | AL128: 13306000 | AM128: 0 | AN128: 0 | AO128: 0 | AP128: 0 | AQ128: 0 | AR128: 0 | AS128: 0 | AT128: 0 | AU128: 0 | AV128: 0 | AW128: 0 | AX128: 0 | AY128: 0 | AZ128: 0 | BA128: 0 | BB128: 0 | BC128: 0 | BD128: 0 | BE128: 0 | BF128: 0 | BG128: 0 | BH128: 0 | BI128: 0
D129: Interest During Construction | F129: USD | L129: =L128*L7 -> 0 | M129: =M128*M7 -> 0 | N129: =N128*N7 -> 85773890.12 | O129: =O128*O7 -> 84886719.2 | P129: =P128*P7 -> 104054560.2 | Q129: =Q128*Q7 -> 0 | R129: =R128*R7 -> 0 | S129: =S128*S7 -> 0 | T129: =T128*T7 -> 0 | U129: =U128*U7 -> 0 | V129: =V128*V7 -> 0 | W129: =W128*W7 -> 0 | X129: =X128*X7 -> 0 | Y129: =Y128*Y7 -> 0 | Z129: =Z128*Z7 -> 0 | AA129: =AA128*AA7 -> 0 | AB129: =AB128*AB7 -> 0 | AC129: =AC128*AC7 -> 0 | AD129: =AD128*AD7 -> 0 | AE129: =AE128*AE7 -> 0 | AF129: =AF128*AF7 -> 0 | AG129: =AG128*AG7 -> 0 | AH129: =AH128*AH7 -> 0 | AI129: =AI128*AI7 -> 0 | AJ129: =AJ128*AJ7 -> 0 | AK129: =AK128*AK7 -> 0 | AL129: =AL128*AL7 -> 0 | AM129: =AM128*AM7 -> 0 | AN129: =AN128*AN7 -> 0 | AO129: =AO128*AO7 -> 0 | AP129: =AP128*AP7 -> 0 | AQ129: =AQ128*AQ7 -> 0 | AR129: =AR128*AR7 -> 0 | AS129: =AS128*AS7 -> 0 | AT129: =AT128*AT7 -> 0 | AU129: =AU128*AU7 -> 0 | AV129: =AV128*AV7 -> 0 | AW129: =AW128*AW7 -> 0 | AX129: =AX128*AX7 -> 0 | AY129: =AY128*AY7 -> 0 | AZ129: =AZ128*AZ7 -> 0 | BA129: =BA128*BA7 -> 0 | BB129: =BB128*BB7 -> 0 | BC129: =BC128*BC7 -> 0 | BD129: =BD128*BD7 -> 0 | BE129: =BE128*BE7 -> 0 | BF129: =BF128*BF7 -> 0 | BG129: =BG128*BG7 -> 0 | BH129: =BH128*BH7 -> 0 | BI129: =BI128*BI7 -> 0
D130: Interest During Operation | F130: USD | L130: =L128*L8 -> 0 | M130: =M128*M8 -> 0 | N130: =N128*N8 -> 0 | O130: =O128*O8 -> 0 | P130: =P128*P8 -> 0 | Q130: =Q128*Q8 -> 123691705.8 | R130: =R128*R8 -> 120464955 | S130: =S128*S8 -> 117238276.1 | T130: =T128*T8 -> 115258829.5 | U130: =U128*U8 -> 110298068.8 | V130: =V128*V8 -> 104063823.4 | W130: =W128*W8 -> 96591259.78 | X130: =X128*X8 -> 87982334.16 | Y130: =Y128*Y8 -> 75949483.58 | Z130: =Z128*Z8 -> 68346898.61 | AA130: =AA128*AA8 -> 61028439.73 | AB130: =AB128*AB8 -> 52417009.72 | AC130: =AC128*AC8 -> 40351414.13 | AD130: =AD128*AD8 -> 36374994.99 | AE130: =AE128*AE8 -> 32912262.57 | AF130: =AF128*AF8 -> 25454989.25 | AG130: =AG128*AG8 -> 11866457.2 | AH130: =AH128*AH8 -> 6653000 | AI130: =AI128*AI8 -> 6653000 | AJ130: =AJ128*AJ8 -> 6653000 | AK130: =AK128*AK8 -> 6653000 | AL130: =AL128*AL8 -> 13306000 | AM130: =AM128*AM8 -> 0 | AN130: =AN128*AN8 -> 0 | AO130: =AO128*AO8 -> 0 | AP130: =AP128*AP8 -> 0 | AQ130: =AQ128*AQ8 -> 0 | AR130: =AR128*AR8 -> 0 | AS130: =AS128*AS8 -> 0 | AT130: =AT128*AT8 -> 0 | AU130: =AU128*AU8 -> 0 | AV130: =AV128*AV8 -> 0 | AW130: =AW128*AW8 -> 0 | AX130: =AX128*AX8 -> 0 | AY130: =AY128*AY8 -> 0 | AZ130: =AZ128*AZ8 -> 0 | BA130: =BA128*BA8 -> 0 | BB130: =BB128*BB8 -> 0 | BC130: =BC128*BC8 -> 0 | BD130: =BD128*BD8 -> 0 | BE130: =BE128*BE8 -> 0 | BF130: =BF128*BF8 -> 0 | BG130: =BG128*BG8 -> 0 | BH130: =BH128*BH8 -> 0 | BI130: =BI128*BI8 -> 0
C132: DSRA Balance | F132: USD
D133: Opening Balance | F133: USD | L133: =K136 -> 0 | M133: =L136 -> 0 | N133: 0 | O133: 0 | P133: 0 | Q133: 80865000 | R133: 79251000 | S133: 77637000 | T133: 89146000 | U133: 94846000 | V133: 101191000 | W133: 101741000 | X133: 106412000 | Y133: 95789000 | Z133: 76194000 | AA133: 80329000 | AB133: 83767000 | AC133: 43350000 | AD133: 44283000 | AE133: 63334000 | AF133: 69832000 | AG133: 65364000 | AH133: 3326000 | AI133: 3326000 | AJ133: 3326000 | AK133: 3326000 | AL133: 3326000 | AM133: 0 | AN133: 0 | AO133: 0 | AP133: 0 | AQ133: 0 | AR133: 0 | AS133: 0 | AT133: 0 | AU133: 0 | AV133: 0 | AW133: 0 | AX133: 0 | AY133: 0 | AZ133: 0 | BA133: 0 | BB133: 0 | BC133: 0 | BD133: 0 | BE133: 0 | BF133: 0 | BG133: 0 | BH133: 0 | BI133: 0
D134: Add: Deposits to Reserve | F134: USD | I134: =SUM(L134:XFD134) -> 80865000 | L134: =InputS!I66*'Financial Model'!L7*-1 -> 0 | M134: =InputS!J66*'Financial Model'!M7*-1 -> 0 | N134: =InputS!K66*'Financial Model'!N7*-1 -> 0 | O134: =InputS!L66*'Financial Model'!O7*-1 -> 0 | P134: =InputS!M66*'Financial Model'!P7*-1 -> 80865000 | Q134: =InputS!N66*'Financial Model'!Q7*-1 -> 0 | R134: =InputS!O66*'Financial Model'!R7*-1 -> 0 | S134: =InputS!P66*'Financial Model'!S7*-1 -> 0 | T134: =InputS!Q66*'Financial Model'!T7*-1 -> 0 | U134: =InputS!R66*'Financial Model'!U7*-1 -> 0 | V134: =InputS!S66*'Financial Model'!V7*-1 -> 0 | W134: =InputS!T66*'Financial Model'!W7*-1 -> 0 | X134: =InputS!U66*'Financial Model'!X7*-1 -> 0 | Y134: =InputS!V66*'Financial Model'!Y7*-1 -> 0 | Z134: =InputS!W66*'Financial Model'!Z7*-1 -> 0 | AA134: =InputS!X66*'Financial Model'!AA7*-1 -> 0 | AB134: =InputS!Y66*'Financial Model'!AB7*-1 -> 0 | AC134: =InputS!Z66*'Financial Model'!AC7*-1 -> 0 | AD134: =InputS!AA66*'Financial Model'!AD7*-1 -> 0 | AE134: =InputS!AB66*'Financial Model'!AE7*-1 -> 0 | AF134: =InputS!AC66*'Financial Model'!AF7*-1 -> 0 | AG134: =InputS!AD66*'Financial Model'!AG7*-1 -> 0 | AH134: =InputS!AE66*'Financial Model'!AH7*-1 -> 0 | AI134: =InputS!AF66*'Financial Model'!AI7*-1 -> 0 | AJ134: =InputS!AG66*'Financial Model'!AJ7*-1 -> 0 | AK134: =InputS!AH66*'Financial Model'!AK7*-1 -> 0 | AL134: =InputS!AI66*'Financial Model'!AL7*-1 -> 0 | AM134: =InputS!AJ66*'Financial Model'!AM7*-1 -> 0 | AN134: =InputS!AK66*'Financial Model'!AN7*-1 -> 0 | AO134: =InputS!AL66*'Financial Model'!AO7*-1 -> 0 | AP134: =InputS!AM66*'Financial Model'!AP7*-1 -> 0 | AQ134: =InputS!AN66*'Financial Model'!AQ7*-1 -> 0 | AR134: =InputS!AO66*'Financial Model'!AR7*-1 -> 0 | AS134: =InputS!AP66*'Financial Model'!AS7*-1 -> 0 | AT134: =InputS!AQ66*'Financial Model'!AT7*-1 -> 0 | AU134: =InputS!AR66*'Financial Model'!AU7*-1 -> 0 | AV134: =InputS!AS66*'Financial Model'!AV7*-1 -> 0 | AW134: =InputS!AT66*'Financial Model'!AW7*-1 -> 0 | AX134: =InputS!AU66*'Financial Model'!AX7*-1 -> 0 | AY134: =InputS!AV66*'Financial Model'!AY7*-1 -> 0 | AZ134: =InputS!AW66*'Financial Model'!AZ7*-1 -> 0 | BA134: =InputS!AX66*'Financial Model'!BA7*-1 -> 0 | BB134: =InputS!AY66*'Financial Model'!BB7*-1 -> 0 | BC134: =InputS!AZ66*'Financial Model'!BC7*-1 -> 0 | BD134: =InputS!BA66*'Financial Model'!BD7*-1 -> 0 | BE134: =InputS!BB66*'Financial Model'!BE7*-1 -> 0 | BF134: =InputS!BC66*'Financial Model'!BF7*-1 -> 0 | BG134: =InputS!BD66*'Financial Model'!BG7*-1 -> 0 | BH134: =InputS!BE66*'Financial Model'!BH7*-1 -> 0 | BI134: =InputS!BF66*'Financial Model'!BI7*-1 -> 0
D135: Less: Changes post COD | F135: USD | I135: =SUM(L135:XFD135) -> 80865000 | L135: =MIN(InputS!I66*'Financial Model'!L8,L133) -> 0 | M135: =MIN(InputS!J66*'Financial Model'!M8,M133) -> 0 | N135: =MIN(InputS!K66*'Financial Model'!N8,N133) -> 0 | O135: =MIN(InputS!L66*'Financial Model'!O8,O133) -> 0 | P135: =MIN(InputS!M66*'Financial Model'!P8,P133) -> 0 | Q135: =MIN(InputS!N66*'Financial Model'!Q8,Q133) -> 1614000 | R135: =MIN(InputS!O66*'Financial Model'!R8,R133) -> 1614000 | S135: =MIN(InputS!P66*'Financial Model'!S8,S133) -> -11509000 | T135: =MIN(InputS!Q66*'Financial Model'!T8,T133) -> -5700000 | U135: =MIN(InputS!R66*'Financial Model'!U8,U133) -> -6345000 | V135: =MIN(InputS!S66*'Financial Model'!V8,V133) -> -550000 | W135: =MIN(InputS!T66*'Financial Model'!W8,W133) -> -4671000 | X135: =MIN(InputS!U66*'Financial Model'!X8,X133) -> 10623000 | Y135: =MIN(InputS!V66*'Financial Model'!Y8,Y133) -> 19595000 | Z135: =MIN(InputS!W66*'Financial Model'!Z8,Z133) -> -4135000 | AA135: =MIN(InputS!X66*'Financial Model'!AA8,AA133) -> -3438000 | AB135: =MIN(InputS!Y66*'Financial Model'!AB8,AB133) -> 40417000 | AC135: =MIN(InputS!Z66*'Financial Model'!AC8,AC133) -> -933000 | AD135: =MIN(InputS!AA66*'Financial Model'!AD8,AD133) -> -19051000 | AE135: =MIN(InputS!AB66*'Financial Model'!AE8,AE133) -> -6498000 | AF135: =MIN(InputS!AC66*'Financial Model'!AF8,AF133) -> 4468000 | AG135: =MIN(InputS!AD66*'Financial Model'!AG8,AG133) -> 62038000 | AH135: =MIN(InputS!AE66*'Financial Model'!AH8,AH133) -> 0 | AI135: =MIN(InputS!AF66*'Financial Model'!AI8,AI133) -> 0 | AJ135: =MIN(InputS!AG66*'Financial Model'!AJ8,AJ133) -> 0 | AK135: =MIN(InputS!AH66*'Financial Model'!AK8,AK133) -> 0 | AL135: =MIN(InputS!AI66*'Financial Model'!AL8,AL133) -> 3326000 | AM135: =MIN(InputS!AJ66*'Financial Model'!AM8,AM133) -> 0 | AN135: =MIN(InputS!AK66*'Financial Model'!AN8,AN133) -> 0 | AO135: =MIN(InputS!AL66*'Financial Model'!AO8,AO133) -> 0 | AP135: =MIN(InputS!AM66*'Financial Model'!AP8,AP133) -> 0 | AQ135: =MIN(InputS!AN66*'Financial Model'!AQ8,AQ133) -> 0 | AR135: =MIN(InputS!AO66*'Financial Model'!AR8,AR133) -> 0 | AS135: =MIN(InputS!AP66*'Financial Model'!AS8,AS133) -> 0 | AT135: =MIN(InputS!AQ66*'Financial Model'!AT8,AT133) -> 0 | AU135: =MIN(InputS!AR66*'Financial Model'!AU8,AU133) -> 0 | AV135: =MIN(InputS!AS66*'Financial Model'!AV8,AV133) -> 0 | AW135: =MIN(InputS!AT66*'Financial Model'!AW8,AW133) -> 0 | AX135: =MIN(InputS!AU66*'Financial Model'!AX8,AX133) -> 0 | AY135: =MIN(InputS!AV66*'Financial Model'!AY8,AY133) -> 0 | AZ135: =MIN(InputS!AW66*'Financial Model'!AZ8,AZ133) -> 0 | BA135: =MIN(InputS!AX66*'Financial Model'!BA8,BA133) -> 0 | BB135: =MIN(InputS!AY66*'Financial Model'!BB8,BB133) -> 0 | BC135: =MIN(InputS!AZ66*'Financial Model'!BC8,BC133) -> 0 | BD135: =MIN(InputS!BA66*'Financial Model'!BD8,BD133) -> 0 | BE135: =MIN(InputS!BB66*'Financial Model'!BE8,BE133) -> 0 | BF135: =MIN(InputS!BC66*'Financial Model'!BF8,BF133) -> 0 | BG135: =MIN(InputS!BD66*'Financial Model'!BG8,BG133) -> 0 | BH135: =MIN(InputS!BE66*'Financial Model'!BH8,BH133) -> 0 | BI135: =MIN(InputS!BF66*'Financial Model'!BI8,BI133) -> 0
D136: Closing Balance | L136: =L133+L134-L135 -> 0 | M136: =M133+M134-M135 -> 0 | N136: 0 | O136: 0 | P136: 80865000 | Q136: 79251000 | R136: 77637000 | S136: 89146000 | T136: 94846000 | U136: 101191000 | V136: 101741000 | W136: 106412000 | X136: 95789000 | Y136: 76194000 | Z136: 80329000 | AA136: 83767000 | AB136: 43350000 | AC136: 44283000 | AD136: 63334000 | AE136: 69832000 | AF136: 65364000 | AG136: 3326000 | AH136: 3326000 | AI136: 3326000 | AJ136: 3326000 | AK136: 3326000 | AL136: 0 | AM136: 0 | AN136: 0 | AO136: 0 | AP136: 0 | AQ136: 0 | AR136: 0 | AS136: 0 | AT136: 0 | AU136: 0 | AV136: 0 | AW136: 0 | AX136: 0 | AY136: 0 | AZ136: 0 | BA136: 0 | BB136: 0 | BC136: 0 | BD136: 0 | BE136: 0 | BF136: 0 | BG136: 0 | BH136: 0 | BI136: 0
B138: Cash Flow Statement Post-COD - Cash Waterfall
C140: Depreciation Adjusted for Financing Fees
D141: Depreciation without Added Fees | F141: USD | I141: =SUM(L141:XFD141) -> 735465000 | L141: =L74 -> 0 | M141: =M74 -> 0 | N141: 0 | O141: 0 | P141: 0 | Q141: 21013285.71 | R141: 21013285.71 | S141: 21013285.71 | T141: 21013285.71 | U141: 21013285.71 | V141: 21013285.71 | W141: 21013285.71 | X141: 21013285.71 | Y141: 21013285.71 | Z141: 21013285.71 | AA141: 21013285.71 | AB141: 21013285.71 | AC141: 21013285.71 | AD141: 21013285.71 | AE141: 21013285.71 | AF141: 21013285.71 | AG141: 21013285.71 | AH141: 21013285.71 | AI141: 21013285.71 | AJ141: 21013285.71 | AK141: 21013285.71 | AL141: 21013285.71 | AM141: 21013285.71 | AN141: 21013285.71 | AO141: 21013285.71 | AP141: 21013285.71 | AQ141: 21013285.71 | AR141: 21013285.71 | AS141: 21013285.71 | AT141: 21013285.71 | AU141: 21013285.71 | AV141: 21013285.71 | AW141: 21013285.71 | AX141: 21013285.71 | AY141: 21013285.71 | AZ141: 0 | BA141: 0 | BB141: 0 | BC141: 0 | BD141: 0 | BE141: 0 | BF141: 0 | BG141: 0 | BH141: 0 | BI141: 0
D142: Financing Costs, Legal Fees | F142: USD | L142: =L99+L100 -> 0 | M142: 76134000 | N142: 86816000 | O142: 94955000 | P142: 111556000 | Q142: 0 | R142: 0 | S142: 0 | T142: 0 | U142: 0 | V142: 0 | W142: 0 | X142: 0 | Y142: 0 | Z142: 0 | AA142: 0 | AB142: 0 | AC142: 0 | AD142: 0 | AE142: 0 | AF142: 0 | AG142: 0 | AH142: 0 | AI142: 0 | AJ142: 0 | AK142: 0 | AL142: 0 | AM142: 0 | AN142: 0 | AO142: 0 | AP142: 0 | AQ142: 0 | AR142: =AR99+AR100 -> 0 | AS142: 0 | AT142: 0 | AU142: 0 | AV142: 0 | AW142: 0 | AX142: 0 | AY142: 0 | AZ142: 0 | BA142: 0 | BB142: 0 | BC142: 0 | BD142: 0 | BE142: 0 | BF142: 0 | BG142: 0 | BH142: 0 | BI142: 0
D143: Accumulated Financing Costs | F143: USD | L143: =K143+L142 -> 0 | M143: =L143+M142 -> 76134000 | N143: 162950000 | O143: 257905000 | P143: 369461000 | Q143: =P143+Q142 -> 369461000 | R143: =Q143+R142 -> 369461000 | S143: =R143+S142 -> 369461000 | T143: =S143+T142 -> 369461000 | U143: =T143+U142 -> 369461000 | V143: =U143+V142 -> 369461000 | W143: =V143+W142 -> 369461000 | X143: =W143+X142 -> 369461000 | Y143: =X143+Y142 -> 369461000 | Z143: =Y143+Z142 -> 369461000 | AA143: =Z143+AA142 -> 369461000 | AB143: =AA143+AB142 -> 369461000 | AC143: =AB143+AC142 -> 369461000 | AD143: =AC143+AD142 -> 369461000 | AE143: =AD143+AE142 -> 369461000 | AF143: =AE143+AF142 -> 369461000 | AG143: =AF143+AG142 -> 369461000 | AH143: =AG143+AH142 -> 369461000 | AI143: =AH143+AI142 -> 369461000 | AJ143: =AI143+AJ142 -> 369461000 | AK143: =AJ143+AK142 -> 369461000 | AL143: =AK143+AL142 -> 369461000 | AM143: =AL143+AM142 -> 369461000 | AN143: =AM143+AN142 -> 369461000 | AO143: =AN143+AO142 -> 369461000 | AP143: =AO143+AP142 -> 369461000 | AQ143: =AP143+AQ142 -> 369461000 | AR143: =AQ143+AR142 -> 369461000 | AS143: =AR143+AS142 -> 369461000 | AT143: =AS143+AT142 -> 369461000 | AU143: =AT143+AU142 -> 369461000 | AV143: =AU143+AV142 -> 369461000 | AW143: =AV143+AW142 -> 369461000 | AX143: =AW143+AX142 -> 369461000 | AY143: =AX143+AY142 -> 369461000 | AZ143: =AY143+AZ142 -> 369461000 | BA143: =AZ143+BA142 -> 369461000 | BB143: =BA143+BB142 -> 369461000 | BC143: =BB143+BC142 -> 369461000 | BD143: =BC143+BD142 -> 369461000 | BE143: =BD143+BE142 -> 369461000 | BF143: =BE143+BF142 -> 369461000 | BG143: =BF143+BG142 -> 369461000 | BH143: =BG143+BH142 -> 369461000 | BI143: =BH143+BI142 -> 369461000
D144: Depreciation on Financing Costs | F144: USD | I144: =SUM(L144:XFD144) -> 369461000 | L144: =L143*L69 -> 0 | M144: 0 | N144: 0 | O144: 0 | P144: 0 | Q144: 10556028.57 | R144: 10556028.57 | S144: 10556028.57 | T144: 10556028.57 | U144: 10556028.57 | V144: 10556028.57 | W144: 10556028.57 | X144: 10556028.57 | Y144: 10556028.57 | Z144: 10556028.57 | AA144: 10556028.57 | AB144: 10556028.57 | AC144: 10556028.57 | AD144: 10556028.57 | AE144: 10556028.57 | AF144: 10556028.57 | AG144: 10556028.57 | AH144: 10556028.57 | AI144: 10556028.57 | AJ144: 10556028.57 | AK144: 10556028.57 | AL144: 10556028.57 | AM144: 10556028.57 | AN144: 10556028.57 | AO144: 10556028.57 | AP144: 10556028.57 | AQ144: 10556028.57 | AR144: =AR143*AR69 -> 10556028.57 | AS144: 10556028.57 | AT144: 10556028.57 | AU144: 10556028.57 | AV144: 10556028.57 | AW144: 10556028.57 | AX144: 10556028.57 | AY144: 10556028.57 | AZ144: 0 | BA144: 0 | BB144: 0 | BC144: 0 | BD144: 0 | BE144: 0 | BF144: 0 | BG144: 0 | BH144: 0 | BI144: 0
D145: Total Depreciation | I145: =SUM(L145:XFD145) -> 1104926000 | L145: =L144+L141 -> 0 | M145: =M144+M141 -> 0 | N145: 0 | O145: 0 | P145: 0 | Q145: 31569314.29 | R145: 31569314.29 | S145: 31569314.29 | T145: 31569314.29 | U145: 31569314.29 | V145: 31569314.29 | W145: 31569314.29 | X145: 31569314.29 | Y145: 31569314.29 | Z145: 31569314.29 | AA145: 31569314.29 | AB145: 31569314.29 | AC145: 31569314.29 | AD145: 31569314.29 | AE145: 31569314.29 | AF145: 31569314.29 | AG145: 31569314.29 | AH145: 31569314.29 | AI145: 31569314.29 | AJ145: 31569314.29 | AK145: 31569314.29 | AL145: 31569314.29 | AM145: 31569314.29 | AN145: 31569314.29 | AO145: 31569314.29 | AP145: 31569314.29 | AQ145: 31569314.29 | AR145: 31569314.29 | AS145: 31569314.29 | AT145: 31569314.29 | AU145: 31569314.29 | AV145: 31569314.29 | AW145: 31569314.29 | AX145: 31569314.29 | AY145: 31569314.29 | AZ145: 0 | BA145: 0 | BB145: 0 | BC145: 0 | BD145: 0 | BE145: 0 | BF145: 0 | BG145: 0 | BH145: 0 | BI145: 0
C147: Taxes Adjusted for Interest and Total Depreciation
D148: EBITDA | F148: USD | I148: =SUM(L148:XFD148) -> 0 | L148: =L76 -> 0 | M148: =M76 -> 0 | N148: 0 | O148: 0 | P148: 0 | Q148: 0 | R148: 0 | S148: 0 | T148: 0 | U148: 0 | V148: 0 | W148: 0 | X148: 0 | Y148: 0 | Z148: 0 | AA148: 0 | AB148: 0 | AC148: 0 | AD148: 0 | AE148: 0 | AF148: 0 | AG148: 0 | AH148: 0 | AI148: 0 | AJ148: 0 | AK148: 0 | AL148: 0 | AM148: 0 | AN148: 0 | AO148: 0 | AP148: 0 | AQ148: 0 | AR148: 0 | AS148: 0 | AT148: 0 | AU148: 0 | AV148: 0 | AW148: 0 | AX148: 0 | AY148: 0 | AZ148: 0 | BA148: 0 | BB148: 0 | BC148: 0 | BD148: 0 | BE148: 0 | BF148: 0 | BG148: 0 | BH148: 0 | BI148: 0
D149: Less: Depreciation Total | F149: USD | I149: =SUM(L149:XFD149) -> 1104926000 | L149: =L145 -> 0 | M149: =M145 -> 0 | N149: 0 | O149: 0 | P149: 0 | Q149: 31569314.29 | R149: 31569314.29 | S149: 31569314.29 | T149: 31569314.29 | U149: 31569314.29 | V149: 31569314.29 | W149: 31569314.29 | X149: 31569314.29 | Y149: 31569314.29 | Z149: 31569314.29 | AA149: 31569314.29 | AB149: 31569314.29 | AC149: 31569314.29 | AD149: 31569314.29 | AE149: 31569314.29 | AF149: 31569314.29 | AG149: 31569314.29 | AH149: 31569314.29 | AI149: 31569314.29 | AJ149: 31569314.29 | AK149: 31569314.29 | AL149: 31569314.29 | AM149: 31569314.29 | AN149: 31569314.29 | AO149: 31569314.29 | AP149: 31569314.29 | AQ149: 31569314.29 | AR149: 31569314.29 | AS149: 31569314.29 | AT149: 31569314.29 | AU149: 31569314.29 | AV149: 31569314.29 | AW149: 31569314.29 | AX149: 31569314.29 | AY149: 31569314.29 | AZ149: 0 | BA149: 0 | BB149: 0 | BC149: 0 | BD149: 0 | BE149: 0 | BF149: 0 | BG149: 0 | BH149: 0 | BI149: 0
D150: EBIT | F150: USD | I150: =SUM(L150:XFD150) -> -1104926000 | L150: =L148-L149 -> 0 | M150: =M148-M149 -> 0 | N150: 0 | O150: 0 | P150: 0 | Q150: -31569314.29 | R150: -31569314.29 | S150: -31569314.29 | T150: -31569314.29 | U150: -31569314.29 | V150: -31569314.29 | W150: -31569314.29 | X150: -31569314.29 | Y150: -31569314.29 | Z150: -31569314.29 | AA150: -31569314.29 | AB150: -31569314.29 | AC150: -31569314.29 | AD150: -31569314.29 | AE150: -31569314.29 | AF150: -31569314.29 | AG150: -31569314.29 | AH150: -31569314.29 | AI150: -31569314.29 | AJ150: -31569314.29 | AK150: -31569314.29 | AL150: -31569314.29 | AM150: -31569314.29 | AN150: -31569314.29 | AO150: -31569314.29 | AP150: -31569314.29 | AQ150: -31569314.29 | AR150: -31569314.29 | AS150: -31569314.29 | AT150: -31569314.29 | AU150: -31569314.29 | AV150: -31569314.29 | AW150: -31569314.29 | AX150: -31569314.29 | AY150: -31569314.29 | AZ150: 0 | BA150: 0 | BB150: 0 | BC150: 0 | BD150: 0 | BE150: 0 | BF150: 0 | BG150: 0 | BH150: 0 | BI150: 0
D151: Less: Interest | F151: USD | I151: =SUM(L151:XFD151) -> 1320209202 | L151: =L130 -> 0 | M151: =M130 -> 0 | N151: 0 | O151: 0 | P151: 0 | Q151: 123691705.8 | R151: 120464955 | S151: 117238276.1 | T151: 115258829.5 | U151: 110298068.8 | V151: 104063823.4 | W151: 96591259.78 | X151: 87982334.16 | Y151: 75949483.58 | Z151: 68346898.61 | AA151: 61028439.73 | AB151: 52417009.72 | AC151: 40351414.13 | AD151: 36374994.99 | AE151: 32912262.57 | AF151: 25454989.25 | AG151: 11866457.2 | AH151: 6653000 | AI151: 6653000 | AJ151: 6653000 | AK151: 6653000 | AL151: 13306000 | AM151: 0 | AN151: 0 | AO151: 0 | AP151: 0 | AQ151: 0 | AR151: 0 | AS151: 0 | AT151: 0 | AU151: 0 | AV151: 0 | AW151: 0 | AX151: 0 | AY151: 0 | AZ151: 0 | BA151: 0 | BB151: 0 | BC151: 0 | BD151: 0 | BE151: 0 | BF151: 0 | BG151: 0 | BH151: 0 | BI151: 0
D152: EBT | F152: USD | I152: =SUM(L152:XFD152) -> -2425135202 | L152: =L150-L151 -> 0 | M152: =M150-M151 -> 0 | N152: 0 | O152: 0 | P152: 0 | Q152: -155261020.1 | R152: -152034269.3 | S152: -148807590.4 | T152: -146828143.8 | U152: -141867383.1 | V152: -135633137.7 | W152: -128160574.1 | X152: -119551648.4 | Y152: -107518797.9 | Z152: -99916212.9 | AA152: -92597754.02 | AB152: -83986324.01 | AC152: -71920728.42 | AD152: -67944309.27 | AE152: -64481576.85 | AF152: -57024303.54 | AG152: -43435771.49 | AH152: -38222314.29 | AI152: -38222314.29 | AJ152: -38222314.29 | AK152: -38222314.29 | AL152: -44875314.29 | AM152: -31569314.29 | AN152: -31569314.29 | AO152: -31569314.29 | AP152: -31569314.29 | AQ152: -31569314.29 | AR152: -31569314.29 | AS152: -31569314.29 | AT152: -31569314.29 | AU152: -31569314.29 | AV152: -31569314.29 | AW152: -31569314.29 | AX152: -31569314.29 | AY152: -31569314.29 | AZ152: 0 | BA152: 0 | BB152: 0 | BC152: 0 | BD152: 0 | BE152: 0 | BF152: 0 | BG152: 0 | BH152: 0 | BI152: 0
D154: Tax Rate | L154: =L80 -> 0.34 | M154: =M80 -> 0.34 | N154: 0.34 | O154: 0.34 | P154: 0.34 | Q154: 0.34 | R154: 0.34 | S154: 0.34 | T154: 0.34 | U154: 0.34 | V154: 0.34 | W154: 0.34 | X154: 0.34 | Y154: 0.34 | Z154: 0.34 | AA154: 0.34 | AB154: 0.34 | AC154: 0.34 | AD154: 0.34 | AE154: 0.34 | AF154: 0.34 | AG154: 0.34 | AH154: 0.34 | AI154: 0.34 | AJ154: 0.34 | AK154: 0.34 | AL154: 0.34 | AM154: 0.34 | AN154: 0.34 | AO154: 0.34 | AP154: 0.34 | AQ154: 0.34 | AR154: 0.34 | AS154: 0.34 | AT154: 0.34 | AU154: 0.34 | AV154: 0.34 | AW154: 0.34 | AX154: 0.34 | AY154: 0.34 | AZ154: 0.34 | BA154: 0.34 | BB154: 0.34 | BC154: 0.34 | BD154: 0.34 | BE154: 0.34 | BF154: 0.34 | BG154: 0.34 | BH154: 0.34 | BI154: 0.34
D155: Taxes | F155: USD | I155: =SUM(L155:XFD155) -> -824545968.8 | L155: =L154*L152*L8 -> 0 | M155: =M154*M152*M8 -> 0 | N155: =N154*N152*N8 -> 0 | O155: =O154*O152*O8 -> 0 | P155: =P154*P152*P8 -> 0 | Q155: =Q154*Q152*Q8 -> -52788746.82 | R155: =R154*R152*R8 -> -51691651.57 | S155: =S154*S152*S8 -> -50594580.74 | T155: =T154*T152*T8 -> -49921568.9 | U155: =U154*U152*U8 -> -48234910.25 | V155: =V154*V152*V8 -> -46115266.81 | W155: =W154*W152*W8 -> -43574595.18 | X155: =X154*X152*X8 -> -40647560.47 | Y155: =Y154*Y152*Y8 -> -36556391.27 | Z155: =Z154*Z152*Z8 -> -33971512.38 | AA155: =AA154*AA152*AA8 -> -31483236.37 | AB155: =AB154*AB152*AB8 -> -28555350.16 | AC155: =AC154*AC152*AC8 -> -24453047.66 | AD155: =AD154*AD152*AD8 -> -23101065.15 | AE155: =AE154*AE152*AE8 -> -21923736.13 | AF155: =AF154*AF152*AF8 -> -19388263.2 | AG155: =AG154*AG152*AG8 -> -14768162.31 | AH155: =AH154*AH152*AH8 -> -12995586.86 | AI155: =AI154*AI152*AI8 -> -12995586.86 | AJ155: =AJ154*AJ152*AJ8 -> -12995586.86 | AK155: =AK154*AK152*AK8 -> -12995586.86 | AL155: =AL154*AL152*AL8 -> -15257606.86 | AM155: =AM154*AM152*AM8 -> -10733566.86 | AN155: =AN154*AN152*AN8 -> -10733566.86 | AO155: =AO154*AO152*AO8 -> -10733566.86 | AP155: =AP154*AP152*AP8 -> -10733566.86 | AQ155: =AQ154*AQ152*AQ8 -> -10733566.86 | AR155: =AR154*AR152*AR8 -> -10733566.86 | AS155: =AS154*AS152*AS8 -> -10733566.86 | AT155: =AT154*AT152*AT8 -> -10733566.86 | AU155: =AU154*AU152*AU8 -> -10733566.86 | AV155: =AV154*AV152*AV8 -> -10733566.86 | AW155: =AW154*AW152*AW8 -> -10733566.86 | AX155: =AX154*AX152*AX8 -> -10733566.86 | AY155: =AY154*AY152*AY8 -> -10733566.86 | AZ155: =AZ154*AZ152*AZ8 -> 0 | BA155: =BA154*BA152*BA8 -> 0 | BB155: =BB154*BB152*BB8 -> 0 | BC155: =BC154*BC152*BC8 -> 0 | BD155: =BD154*BD152*BD8 -> 0 | BE155: =BE154*BE152*BE8 -> 0 | BF155: =BF154*BF152*BF8 -> 0 | BG155: =BG154*BG152*BG8 -> 0 | BH155: =BH154*BH152*BH8 -> 0 | BI155: =BI154*BI152*BI8 -> 0
C157: Cash Flow
D158: EBITDA | F158: USD | I158: =SUM(L158:XFD158) -> 0 | L158: =L148*L8 -> 0 | M158: =M148*M8 -> 0 | N158: =N148*N8 -> 0 | O158: =O148*O8 -> 0 | P158: =P148*P8 -> 0 | Q158: =Q148*Q8 -> 0 | R158: =R148*R8 -> 0 | S158: =S148*S8 -> 0 | T158: =T148*T8 -> 0 | U158: =U148*U8 -> 0 | V158: =V148*V8 -> 0 | W158: =W148*W8 -> 0 | X158: =X148*X8 -> 0 | Y158: =Y148*Y8 -> 0 | Z158: =Z148*Z8 -> 0 | AA158: =AA148*AA8 -> 0 | AB158: =AB148*AB8 -> 0 | AC158: =AC148*AC8 -> 0 | AD158: =AD148*AD8 -> 0 | AE158: =AE148*AE8 -> 0 | AF158: =AF148*AF8 -> 0 | AG158: =AG148*AG8 -> 0 | AH158: =AH148*AH8 -> 0 | AI158: =AI148*AI8 -> 0 | AJ158: =AJ148*AJ8 -> 0 | AK158: =AK148*AK8 -> 0 | AL158: =AL148*AL8 -> 0 | AM158: =AM148*AM8 -> 0 | AN158: =AN148*AN8 -> 0 | AO158: =AO148*AO8 -> 0 | AP158: =AP148*AP8 -> 0 | AQ158: =AQ148*AQ8 -> 0 | AR158: =AR148*AR8 -> 0 | AS158: =AS148*AS8 -> 0 | AT158: =AT148*AT8 -> 0 | AU158: =AU148*AU8 -> 0 | AV158: =AV148*AV8 -> 0 | AW158: =AW148*AW8 -> 0 | AX158: =AX148*AX8 -> 0 | AY158: =AY148*AY8 -> 0 | AZ158: =AZ148*AZ8 -> 0 | BA158: =BA148*BA8 -> 0 | BB158: =BB148*BB8 -> 0 | BC158: =BC148*BC8 -> 0 | BD158: =BD148*BD8 -> 0 | BE158: =BE148*BE8 -> 0 | BF158: =BF148*BF8 -> 0 | BG158: =BG148*BG8 -> 0 | BH158: =BH148*BH8 -> 0 | BI158: =BI148*BI8 -> 0
D159: Less: Taxes | F159: USD | I159: =SUM(L159:XFD159) -> -824545968.8 | L159: =L155 -> 0 | M159: =M155 -> 0 | N159: 0 | O159: 0 | P159: 0 | Q159: -52788746.82 | R159: -51691651.57 | S159: -50594580.74 | T159: -49921568.9 | U159: -48234910.25 | V159: -46115266.81 | W159: -43574595.18 | X159: -40647560.47 | Y159: -36556391.27 | Z159: -33971512.38 | AA159: -31483236.37 | AB159: -28555350.16 | AC159: -24453047.66 | AD159: -23101065.15 | AE159: -21923736.13 | AF159: -19388263.2 | AG159: -14768162.31 | AH159: -12995586.86 | AI159: -12995586.86 | AJ159: -12995586.86 | AK159: -12995586.86 | AL159: -15257606.86 | AM159: -10733566.86 | AN159: -10733566.86 | AO159: -10733566.86 | AP159: -10733566.86 | AQ159: -10733566.86 | AR159: -10733566.86 | AS159: -10733566.86 | AT159: -10733566.86 | AU159: -10733566.86 | AV159: -10733566.86 | AW159: -10733566.86 | AX159: -10733566.86 | AY159: -10733566.86 | AZ159: 0 | BA159: 0 | BB159: 0 | BC159: 0 | BD159: 0 | BE159: 0 | BF159: 0 | BG159: 0 | BH159: 0 | BI159: 0
D160: CFADS | F160: USD | I160: =SUM(L160:XFD160) -> 824545968.8 | L160: =L158-L159 -> 0 | M160: =M158-M159 -> 0 | N160: 0 | O160: 0 | P160: 0 | Q160: 52788746.82 | R160: 51691651.57 | S160: 50594580.74 | T160: 49921568.9 | U160: 48234910.25 | V160: 46115266.81 | W160: 43574595.18 | X160: 40647560.47 | Y160: 36556391.27 | Z160: 33971512.38 | AA160: 31483236.37 | AB160: 28555350.16 | AC160: 24453047.66 | AD160: 23101065.15 | AE160: 21923736.13 | AF160: 19388263.2 | AG160: 14768162.31 | AH160: 12995586.86 | AI160: 12995586.86 | AJ160: 12995586.86 | AK160: 12995586.86 | AL160: 15257606.86 | AM160: 10733566.86 | AN160: 10733566.86 | AO160: 10733566.86 | AP160: 10733566.86 | AQ160: 10733566.86 | AR160: 10733566.86 | AS160: 10733566.86 | AT160: 10733566.86 | AU160: 10733566.86 | AV160: 10733566.86 | AW160: 10733566.86 | AX160: 10733566.86 | AY160: 10733566.86 | AZ160: 0 | BA160: 0 | BB160: 0 | BC160: 0 | BD160: 0 | BE160: 0 | BF160: 0 | BG160: 0 | BH160: 0 | BI160: 0
D161: Less: Interest | F161: USD | I161: =SUM(L161:XFD161) -> 1320209202 | L161: =L151 -> 0 | M161: =M151 -> 0 | N161: 0 | O161: 0 | P161: 0 | Q161: 123691705.8 | R161: 120464955 | S161: 117238276.1 | T161: 115258829.5 | U161: 110298068.8 | V161: 104063823.4 | W161: 96591259.78 | X161: 87982334.16 | Y161: 75949483.58 | Z161: 68346898.61 | AA161: 61028439.73 | AB161: 52417009.72 | AC161: 40351414.13 | AD161: 36374994.99 | AE161: 32912262.57 | AF161: 25454989.25 | AG161: 11866457.2 | AH161: 6653000 | AI161: 6653000 | AJ161: 6653000 | AK161: 6653000 | AL161: 13306000 | AM161: 0 | AN161: 0 | AO161: 0 | AP161: 0 | AQ161: 0 | AR161: 0 | AS161: 0 | AT161: 0 | AU161: 0 | AV161: 0 | AW161: 0 | AX161: 0 | AY161: 0 | AZ161: 0 | BA161: 0 | BB161: 0 | BC161: 0 | BD161: 0 | BE161: 0 | BF161: 0 | BG161: 0 | BH161: 0 | BI161: 0
D162: Less: Repayment | F162: USD | I162: =SUM(L162:XFD162) -> 1450000000 | L162: =L124 -> 0 | M162: =M124 -> 0 | N162: 0 | O162: 0 | P162: 0 | Q162: 38889000 | R162: 38889000 | S162: 38889000 | T162: 64477000 | U162: 81242000 | V162: 100653000 | W162: 109477000 | X162: 127928000 | Y162: 94419000 | Z162: 86000000 | AA162: 102000000 | AB162: 118000000 | AC162: 47448000 | AD162: 53448000 | AE162: 96207000 | AF162: 117586000 | AG162: 59448000 | AH162: 0 | AI162: 0 | AJ162: 0 | AK162: 0 | AL162: 75000000 | AM162: 0 | AN162: 0 | AO162: 0 | AP162: 0 | AQ162: 0 | AR162: 0 | AS162: 0 | AT162: 0 | AU162: 0 | AV162: 0 | AW162: 0 | AX162: 0 | AY162: 0 | AZ162: 0 | BA162: 0 | BB162: 0 | BC162: 0 | BD162: 0 | BE162: 0 | BF162: 0 | BG162: 0 | BH162: 0 | BI162: 0
D163: Add: DSRA Changes | F163: USD | I163: =SUM(L163:XFD163) -> 80865000 | L163: =L135 -> 0 | M163: =M135 -> 0 | N163: 0 | O163: 0 | P163: 0 | Q163: 1614000 | R163: 1614000 | S163: -11509000 | T163: -5700000 | U163: -6345000 | V163: -550000 | W163: -4671000 | X163: 10623000 | Y163: 19595000 | Z163: -4135000 | AA163: -3438000 | AB163: 40417000 | AC163: -933000 | AD163: -19051000 | AE163: -6498000 | AF163: 4468000 | AG163: 62038000 | AH163: 0 | AI163: 0 | AJ163: 0 | AK163: 0 | AL163: 3326000 | AM163: 0 | AN163: 0 | AO163: 0 | AP163: 0 | AQ163: 0 | AR163: 0 | AS163: 0 | AT163: 0 | AU163: 0 | AV163: 0 | AW163: 0 | AX163: 0 | AY163: 0 | AZ163: 0 | BA163: 0 | BB163: 0 | BC163: 0 | BD163: 0 | BE163: 0 | BF163: 0 | BG163: 0 | BH163: 0 | BI163: 0
D164: Cash Flow Before Sweep | F164: USD | I164: =SUM(L164:XFD164) -> -1864798234 | L164: =L160-L161-L162+L163 -> 0 | M164: =M160-M161-M162+M163 -> 0 | N164: 0 | O164: 0 | P164: 0 | Q164: -108177959 | R164: -106048303.5 | S164: -117041695.4 | T164: -135514260.6 | U164: -149650158.6 | V164: -159151556.6 | W164: -167164664.6 | X164: -164639773.7 | Y164: -114217092.3 | Z164: -124510386.2 | AA164: -134983203.4 | AB164: -101444659.6 | AC164: -64279366.47 | AD164: -85772929.83 | AE164: -113693526.4 | AF164: -119184726 | AG164: 5491705.104 | AH164: 6342586.857 | AI164: 6342586.857 | AJ164: 6342586.857 | AK164: 6342586.857 | AL164: -69722393.14 | AM164: 10733566.86 | AN164: 10733566.86 | AO164: 10733566.86 | AP164: 10733566.86 | AQ164: 10733566.86 | AR164: 10733566.86 | AS164: 10733566.86 | AT164: 10733566.86 | AU164: 10733566.86 | AV164: 10733566.86 | AW164: 10733566.86 | AX164: 10733566.86 | AY164: 10733566.86 | AZ164: 0 | BA164: 0 | BB164: 0 | BC164: 0 | BD164: 0 | BE164: 0 | BF164: 0 | BG164: 0 | BH164: 0 | BI164: 0
D165: Less: Cash Sweep | F165: USD
D166: Net Cash Flow to Equity | F166: USD | I166: =SUM(L166:XFD166) -> -1864798234 | L166: =L164-L165 -> 0 | M166: =M164-M165 -> 0 | N166: 0 | O166: 0 | P166: 0 | Q166: -108177959 | R166: -106048303.5 | S166: -117041695.4 | T166: -135514260.6 | U166: -149650158.6 | V166: -159151556.6 | W166: -167164664.6 | X166: -164639773.7 | Y166: -114217092.3 | Z166: -124510386.2 | AA166: -134983203.4 | AB166: -101444659.6 | AC166: -64279366.47 | AD166: -85772929.83 | AE166: -113693526.4 | AF166: -119184726 | AG166: 5491705.104 | AH166: 6342586.857 | AI166: 6342586.857 | AJ166: 6342586.857 | AK166: 6342586.857 | AL166: -69722393.14 | AM166: 10733566.86 | AN166: 10733566.86 | AO166: 10733566.86 | AP166: 10733566.86 | AQ166: 10733566.86 | AR166: 10733566.86 | AS166: 10733566.86 | AT166: 10733566.86 | AU166: 10733566.86 | AV166: 10733566.86 | AW166: 10733566.86 | AX166: 10733566.86 | AY166: 10733566.86 | AZ166: 0 | BA166: 0 | BB166: 0 | BC166: 0 | BD166: 0 | BE166: 0 | BF166: 0 | BG166: 0 | BH166: 0 | BI166: 0
C168: Equity IRR
D169: Dividends Received | F169: USD | I169: =SUM(L169:XFD169) -> 0
D170: Equity Invested | F170: USD | I170: =SUM(L170:XFD170) -> 0
D171: Equity Cash Flow | F171: USD | I171: =SUM(L171:XFD171) -> 0
D172: Equity IRR | F172: % | G172: =IFERROR(IRR(L171:BI171),FALSE) -> FALSE
C174: Pre-tax Debt IRR
D175: Debt Service Received | F175: USD | I175: =SUM(L175:XFD175) -> 0
D176: Debt Invested | F176: USD | I176: =SUM(L176:XFD176) -> 0
D177: Debt Cash Flow | F177: USD | I177: =SUM(L177:XFD177) -> 0
D178: Debt IRR | F178: % | G178: =IFERROR(IRR(L177:BI177),FALSE) -> FALSE
C180: After-tax Debt IRR
D181: Interest Expense | F181: USD | I181: =SUM(L181:XFD181) -> 1320209202 | L181: =L161 -> 0 | M181: =M161 -> 0 | N181: 0 | O181: 0 | P181: 0 | Q181: 123691705.8 | R181: 120464955 | S181: 117238276.1 | T181: 115258829.5 | U181: 110298068.8 | V181: 104063823.4 | W181: 96591259.78 | X181: 87982334.16 | Y181: 75949483.58 | Z181: 68346898.61 | AA181: 61028439.73 | AB181: 52417009.72 | AC181: 40351414.13 | AD181: 36374994.99 | AE181: 32912262.57 | AF181: 25454989.25 | AG181: 11866457.2 | AH181: 6653000 | AI181: 6653000 | AJ181: 6653000 | AK181: 6653000 | AL181: 13306000 | AM181: 0 | AN181: 0 | AO181: 0 | AP181: 0 | AQ181: 0 | AR181: 0 | AS181: 0 | AT181: 0 | AU181: 0 | AV181: 0 | AW181: 0 | AX181: 0 | AY181: 0 | AZ181: 0 | BA181: 0 | BB181: 0 | BC181: 0 | BD181: 0 | BE181: 0 | BF181: 0 | BG181: 0 | BH181: 0 | BI181: 0
D182: Tax Rate | F182: % | L182: =L80 -> 0.34 | M182: =M80 -> 0.34 | N182: 0.34 | O182: 0.34 | P182: 0.34 | Q182: 0.34 | R182: 0.34 | S182: 0.34 | T182: 0.34 | U182: 0.34 | V182: 0.34 | W182: 0.34 | X182: 0.34 | Y182: 0.34 | Z182: 0.34 | AA182: 0.34 | AB182: 0.34 | AC182: 0.34 | AD182: 0.34 | AE182: 0.34 | AF182: 0.34 | AG182: 0.34 | AH182: 0.34 | AI182: 0.34 | AJ182: 0.34 | AK182: 0.34 | AL182: 0.34 | AM182: 0.34 | AN182: 0.34 | AO182: 0.34 | AP182: 0.34 | AQ182: 0.34 | AR182: 0.34 | AS182: 0.34 | AT182: 0.34 | AU182: 0.34 | AV182: 0.34 | AW182: 0.34 | AX182: 0.34 | AY182: 0.34 | AZ182: 0.34 | BA182: 0.34 | BB182: 0.34 | BC182: 0.34 | BD182: 0.34 | BE182: 0.34 | BF182: 0.34 | BG182: 0.34 | BH182: 0.34 | BI182: 0.34
D183: Tax Shield | F183: USD | L183: =L181*L182 -> 0 | M183: =M181*M182 -> 0 | N183: 0 | O183: 0 | P183: 0 | Q183: 42055179.96 | R183: 40958084.71 | S183: 39861013.89 | T183: 39188002.04 | U183: 37501343.4 | V183: 35381699.96 | W183: 32841028.32 | X183: 29913993.61 | Y183: 25822824.42 | Z183: 23237945.53 | AA183: 20749669.51 | AB183: 17821783.3 | AC183: 13719480.8 | AD183: 12367498.3 | AE183: 11190169.27 | AF183: 8654696.346 | AG183: 4034595.449 | AH183: 2262020 | AI183: 2262020 | AJ183: 2262020 | AK183: 2262020 | AL183: 4524040 | AM183: 0 | AN183: 0 | AO183: 0 | AP183: 0 | AQ183: 0 | AR183: 0 | AS183: 0 | AT183: 0 | AU183: 0 | AV183: 0 | AW183: 0 | AX183: 0 | AY183: 0 | AZ183: 0 | BA183: 0 | BB183: 0 | BC183: 0 | BD183: 0 | BE183: 0 | BF183: 0 | BG183: 0 | BH183: 0 | BI183: 0
D185: Debt Cash Flow - Pre-tax | F185: USD | I185: =SUM(L185:XFD185) -> 0 | L185: =L177 -> 0 | M185: =M177 -> 0 | N185: 0 | O185: 0 | P185: 0 | Q185: 0 | R185: 0 | S185: 0 | T185: 0 | U185: 0 | V185: 0 | W185: 0 | X185: 0 | Y185: 0 | Z185: 0 | AA185: 0 | AB185: 0 | AC185: 0 | AD185: 0 | AE185: 0 | AF185: 0 | AG185: 0 | AH185: 0 | AI185: 0 | AJ185: 0 | AK185: 0 | AL185: 0 | AM185: 0 | AN185: 0 | AO185: 0 | AP185: 0 | AQ185: 0 | AR185: 0 | AS185: 0 | AT185: 0 | AU185: 0 | AV185: 0 | AW185: 0 | AX185: 0 | AY185: 0 | AZ185: 0 | BA185: 0 | BB185: 0 | BC185: 0 | BD185: 0 | BE185: 0 | BF185: 0 | BG185: 0 | BH185: 0 | BI185: 0
D186: Less: Tax Shield | F186: USD | I186: =SUM(L186:XFD186) -> 448871128.8 | L186: =L183 -> 0 | M186: =M183 -> 0 | N186: 0 | O186: 0 | P186: 0 | Q186: 42055179.96 | R186: 40958084.71 | S186: 39861013.89 | T186: 39188002.04 | U186: 37501343.4 | V186: 35381699.96 | W186: 32841028.32 | X186: 29913993.61 | Y186: 25822824.42 | Z186: 23237945.53 | AA186: 20749669.51 | AB186: 17821783.3 | AC186: 13719480.8 | AD186: 12367498.3 | AE186: 11190169.27 | AF186: 8654696.346 | AG186: 4034595.449 | AH186: 2262020 | AI186: 2262020 | AJ186: 2262020 | AK186: 2262020 | AL186: 4524040 | AM186: 0 | AN186: 0 | AO186: 0 | AP186: 0 | AQ186: 0 | AR186: 0 | AS186: 0 | AT186: 0 | AU186: 0 | AV186: 0 | AW186: 0 | AX186: 0 | AY186: 0 | AZ186: 0 | BA186: 0 | BB186: 0 | BC186: 0 | BD186: 0 | BE186: 0 | BF186: 0 | BG186: 0 | BH186: 0 | BI186: 0
D187: Debt Cash Flow After-tax | F187: USD | I187: =SUM(L187:XFD187) -> -448871128.8 | L187: =L185-L186 -> 0 | M187: =M185-M186 -> 0 | N187: 0 | O187: 0 | P187: 0 | Q187: -42055179.96 | R187: -40958084.71 | S187: -39861013.89 | T187: -39188002.04 | U187: -37501343.4 | V187: -35381699.96 | W187: -32841028.32 | X187: -29913993.61 | Y187: -25822824.42 | Z187: -23237945.53 | AA187: -20749669.51 | AB187: -17821783.3 | AC187: -13719480.8 | AD187: -12367498.3 | AE187: -11190169.27 | AF187: -8654696.346 | AG187: -4034595.449 | AH187: -2262020 | AI187: -2262020 | AJ187: -2262020 | AK187: -2262020 | AL187: -4524040 | AM187: 0 | AN187: 0 | AO187: 0 | AP187: 0 | AQ187: 0 | AR187: 0 | AS187: 0 | AT187: 0 | AU187: 0 | AV187: 0 | AW187: 0 | AX187: 0 | AY187: 0 | AZ187: 0 | BA187: 0 | BB187: 0 | BC187: 0 | BD187: 0 | BE187: 0 | BF187: 0 | BG187: 0 | BH187: 0 | BI187: 0
D188: Debt IRR After-tax | F188: % | G188: =IFERROR(IRR(L187:BI187),FALSE) -> FALSE
C190: DSCR | L190: =IF(L8,L6,NA()) ->  | M190: =IF(M8,M6,NA()) ->  | N190: =IF(N8,N6,NA()) ->  | O190: =IF(O8,O6,NA()) ->  | P190: =IF(P8,P6,NA()) ->  | Q190: =IF(Q8,Q6,NA()) -> 2001 | R190: =IF(R8,R6,NA()) -> 2002 | S190: =IF(S8,S6,NA()) -> 2003 | T190: =IF(T8,T6,NA()) -> 2004 | U190: =IF(U8,U6,NA()) -> 2005 | V190: =IF(V8,V6,NA()) -> 2006 | W190: =IF(W8,W6,NA()) -> 2007 | X190: =IF(X8,X6,NA()) -> 2008 | Y190: =IF(Y8,Y6,NA()) -> 2009 | Z190: =IF(Z8,Z6,NA()) -> 2010 | AA190: =IF(AA8,AA6,NA()) -> 2011 | AB190: =IF(AB8,AB6,NA()) -> 2012 | AC190: =IF(AC8,AC6,NA()) -> 2013 | AD190: =IF(AD8,AD6,NA()) -> 2014 | AE190: =IF(AE8,AE6,NA()) -> 2015 | AF190: =IF(AF8,AF6,NA()) -> 2016 | AG190: =IF(AG8,AG6,NA()) -> 2017 | AH190: =IF(AH8,AH6,NA()) -> 2018 | AI190: =IF(AI8,AI6,NA()) -> 2019 | AJ190: =IF(AJ8,AJ6,NA()) -> 2020 | AK190: =IF(AK8,AK6,NA()) -> 2021 | AL190: =IF(AL8,AL6,NA()) -> 2022 | AM190: =IF(AM8,AM6,NA()) -> 2023 | AN190: =IF(AN8,AN6,NA()) -> 2024 | AO190: =IF(AO8,AO6,NA()) -> 2025 | AP190: =IF(AP8,AP6,NA()) -> 2026 | AQ190: =IF(AQ8,AQ6,NA()) -> 2027 | AR190: =IF(AR8,AR6,NA()) -> 2028 | AS190: =IF(AS8,AS6,NA()) -> 2029 | AT190: =IF(AT8,AT6,NA()) -> 2030 | AU190: =IF(AU8,AU6,NA()) -> 2031 | AV190: =IF(AV8,AV6,NA()) -> 2032 | AW190: =IF(AW8,AW6,NA()) -> 2033 | AX190: =IF(AX8,AX6,NA()) -> 2034 | AY190: =IF(AY8,AY6,NA()) -> 2035 | AZ190: =IF(AZ8,AZ6,NA()) ->  | BA190: =IF(BA8,BA6,NA()) ->  | BB190: =IF(BB8,BB6,NA()) ->  | BC190: =IF(BC8,BC6,NA()) ->  | BD190: =IF(BD8,BD6,NA()) ->  | BE190: =IF(BE8,BE6,NA()) ->  | BF190: =IF(BF8,BF6,NA()) ->  | BG190: =IF(BG8,BG6,NA()) ->  | BH190: =IF(BH8,BH6,NA()) ->  | BI190: =IF(BI8,BI6,NA()) -> 
D191: CFADS | F191: USD | L191: =L160 -> 0 | M191: =M160 -> 0 | N191: 0 | O191: 0 | P191: 0 | Q191: 52788746.82 | R191: 51691651.57 | S191: 50594580.74 | T191: 49921568.9 | U191: 48234910.25 | V191: 46115266.81 | W191: 43574595.18 | X191: 40647560.47 | Y191: 36556391.27 | Z191: 33971512.38 | AA191: 31483236.37 | AB191: 28555350.16 | AC191: 24453047.66 | AD191: 23101065.15 | AE191: 21923736.13 | AF191: 19388263.2 | AG191: 14768162.31 | AH191: 12995586.86 | AI191: 12995586.86 | AJ191: 12995586.86 | AK191: 12995586.86 | AL191: 15257606.86 | AM191: 10733566.86 | AN191: 10733566.86 | AO191: 10733566.86 | AP191: 10733566.86 | AQ191: 10733566.86 | AR191: 10733566.86 | AS191: 10733566.86 | AT191: 10733566.86 | AU191: 10733566.86 | AV191: 10733566.86 | AW191: 10733566.86 | AX191: 10733566.86 | AY191: 10733566.86 | AZ191: 0 | BA191: 0 | BB191: 0 | BC191: 0 | BD191: 0 | BE191: 0 | BF191: 0 | BG191: 0 | BH191: 0 | BI191: 0
D192: Debt Service | F192: USD | L192: =L161+L162 -> 0 | M192: =M161+M162 -> 0 | N192: 0 | O192: 0 | P192: 0 | Q192: 162580705.8 | R192: 159353955 | S192: 156127276.1 | T192: 179735829.5 | U192: 191540068.8 | V192: 204716823.4 | W192: 206068259.8 | X192: 215910334.2 | Y192: 170368483.6 | Z192: 154346898.6 | AA192: 163028439.7 | AB192: 170417009.7 | AC192: 87799414.13 | AD192: 89822994.99 | AE192: 129119262.6 | AF192: 143040989.3 | AG192: 71314457.2 | AH192: 6653000 | AI192: 6653000 | AJ192: 6653000 | AK192: 6653000 | AL192: 88306000 | AM192: 0 | AN192: 0 | AO192: 0 | AP192: 0 | AQ192: 0 | AR192: 0 | AS192: 0 | AT192: 0 | AU192: 0 | AV192: 0 | AW192: 0 | AX192: 0 | AY192: 0 | AZ192: 0 | BA192: 0 | BB192: 0 | BC192: 0 | BD192: 0 | BE192: 0 | BF192: 0 | BG192: 0 | BH192: 0 | BI192: 0
D193: Min DSCR | F193: x | G193: =MIN(L193:BI193) -> 0.1355434083 | L193: =IF(L192>0.1,MIN(L191/L192,10)) -> FALSE | M193: =IF(M192>0.1,MIN(M191/M192,10)) -> FALSE | N193: FALSE | O193: FALSE | P193: FALSE | Q193: 0.3246925677 | R193: 0.3243826082 | S193: 0.324059844 | T193: 0.2777496787 | U193: 0.2518267355 | V193: 0.2252636889 | W193: 0.211457093 | X193: 0.1882613013 | Y193: 0.214572499 | Z193: 0.2200984451 | AA193: 0.1931149953 | AB193: 0.1675616196 | AC193: 0.2785103739 | AD193: 0.2571843118 | AE193: 0.1697944652 | AF193: 0.1355434083 | AG193: 0.2070851113 | AH193: 1.95334238 | AI193: 1.95334238 | AJ193: 1.95334238 | AK193: 1.95334238 | AL193: 0.1727810891 | AM193: FALSE | AN193: FALSE | AO193: FALSE | AP193: FALSE | AQ193: FALSE | AR193: FALSE | AS193: FALSE | AT193: FALSE | AU193: FALSE | AV193: FALSE | AW193: FALSE | AX193: FALSE | AY193: FALSE | AZ193: FALSE | BA193: FALSE | BB193: FALSE | BC193: FALSE | BD193: FALSE | BE193: FALSE | BF193: FALSE | BG193: FALSE | BH193: FALSE | BI193: FALSE

Sheet Cost Structure
H3: =_xlfn.SEQUENCE(,31,1998) -> 1998 | I3: 1999 | J3: 2000 | K3: 2001 | L3: 2002 | M3: 2003 | N3: 2004 | O3: 2005 | P3: 2006 | Q3: 2007 | R3: 2008 | S3: 2009 | T3: 2010 | U3: 2011 | V3: 2012 | W3: 2013 | X3: 2014 | Y3: 2015 | Z3: 2016 | AA3: 2017 | AB3: 2018 | AC3: 2019 | AD3: 2020 | AE3: 2021 | AF3: 2022 | AG3: 2023 | AH3: 2024 | AI3: 2025 | AJ3: 2026 | AK3: 2027 | AL3: 2028
B5: Production | E5: BBL | H5: =InputS!K24:AU24 -> 6101320.901 | I5: 32529112.96 | J5: 59475443.79 | K5: 41064646.46 | L5: 41069458.13 | M5: 41098763.74 | N5: 41096316.14 | O5: 41118758.17 | P5: 41138520.41 | Q5: 41156565.03 | R5: 41173406.19 | S5: 41165364.12 | T5: 41182495.67 | U5: 41200225.48 | V5: 41196536.56 | W5: 41217757.51 | X5: 41244527.9 | Y5: 41271942.06 | Z5: 41299946.35 | AA5: 41328594.42 | AB5: 41357886.27 | AC5: 41387768.24 | AD5: 41945225.32 | AE5: 41976448.5 | AF5: 42008369.1 | AG5: 42040987.12 | AH5: 42074356.22 | AI5: 42108422.75 | AJ5: 42143240.34 | AK5: 42178862.66 | AL5: 42215182.4 | AM5: 42252360.52 | AN5: 42290289.7 | AO5: 42329077.25 | AP5: 42368723.18 | AQ5: 42409227.47 | AR5: 42450590.13
B7: O&M Expenses | E7: USD | H7: =TRANSPOSE(Exhibit10!H13:H49)*1000 -> 74040000 | I7: 268111000 | J7: 486627000 | K7: 184391000 | L7: 194443000 | M7: 231823000 | N7: 212016000 | O7: 230906000 | P7: 211575000 | Q7: 226119000 | R7: 240008000 | S7: 322101000 | T7: 341400000 | U7: 352421000 | V7: 361937000 | W7: 439321000 | X7: 410357000 | Y7: 377764000 | Z7: 386303000 | AA7: 387497000 | AB7: 443380000 | AC7: 463444000 | AD7: 498808000 | AE7: 482977000 | AF7: 487482000 | AG7: 489066000 | AH7: 494610000 | AI7: 495196000 | AJ7: 507476000 | AK7: 509408000 | AL7: 512442000 | AM7: 523980000 | AN7: 540751000 | AO7: 538685000 | AP7: 546816000 | AQ7: 549864000 | AR7: 565083000
I8: =I7/H7-1 -> 2.621164236 | J8: =J7/I7-1 -> 0.8150206444 | K8: -0.6210834993 | L8: 0.05451459128 | M8: 0.1922414281 | N8: -0.08544018497 | O8: 0.08909704928 | P8: -0.08371804977 | Q8: 0.068741581 | R8: 0.0614234098 | S8: 0.3420427652 | T8: 0.05991598908 | U8: 0.0322817809 | V8: 0.02700179615 | W8: 0.213805165 | X8: -0.06592901318 | Y8: -0.07942596325 | Z8: 0.02260405968 | AA8: 0.003090838021 | AB8: 0.1442153101 | AC8: 0.04525237945 | AD8: 0.07630695402 | AE8: -0.03173766259 | AF8: 0.009327566323 | AG8: 0.003249350745 | AH8: 0.01133589332 | AI8: 0.00118477184 | AJ8: 0.0247982617 | AK8: 0.003807076591 | AL8: 0.005955933162 | AM8: 0.02251571885 | AN8: 0.03200694683 | AO8: -0.003820612445 | AP8: 0.01509416449 | AQ8: 0.005574087079 | AR8: 0.02767775304
B9: Total Capital Expenditures | E9: USD | G9: =(Exhibit7!J12+Exhibit7!J14)*1000 -> 1916940000
B11: Discount Rate | E11: % | F11: 0.08 | G11: =NPV(F11,_xlfn.ANCHORARRAY(H7)) -> 3628642465
B12: Total Costs | G12: =G9+G11 -> 5545582465
B14: PV of Production | E14: BBL | F14: =F11-3% -> 0.05 | G14: =NPV(F14,_xlfn.ANCHORARRAY(H5)) -> 666120388.6
B16: Break-even Cost | E16: USD/BBL | G16: =G12/G14 -> 8.325195505

Sheet Oil Prices
G1: Crude oil, average | H1: Crude oil, Brent | I1: Crude oil, Dubai | J1: Crude oil, WTI
G2: ($/bbl) | H2: ($/bbl) | I2: ($/bbl) | J2: ($/bbl) | N2: 0.9
G3: CRUDE_PETRO | H3: CRUDE_BRENT | I3: CRUDE_DUBAI | J3: CRUDE_WTI | M3: Nominal | N3: Maya | O3: Base | P3: Applied
D4: 1960M01 | E4: 1960-01-01 | F4: =YEAR(E4) -> 1960 | G4: 1.630000114 | H4: 1.630000114 | I4: 1.630000114 | J4: …
D5: 1960M02 | E5: =EDATE(E4,1) -> 1960-02-01 | F5: =YEAR(E5) -> 1960 | G5: 1.630000114 | H5: 1.630000114 | I5: 1.630000114 | J5: … | L5: =_xlfn.SEQUENCE(50,,1985) -> 1985 | M5: =AVERAGEIF(F:F,L5,J:J) -> 27.7625 | N5: =M5*$N$2 -> 24.98625
D6: 1960M03 | E6: =EDATE(E5,1) -> 1960-03-01 | F6: 1960 | G6: 1.630000114 | H6: 1.630000114 | I6: 1.630000114 | J6: … | L6: 1986 | M6: =AVERAGEIF(F:F,L6,J:J) -> 15.08333333 | N6: 13.575
D7: 1960M04 | E7: 1960-04-01 | F7: 1960 | G7: 1.630000114 | H7: 1.630000114 | I7: 1.630000114 | J7: … | L7: 1987 | M7: 19.15833333 | N7: 17.2425
D8: 1960M05 | E8: 1960-05-01 | F8: 1960 | G8: 1.630000114 | H8: 1.630000114 | I8: 1.630000114 | J8: … | L8: 1988 | M8: 15.96666667 | N8: 14.37
D9: 1960M06 | E9: 1960-06-01 | F9: 1960 | G9: 1.630000114 | H9: 1.630000114 | I9: 1.630000114 | J9: … | L9: 1989 | M9: 19.59583333 | N9: 17.63625
D10: 1960M07 | E10: 1960-07-01 | F10: 1960 | G10: 1.630000114 | H10: 1.630000114 | I10: 1.630000114 | J10: … | L10: 1990 | M10: 24.49166667 | N10: 22.0425
D11: 1960M08 | E11: 1960-08-01 | F11: 1960 | G11: 1.630000114 | H11: 1.630000114 | I11: 1.630000114 | J11: … | L11: 1991 | M11: 21.48333333 | N11: 19.335
D12: 1960M09 | E12: 1960-09-01 | F12: 1960 | G12: 1.630000114 | H12: 1.630000114 | I12: 1.630000114 | J12: … | L12: 1992 | M12: 20.5625 | N12: 18.50625
D13: 1960M10 | E13: 1960-10-01 | F13: 1960 | G13: 1.630000114 | H13: 1.630000114 | I13: 1.630000114 | J13: … | L13: 1993 | M13: 18.5625 | N13: 16.70625
D14: 1960M11 | E14: 1960-11-01 | F14: 1960 | G14: 1.630000114 | H14: 1.630000114 | I14: 1.630000114 | J14: … | L14: 1994 | M14: 17.16333333 | N14: 15.447
D15: 1960M12 | E15: 1960-12-01 | F15: 1960 | G15: 1.630000114 | H15: 1.630000114 | I15: 1.630000114 | J15: … | L15: 1995 | M15: 18.36916667 | N15: 16.53225
D16: 1961M01 | E16: 1961-01-01 | F16: 1961 | G16: 1.57 | H16: 1.57 | I16: 1.57 | J16: … | L16: 1996 | M16: 22.07 | N16: 19.863 | O16: =TRANSPOSE(InputS!I9:AU9) -> 12.25 | P16: =TRANSPOSE(InputS!I15:AU15) -> 12.25
D17: 1961M02 | E17: 1961-02-01 | F17: 1961 | G17: 1.57 | H17: 1.57 | I17: 1.57 | J17: … | L17: 1997 | M17: 20.32583651 | N17: 18.29325286 | O17: 12.56 | P17: 12.56
D18: 1961M03 | E18: 1961-03-01 | F18: 1961 | G18: 1.57 | H18: 1.57 | I18: 1.57 | J18: … | L18: 1998 | M18: 14.3492 | N18: 12.91428 | O18: 12.87 | P18: 12.87
D19: 1961M04 | E19: 1961-04-01 | F19: 1961 | G19: 1.57 | H19: 1.57 | I19: 1.57 | J19: … | L19: 1999 | M19: 19.24083333 | N19: 17.31675 | O19: 13.19 | P19: 13.19
D20: 1961M05 | E20: 1961-05-01 | F20: 1961 | G20: 1.57 | H20: 1.57 | I20: 1.57 | J20: … | L20: 2000 | M20: 30.332125 | N20: 27.2989125 | O20: 13.52 | P20: 13.52
D21: 1961M06 | E21: 1961-06-01 | F21: 1961 | G21: 1.57 | H21: 1.57 | I21: 1.57 | J21: … | L21: 2001 | M21: 25.91908289 | N21: 23.3271746 | O21: 13.86 | P21: 13.86
D22: 1961M07 | E22: 1961-07-01 | F22: 1961 | G22: 1.57 | H22: 1.57 | I22: 1.57 | J22: … | L22: 2002 | M22: 26.0931675 | N22: 23.48385075 | O22: 14.21 | P22: 14.21
D23: 1961M08 | E23: 1961-08-01 | F23: 1961 | G23: 1.57 | H23: 1.57 | I23: 1.57 | J23: … | L23: 2003 | M23: 31.1071782 | N23: 27.99646038 | O23: 14.56 | P23: 14.56
D24: 1961M09 | E24: 1961-09-01 | F24: 1961 | G24: 1.57 | H24: 1.57 | I24: 1.57 | J24: … | L24: 2004 | M24: 41.44361734 | N24: 37.29925561 | O24: 14.93 | P24: 14.93
D25: 1961M10 | E25: 1961-10-01 | F25: 1961 | G25: 1.57 | H25: 1.57 | I25: 1.57 | J25: … | L25: 2005 | M25: 56.44478447 | N25: 50.80030602 | O25: 15.3 | P25: 15.3
D26: 1961M11 | E26: 1961-11-01 | F26: 1961 | G26: 1.57 | H26: 1.57 | I26: 1.57 | J26: … | L26: 2006 | M26: 66.0425842 | N26: 59.43832578 | O26: 15.68 | P26: 15.68
D27: 1961M12 | E27: 1961-12-01 | F27: 1961 | G27: 1.57 | H27: 1.57 | I27: 1.57 | J27: … | L27: 2007 | M27: 72.28445261 | N27: 65.05600734 | O27: 16.07 | P27: 16.07
D28: 1962M01 | E28: 1962-01-01 | F28: 1962 | G28: 1.52 | H28: 1.52 | I28: 1.52 | J28: … | L28: 2008 | M28: 99.55774363 | N28: 89.60196926 | O28: 16.47 | P28: 16.47
D29: 1962M02 | E29: 1962-02-01 | F29: 1962 | G29: 1.52 | H29: 1.52 | I29: 1.52 | J29: … | L29: 2009 | M29: 61.65364 | N29: 55.488276 | O29: 16.89 | P29: 16.89
D30: 1962M03 | E30: 1962-03-01 | F30: 1962 | G30: 1.52 | H30: 1.52 | I30: 1.52 | J30: … | L30: 2010 | M30: 79.42553055 | N30: 71.4829775 | O30: 17.31 | P30: 17.31
D31: 1962M04 | E31: 1962-04-01 | F31: 1962 | G31: 1.52 | H31: 1.52 | I31: 1.52 | J31: … | L31: 2011 | M31: 95.05432893 | N31: 85.54889603 | O31: 17.74 | P31: 17.74
D32: 1962M05 | E32: 1962-05-01 | F32: 1962 | G32: 1.52 | H32: 1.52 | I32: 1.52 | J32: … | L32: 2012 | M32: 94.15887843 | N32: 84.74299059 | O32: 18.19 | P32: 18.19
D33: 1962M06 | E33: 1962-06-01 | F33: 1962 | G33: 1.52 | H33: 1.52 | I33: 1.52 | J33: … | L33: 2013 | M33: 97.94276561 | N33: 88.14848905 | O33: 18.64 | P33: 18.64
D34: 1962M07 | E34: 1962-07-01 | F34: 1962 | G34: 1.52 | H34: 1.52 | I34: 1.52 | J34: … | L34: 2014 | M34: 93.1125 | N34: 83.80125 | O34: 18.64 | P34: 19.1992
D35: 1962M08 | E35: 1962-08-01 | F35: 1962 | G35: 1.52 | H35: 1.52 | I35: 1.52 | J35: … | L35: 2015 | M35: =AVERAGEIF(F:F,L35,J:J) -> 48.70916667 | N35: 43.83825 | O35: 18.64 | P35: 19.775176
D36: 1962M09 | E36: 1962-09-01 | F36: 1962 | G36: 1.52 | H36: 1.52 | I36: 1.52 | J36: … | L36: 2016 | M36: 43.1875 | N36: 38.86875 | O36: 18.64 | P36: 20.36843128
D37: 1962M10 | E37: 1962-10-01 | F37: 1962 | G37: 1.52 | H37: 1.52 | I37: 1.52 | J37: … | L37: 2017 | M37: 50.90666667 | N37: 45.816 | O37: 18.64 | P37: 20.97948422
D38: 1962M11 | E38: 1962-11-01 | F38: 1962 | G38: 1.52 | H38: 1.52 | I38: 1.52 | J38: … | L38: 2018 | M38: 64.81916667 | N38: 58.33725 | O38: 18.64 | P38: 21.60886874
D39: 1962M12 | E39: 1962-12-01 | F39: 1962 | G39: 1.52 | H39: 1.52 | I39: 1.52 | J39: … | L39: 2019 | M39: 57.01333333 | N39: 51.312 | O39: 18.64 | P39: 22.25713481
D40: 1963M01 | E40: 1963-01-01 | F40: 1963 | G40: 1.5 | H40: 1.5 | I40: 1.5 | J40: … | L40: 2020 | M40: 39.30833333 | N40: 35.3775 | O40: 18.64 | P40: 22.92484885
D41: 1963M02 | E41: 1963-02-01 | F41: 1963 | G41: 1.5 | H41: 1.5 | I41: 1.5 | J41: … | L41: 2021 | M41: =AVERAGEIF(F:F,L41,J:J) -> 67.96333333 | N41: 61.167 | O41: 18.64 | P41: 23.61259432
D42: 1963M03 | E42: 1963-03-01 | F42: 1963 | G42: 1.5 | H42: 1.5 | I42: 1.5 | J42: … | L42: 2022 | M42: 94.43083333 | N42: 84.98775 | O42: 18.64 | P42: 24.32097215
D43: 1963M04 | E43: 1963-04-01 | F43: 1963 | G43: 1.5 | H43: 1.5 | I43: 1.5 | J43: … | L43: 2023 | M43: 77.66916667 | N43: 69.90225 | O43: 18.64 | P43: 25.05060131
D44: 1963M05 | E44: 1963-05-01 | F44: 1963 | G44: 1.5 | H44: 1.5 | I44: 1.5 | J44: … | L44: 2024 | M44: 75.84416667 | N44: 68.25975 | O44: 18.64 | P44: 25.80211935
D45: 1963M06 | E45: 1963-06-01 | F45: 1963 | G45: 1.5 | H45: 1.5 | I45: 1.5 | J45: … | L45: 2025 | M45: 65.52454545 | N45: 58.97209091 | O45: 18.64 | P45: 26.57618293
D46: 1963M07 | E46: 1963-07-01 | F46: 1963 | G46: 1.5 | H46: 1.5 | I46: 1.5 | J46: … | L46: 2026 | O46: 18.64 | P46: 27.37346842
D47: 1963M08 | E47: 1963-08-01 | F47: 1963 | G47: 1.5 | H47: 1.5 | I47: 1.5 | J47: … | L47: 2027 | O47: 18.64 | P47: 28.19467247
D48: 1963M09 | E48: 1963-09-01 | F48: 1963 | G48: 1.5 | H48: 1.5 | I48: 1.5 | J48: … | L48: 2028 | O48: 18.64 | P48: 29.04051265
D49: 1963M10 | E49: 1963-10-01 | F49: 1963 | G49: 1.5 | H49: 1.5 | I49: 1.5 | J49: … | L49: 2029 | O49: 18.64 | P49: 29.91172802
D50: 1963M11 | E50: 1963-11-01 | F50: 1963 | G50: 1.5 | H50: 1.5 | I50: 1.5 | J50: … | L50: 2030 | O50: 18.64 | P50: 30.80907987
D51: 1963M12 | E51: 1963-12-01 | F51: 1963 | G51: 1.5 | H51: 1.5 | I51: 1.5 | J51: … | L51: 2031 | O51: 18.64 | P51: 31.73335226
D52: 1964M01 | E52: 1964-01-01 | F52: 1964 | G52: 1.45 | H52: 1.45 | I52: 1.45 | J52: … | L52: 2032 | O52: 18.64 | P52: 32.68535283
D53: 1964M02 | E53: 1964-02-01 | F53: 1964 | G53: 1.45 | H53: 1.45 | I53: 1.45 | J53: … | L53: 2033 | O53: 18.64 | P53: 33.66591341
D54: 1964M03 | E54: 1964-03-01 | F54: 1964 | G54: 1.45 | H54: 1.45 | I54: 1.45 | J54: … | L54: 2034 | O54: 18.64 | P54: 34.67589082
D55: 1964M04 | E55: 1964-04-01 | F55: 1964 | G55: 1.45 | H55: 1.45 | I55: 1.45 | J55: …
D56: 1964M05 | E56: 1964-05-01 | F56: 1964 | G56: 1.45 | H56: 1.45 | I56: 1.45 | J56: …
D57: 1964M06 | E57: 1964-06-01 | F57: 1964 | G57: 1.45 | H57: 1.45 | I57: 1.45 | J57: …
D58: 1964M07 | E58: 1964-07-01 | F58: 1964 | G58: 1.45 | H58: 1.45 | I58: 1.45 | J58: …
D59: 1964M08 | E59: 1964-08-01 | F59: 1964 | G59: 1.45 | H59: 1.45 | I59: 1.45 | J59: …
D60: 1964M09 | E60: 1964-09-01 | F60: 1964 | G60: 1.45 | H60: 1.45 | I60: 1.45 | J60: …
D61: 1964M10 | E61: 1964-10-01 | F61: 1964 | G61: 1.45 | H61: 1.45 | I61: 1.45 | J61: …
D62: 1964M11 | E62: 1964-11-01 | F62: 1964 | G62: 1.45 | H62: 1.45 | I62: 1.45 | J62: …
D63: 1964M12 | E63: 1964-12-01 | F63: 1964 | G63: 1.45 | H63: 1.45 | I63: 1.45 | J63: …
D64: 1965M01 | E64: 1965-01-01 | F64: 1965 | G64: 1.42 | H64: 1.42 | I64: 1.42 | J64: …
D65: 1965M02 | E65: 1965-02-01 | F65: 1965 | G65: 1.42 | H65: 1.42 | I65: 1.42 | J65: …
D66: 1965M03 | E66: 1965-03-01 | F66: 1965 | G66: 1.42 | H66: 1.42 | I66: 1.42 | J66: …
D67: 1965M04 | E67: 1965-04-01 | F67: 1965 | G67: 1.42 | H67: 1.42 | I67: 1.42 | J67: …
D68: 1965M05 | E68: 1965-05-01 | F68: 1965 | G68: 1.42 | H68: 1.42 | I68: 1.42 | J68: …
D69: 1965M06 | E69: 1965-06-01 | F69: =YEAR(E69) -> 1965 | G69: 1.42 | H69: 1.42 | I69: 1.42 | J69: …
D70: 1965M07 | E70: =EDATE(E69,1) -> 1965-07-01 | F70: 1965 | G70: 1.42 | H70: 1.42 | I70: 1.42 | J70: …
D71: 1965M08 | E71: 1965-08-01 | F71: 1965 | G71: 1.42 | H71: 1.42 | I71: 1.42 | J71: …
D72: 1965M09 | E72: 1965-09-01 | F72: 1965 | G72: 1.42 | H72: 1.42 | I72: 1.42 | J72: …
D73: 1965M10 | E73: 1965-10-01 | F73: 1965 | G73: 1.42 | H73: 1.42 | I73: 1.42 | J73: …
D74: 1965M11 | E74: 1965-11-01 | F74: 1965 | G74: 1.42 | H74: 1.42 | I74: 1.42 | J74: …
D75: 1965M12 | E75: 1965-12-01 | F75: 1965 | G75: 1.42 | H75: 1.42 | I75: 1.42 | J75: …
D76: 1966M01 | E76: 1966-01-01 | F76: 1966 | G76: 1.36 | H76: 1.36 | I76: 1.36 | J76: …
D77: 1966M02 | E77: 1966-02-01 | F77: 1966 | G77: 1.36 | H77: 1.36 | I77: 1.36 | J77: …
D78: 1966M03 | E78: 1966-03-01 | F78: 1966 | G78: 1.36 | H78: 1.36 | I78: 1.36 | J78: …
D79: 1966M04 | E79: 1966-04-01 | F79: 1966 | G79: 1.36 | H79: 1.36 | I79: 1.36 | J79: …
D80: 1966M05 | E80: 1966-05-01 | F80: 1966 | G80: 1.36 | H80: 1.36 | I80: 1.36 | J80: …
D81: 1966M06 | E81: 1966-06-01 | F81: 1966 | G81: 1.36 | H81: 1.36 | I81: 1.36 | J81: …
D82: 1966M07 | E82: 1966-07-01 | F82: 1966 | G82: 1.36 | H82: 1.36 | I82: 1.36 | J82: …
D83: 1966M08 | E83: 1966-08-01 | F83: 1966 | G83: 1.36 | H83: 1.36 | I83: 1.36 | J83: …
D84: 1966M09 | E84: 1966-09-01 | F84: 1966 | G84: 1.36 | H84: 1.36 | I84: 1.36 | J84: …
D85: 1966M10 | E85: 1966-10-01 | F85: 1966 | G85: 1.36 | H85: 1.36 | I85: 1.36 | J85: …
D86: 1966M11 | E86: 1966-11-01 | F86: 1966 | G86: 1.36 | H86: 1.36 | I86: 1.36 | J86: …
D87: 1966M12 | E87: 1966-12-01 | F87: 1966 | G87: 1.36 | H87: 1.36 | I87: 1.36 | J87: …
D88: 1967M01 | E88: 1967-01-01 | F88: 1967 | G88: 1.33 | H88: 1.33 | I88: 1.33 | J88: …
D89: 1967M02 | E89: 1967-02-01 | F89: 1967 | G89: 1.33 | H89: 1.33 | I89: 1.33 | J89: …
D90: 1967M03 | E90: 1967-03-01 | F90: 1967 | G90: 1.33 | H90: 1.33 | I90: 1.33 | J90: …
D91: 1967M04 | E91: 1967-04-01 | F91: 1967 | G91: 1.33 | H91: 1.33 | I91: 1.33 | J91: …
D92: 1967M05 | E92: 1967-05-01 | F92: 1967 | G92: 1.33 | H92: 1.33 | I92: 1.33 | J92: …
D93: 1967M06 | E93: 1967-06-01 | F93: 1967 | G93: 1.33 | H93: 1.33 | I93: 1.33 | J93: …
D94: 1967M07 | E94: 1967-07-01 | F94: 1967 | G94: 1.33 | H94: 1.33 | I94: 1.33 | J94: …
D95: 1967M08 | E95: 1967-08-01 | F95: 1967 | G95: 1.33 | H95: 1.33 | I95: 1.33 | J95: …
D96: 1967M09 | E96: 1967-09-01 | F96: 1967 | G96: 1.33 | H96: 1.33 | I96: 1.33 | J96: …
D97: 1967M10 | E97: 1967-10-01 | F97: 1967 | G97: 1.33 | H97: 1.33 | I97: 1.33 | J97: …
D98: 1967M11 | E98: 1967-11-01 | F98: 1967 | G98: 1.33 | H98: 1.33 | I98: 1.33 | J98: …
D99: 1967M12 | E99: 1967-12-01 | F99: 1967 | G99: 1.33 | H99: 1.33 | I99: 1.33 | J99: …
D100: 1968M01 | E100: 1968-01-01 | F100: 1968 | G100: 1.32 | H100: 1.32 | I100: 1.32 | J100: …
D101: 1968M02 | E101: 1968-02-01 | F101: 1968 | G101: 1.32 | H101: 1.32 | I101: 1.32 | J101: …
D102: 1968M03 | E102: 1968-03-01 | F102: 1968 | G102: 1.32 | H102: 1.32 | I102: 1.32 | J102: …
D103: 1968M04 | E103: 1968-04-01 | F103: 1968 | G103: 1.32 | H103: 1.32 | I103: 1.32 | J103: …
D104: 1968M05 | E104: 1968-05-01 | F104: 1968 | G104: 1.32 | H104: 1.32 | I104: 1.32 | J104: …
D105: 1968M06 | E105: 1968-06-01 | F105: 1968 | G105: 1.32 | H105: 1.32 | I105: 1.32 | J105: …
D106: 1968M07 | E106: 1968-07-01 | F106: 1968 | G106: 1.32 | H106: 1.32 | I106: 1.32 | J106: …
D107: 1968M08 | E107: 1968-08-01 | F107: 1968 | G107: 1.32 | H107: 1.32 | I107: 1.32 | J107: …
D108: 1968M09 | E108: 1968-09-01 | F108: 1968 | G108: 1.32 | H108: 1.32 | I108: 1.32 | J108: …
D109: 1968M10 | E109: 1968-10-01 | F109: 1968 | G109: 1.32 | H109: 1.32 | I109: 1.32 | J109: …
D110: 1968M11 | E110: 1968-11-01 | F110: 1968 | G110: 1.32 | H110: 1.32 | I110: 1.32 | J110: …
D111: 1968M12 | E111: 1968-12-01 | F111: 1968 | G111: 1.32 | H111: 1.32 | I111: 1.32 | J111: …
D112: 1969M01 | E112: 1969-01-01 | F112: 1969 | G112: 1.27 | H112: 1.27 | I112: 1.27 | J112: …
D113: 1969M02 | E113: 1969-02-01 | F113: 1969 | G113: 1.27 | H113: 1.27 | I113: 1.27 | J113: …
D114: 1969M03 | E114: 1969-03-01 | F114: 1969 | G114: 1.27 | H114: 1.27 | I114: 1.27 | J114: …
D115: 1969M04 | E115: 1969-04-01 | F115: 1969 | G115: 1.27 | H115: 1.27 | I115: 1.27 | J115: …
D116: 1969M05 | E116: 1969-05-01 | F116: 1969 | G116: 1.27 | H116: 1.27 | I116: 1.27 | J116: …
D117: 1969M06 | E117: 1969-06-01 | F117: 1969 | G117: 1.27 | H117: 1.27 | I117: 1.27 | J117: …
D118: 1969M07 | E118: 1969-07-01 | F118: 1969 | G118: 1.27 | H118: 1.27 | I118: 1.27 | J118: …
D119: 1969M08 | E119: 1969-08-01 | F119: 1969 | G119: 1.27 | H119: 1.27 | I119: 1.27 | J119: …
D120: 1969M09 | E120: 1969-09-01 | F120: 1969 | G120: 1.27 | H120: 1.27 | I120: 1.27 | J120: …
D121: 1969M10 | E121: 1969-10-01 | F121: 1969 | G121: 1.27 | H121: 1.27 | I121: 1.27 | J121: …
D122: 1969M11 | E122: 1969-11-01 | F122: 1969 | G122: 1.27 | H122: 1.27 | I122: 1.27 | J122: …
D123: 1969M12 | E123: 1969-12-01 | F123: 1969 | G123: 1.27 | H123: 1.27 | I123: 1.27 | J123: …
D124: 1970M01 | E124: 1970-01-01 | F124: 1970 | G124: 1.21 | H124: 1.21 | I124: 1.21 | J124: …
D125: 1970M02 | E125: 1970-02-01 | F125: 1970 | G125: 1.21 | H125: 1.21 | I125: 1.21 | J125: …
D126: 1970M03 | E126: 1970-03-01 | F126: 1970 | G126: 1.21 | H126: 1.21 | I126: 1.21 | J126: …
D127: 1970M04 | E127: 1970-04-01 | F127: 1970 | G127: 1.21 | H127: 1.21 | I127: 1.21 | J127: …
D128: 1970M05 | E128: 1970-05-01 | F128: 1970 | G128: 1.21 | H128: 1.21 | I128: 1.21 | J128: …
D129: 1970M06 | E129: 1970-06-01 | F129: 1970 | G129: 1.21 | H129: 1.21 | I129: 1.21 | J129: …
D130: 1970M07 | E130: 1970-07-01 | F130: 1970 | G130: 1.21 | H130: 1.21 | I130: 1.21 | J130: …
D131: 1970M08 | E131: 1970-08-01 | F131: 1970 | G131: 1.21 | H131: 1.21 | I131: 1.21 | J131: …
D132: 1970M09 | E132: 1970-09-01 | F132: 1970 | G132: 1.21 | H132: 1.21 | I132: 1.21 | J132: …
D133: 1970M10 | E133: 1970-10-01 | F133: =YEAR(E133) -> 1970 | G133: 1.21 | H133: 1.21 | I133: 1.21 | J133: …
D134: 1970M11 | E134: =EDATE(E133,1) -> 1970-11-01 | F134: 1970 | G134: 1.21 | H134: 1.21 | I134: 1.21 | J134: …
D135: 1970M12 | E135: 1970-12-01 | F135: 1970 | G135: 1.21 | H135: 1.21 | I135: 1.21 | J135: …
D136: 1971M01 | E136: 1971-01-01 | F136: 1971 | G136: 1.64 | H136: 1.64 | I136: 1.64 | J136: …
D137: 1971M02 | E137: 1971-02-01 | F137: 1971 | G137: 1.64 | H137: 1.64 | I137: 1.64 | J137: …
D138: 1971M03 | E138: 1971-03-01 | F138: 1971 | G138: 1.64 | H138: 1.64 | I138: 1.64 | J138: …
D139: 1971M04 | E139: 1971-04-01 | F139: 1971 | G139: 1.64 | H139: 1.64 | I139: 1.64 | J139: …
D140: 1971M05 | E140: 1971-05-01 | F140: 1971 | G140: 1.64 | H140: 1.64 | I140: 1.64 | J140: …
D141: 1971M06 | E141: 1971-06-01 | F141: 1971 | G141: 1.64 | H141: 1.64 | I141: 1.64 | J141: …
D142: 1971M07 | E142: 1971-07-01 | F142: 1971 | G142: 1.74 | H142: 1.74 | I142: 1.74 | J142: …
D143: 1971M08 | E143: 1971-08-01 | F143: 1971 | G143: 1.74 | H143: 1.74 | I143: 1.74 | J143: …
D144: 1971M09 | E144: 1971-09-01 | F144: 1971 | G144: 1.74 | H144: 1.74 | I144: 1.74 | J144: …
D145: 1971M10 | E145: 1971-10-01 | F145: 1971 | G145: 1.74 | H145: 1.74 | I145: 1.74 | J145: …
D146: 1971M11 | E146: 1971-11-01 | F146: 1971 | G146: 1.74 | H146: 1.74 | I146: 1.74 | J146: …
D147: 1971M12 | E147: 1971-12-01 | F147: 1971 | G147: 1.74 | H147: 1.74 | I147: 1.74 | J147: …
D148: 1972M01 | E148: 1972-01-01 | F148: 1972 | G148: 1.77 | H148: 1.77 | I148: 1.77 | J148: …
D149: 1972M02 | E149: 1972-02-01 | F149: 1972 | G149: 1.77 | H149: 1.77 | I149: 1.77 | J149: …
D150: 1972M03 | E150: 1972-03-01 | F150: 1972 | G150: 1.77 | H150: 1.77 | I150: 1.77 | J150: …
D151: 1972M04 | E151: 1972-04-01 | F151: 1972 | G151: 1.77 | H151: 1.77 | I151: 1.77 | J151: …
D152: 1972M05 | E152: 1972-05-01 | F152: 1972 | G152: 1.77 | H152: 1.77 | I152: 1.77 | J152: …
D153: 1972M06 | E153: 1972-06-01 | F153: 1972 | G153: 1.77 | H153: 1.77 | I153: 1.77 | J153: …
D154: 1972M07 | E154: 1972-07-01 | F154: 1972 | G154: 1.87 | H154: 1.87 | I154: 1.87 | J154: …
D155: 1972M08 | E155: 1972-08-01 | F155: 1972 | G155: 1.87 | H155: 1.87 | I155: 1.87 | J155: …
D156: 1972M09 | E156: 1972-09-01 | F156: 1972 | G156: 1.87 | H156: 1.87 | I156: 1.87 | J156: …
D157: 1972M10 | E157: 1972-10-01 | F157: 1972 | G157: 1.87 | H157: 1.87 | I157: 1.87 | J157: …
D158: 1972M11 | E158: 1972-11-01 | F158: 1972 | G158: 1.87 | H158: 1.87 | I158: 1.87 | J158: …
D159: 1972M12 | E159: 1972-12-01 | F159: 1972 | G159: 1.87 | H159: 1.87 | I159: 1.87 | J159: …
D160: 1973M01 | E160: 1973-01-01 | F160: 1973 | G160: 2.08 | H160: 2.08 | I160: 2.08 | J160: …
D161: 1973M02 | E161: 1973-02-01 | F161: 1973 | G161: 2.08 | H161: 2.08 | I161: 2.08 | J161: …
D162: 1973M03 | E162: 1973-03-01 | F162: 1973 | G162: 2.08 | H162: 2.08 | I162: 2.08 | J162: …
D163: 1973M04 | E163: 1973-04-01 | F163: 1973 | G163: 2.35 | H163: 2.35 | I163: 2.35 | J163: …
D164: 1973M05 | E164: 1973-05-01 | F164: 1973 | G164: 2.35 | H164: 2.35 | I164: 2.35 | J164: …
D165: 1973M06 | E165: 1973-06-01 | F165: 1973 | G165: 2.35 | H165: 2.35 | I165: 2.35 | J165: …
D166: 1973M07 | E166: 1973-07-01 | F166: 1973 | G166: 2.7 | H166: 2.7 | I166: 2.7 | J166: …
D167: 1973M08 | E167: 1973-08-01 | F167: 1973 | G167: 2.7 | H167: 2.7 | I167: 2.7 | J167: …
D168: 1973M09 | E168: 1973-09-01 | F168: 1973 | G168: 2.7 | H168: 2.7 | I168: 2.7 | J168: …
D169: 1973M10 | E169: 1973-10-01 | F169: 1973 | G169: 4.1 | H169: 4.1 | I169: 4.1 | J169: …
D170: 1973M11 | E170: 1973-11-01 | F170: 1973 | G170: 4.1 | H170: 4.1 | I170: 4.1 | J170: …
D171: 1973M12 | E171: 1973-12-01 | F171: 1973 | G171: 4.1 | H171: 4.1 | I171: 4.1 | J171: …
D172: 1974M01 | E172: 1974-01-01 | F172: 1974 | G172: 13 | H172: 13 | I172: 13 | J172: …
D173: 1974M02 | E173: 1974-02-01 | F173: 1974 | G173: 13 | H173: 13 | I173: 13 | J173: …
D174: 1974M03 | E174: 1974-03-01 | F174: 1974 | G174: 13 | H174: 13 | I174: 13 | J174: …
D175: 1974M04 | E175: 1974-04-01 | F175: 1974 | G175: 10.59999847 | H175: 10.59999847 | I175: 10.59999847 | J175: …
D176: 1974M05 | E176: 1974-05-01 | F176: 1974 | G176: 10.59999847 | H176: 10.59999847 | I176: 10.59999847 | J176: …
D177: 1974M06 | E177: 1974-06-01 | F177: 1974 | G177: 10.59999847 | H177: 10.59999847 | I177: 10.59999847 | J177: …
D178: 1974M07 | E178: 1974-07-01 | F178: 1974 | G178: 10 | H178: 10 | I178: 10 | J178: …
D179: 1974M08 | E179: 1974-08-01 | F179: 1974 | G179: 10 | H179: 10 | I179: 10 | J179: …
D180: 1974M09 | E180: 1974-09-01 | F180: 1974 | G180: 10 | H180: 10 | I180: 10 | J180: …
D181: 1974M10 | E181: 1974-10-01 | F181: 1974 | G181: 10.29999924 | H181: 10.29999924 | I181: 10.29999924 | J181: …
D182: 1974M11 | E182: 1974-11-01 | F182: 1974 | G182: 10.29999924 | H182: 10.29999924 | I182: 10.29999924 | J182: …
D183: 1974M12 | E183: 1974-12-01 | F183: 1974 | G183: 10.29999924 | H183: 10.29999924 | I183: 10.29999924 | J183: …
D184: 1975M01 | E184: 1975-01-01 | F184: 1975 | G184: 10.42000008 | H184: 10.42000008 | I184: 10.42000008 | J184: …
D185: 1975M02 | E185: 1975-02-01 | F185: 1975 | G185: 10.42000008 | H185: 10.42000008 | I185: 10.42000008 | J185: …
D186: 1975M03 | E186: 1975-03-01 | F186: 1975 | G186: 10.42000008 | H186: 10.42000008 | I186: 10.42000008 | J186: …
D187: 1975M04 | E187: 1975-04-01 | F187: 1975 | G187: 10.42000008 | H187: 10.42000008 | I187: 10.42000008 | J187: …
D188: 1975M05 | E188: 1975-05-01 | F188: 1975 | G188: 10.42000008 | H188: 10.42000008 | I188: 10.42000008 | J188: …
D189: 1975M06 | E189: 1975-06-01 | F189: 1975 | G189: 10.42000008 | H189: 10.42000008 | I189: 10.42000008 | J189: …
D190: 1975M07 | E190: 1975-07-01 | F190: 1975 | G190: 10.43000031 | H190: 10.43000031 | I190: 10.43000031 | J190: …
D191: 1975M08 | E191: 1975-08-01 | F191: 1975 | G191: 10.43000031 | H191: 10.43000031 | I191: 10.43000031 | J191: …
D192: 1975M09 | E192: 1975-09-01 | F192: 1975 | G192: 10.43000031 | H192: 10.43000031 | I192: 10.43000031 | J192: …
D193: 1975M10 | E193: 1975-10-01 | F193: 1975 | G193: 10.46000004 | H193: 10.46000004 | I193: 10.46000004 | J193: …
D194: 1975M11 | E194: 1975-11-01 | F194: 1975 | G194: 10.46000004 | H194: 10.46000004 | I194: 10.46000004 | J194: …
D195: 1975M12 | E195: 1975-12-01 | F195: 1975 | G195: 10.46000004 | H195: 10.46000004 | I195: 10.46000004 | J195: …
D196: 1976M01 | E196: 1976-01-01 | F196: 1976 | G196: 11.51000023 | H196: 11.51000023 | I196: 11.51000023 | J196: …
D197: 1976M02 | E197: 1976-02-01 | F197: =YEAR(E197) -> 1976 | G197: 11.51000023 | H197: 11.51000023 | I197: 11.51000023 | J197: …
D198: 1976M03 | E198: =EDATE(E197,1) -> 1976-03-01 | F198: 1976 | G198: 11.51000023 | H198: 11.51000023 | I198: 11.51000023 | J198: …
D199: 1976M04 | E199: 1976-04-01 | F199: 1976 | G199: 11.51000023 | H199: 11.51000023 | I199: 11.51000023 | J199: …
D200: 1976M05 | E200: 1976-05-01 | F200: 1976 | G200: 11.51000023 | H200: 11.51000023 | I200: 11.51000023 | J200: …
... 594 more rows

Sheet Exhibit1
D1: Exhibit 1 Venezuelan Macroeconomic Data: 1970-1996
E4: Real GDP Growth | F4: Per Capita GDP Growth | G4: Government Surplus/GDPa | H4: Total Debt Stock/GDP | I4: Oil Exports/ Total Exports | J4: Oil Exports/ GDP | K4: Unemployment Rate | L4: Inflation Rate | M4: Interest Ratesb | N4: Exchange Ratec
D6: 1970 | E6: 0.073 | F6: 0.037 | G6: -0.9 | H6: 0.069 | I6: 0.89 | J6: 0.172 | K6: 0.078 | L6: 0.025 | M6: ... | N6: 4.45
D7: 1971 | E7: 2.4 | F7: -1 | G7: 0.5 | H7: 12.7 | I7: 92.2 | J7: 19 | K7: ... | L7: 3.2 | M7: ... | N7: 4.35
D8: 1972 | E8: 2.5 | F8: -1 | G8: -0.2 | H8: 15.2 | I8: 91.4 | J8: 17.3 | K8: ... | L8: 2.8 | M8: ... | N8: 4.35
D9: 1973 | E9: 6.1 | F9: 2.5 | G9: 1.6 | H9: 14 | I9: 88.6 | J9: 21.6 | K9: ... | L9: 4.1 | M9: ... | N9: 4.285
D10: 1974 | E10: 5.2 | F10: 1.7 | G10: 2.4 | H10: 8.6 | I10: 95.2 | J10: 33.4 | K10: 7.6 | L10: 8.3 | M10: ... | N10: 4.285
D11: 1975 | E11: 5.1 | F11: 1.5 | G11: 0.6 | H11: 6.8 | I11: 94.6 | J11: 25.6 | K11: 8.3 | L11: 10.3 | M11: ... | N11: 4.285
D12: 1976 | E12: 8.3 | F12: 4.6 | G12: 0.5 | H12: 13.3 | I12: 94.2 | J12: 23.6 | K12: 6.8 | L12: 7.6 | M12: ... | N12: 4.293
D13: 1977 | E13: 6.2 | F13: 2.5 | G13: -4.4 | H13: 25.1 | I13: 95.4 | J13: 21.3 | K13: 5.5 | L13: 7.8 | M13: ... | N13: 4.293
D14: 1978 | E14: 2.2 | F14: -1.3 | G14: -3.6 | H14: 35.7 | I14: 95.1 | J14: 18.8 | K14: 5.1 | L14: 7.1 | M14: ... | N14: 4.293
D15: 1979 | E15: 1.3 | F15: -2 | G15: 2.1 | H15: 42.2 | I15: 95.2 | J15: 23.9 | K15: 5.8 | L15: 12.4 | M15: ... | N15: 4.293
D16: 1980 | E16: -2.5 | F16: -5.5 | G16: 0 | H16: 42 | I16: 94.9 | J16: 26.2 | K16: 6.6 | L16: 21.5 | M16: ... | N16: 4.293
D17: 1981 | E17: -0.2 | F17: -3 | G17: 2.2 | H17: 41 | I17: 94.6 | J17: 24.3 | K17: 6.8 | L17: 16.2 | M17: ... | N17: 4.293
D18: 1982 | E18: 0.8 | F18: -1.8 | G18: -2.1 | H18: 40.2 | I18: 94.7 | J18: 19.5 | K18: 7.8 | L18: 9.6 | M18: ... | N18: 4.293
D19: 1983 | E19: -5.2 | F19: -7.5 | G19: -0.6 | H19: 48.1 | I19: 91.3 | J19: 17.4 | K19: 11.2 | L19: 6.3 | M19: ... | N19: 4.3
D20: 1984 | E20: -0.5 | F20: -2.9 | G20: 2.8 | H20: 63.8 | I20: 87.7 | J20: 21 | K20: 14.3 | L20: 12.2 | M20: 0.1315 | N20: 7.5
D21: 1985 | E21: 1.1 | F21: -1.4 | G21: 2 | H21: 59 | I21: 82.6 | J21: 17.3 | K21: 14.3 | L21: 11.4 | M21: 12.55 | N21: 7.5
D22: 1986 | E22: 6.2 | F22: 3.5 | G22: -0.4 | H22: 56.4 | I22: 69.2 | J22: 10.9 | K22: 12.1 | L22: 11.5 | M22: 12.07 | N22: 14.5
D23: 1987 | E23: 4.5 | F23: 1.7 | G23: -1.7 | H23: 73.8 | I23: 81.8 | J23: 14.9 | K23: 9.9 | L23: 28.1 | M23: 13.49 | N23: 14.5
D24: 1988 | E24: 6.2 | F24: 3.4 | G24: -6.1 | H24: 57.5 | I24: 76.4 | J24: 13.5 | K24: 7.9 | L24: 29.3 | M24: 14.86 | N24: 14.5
D25: 1989 | E25: -8.5 | F25: -10.8 | G25: -1.1 | H25: 75.6 | I25: 74.9 | J25: 23.4 | K25: 9.7 | L25: 84.7 | M25: 17.32 | N25: 43.079
D26: 1990 | E26: 7.5 | F26: 4.9 | G26: -2.1 | H26: 68.3 | I26: 80 | J26: 29.2 | K26: 11 | L26: 40.6 | M26: 20.06 | N26: 50.38
D27: 1991 | E27: 10.1 | F27: 7.5 | G27: -1.4 | H27: 63.8 | I27: 81.1 | J27: 23.1 | K27: 10.1 | L27: 34.2 | M27: 27.14 | N27: 61.554
D28: 1992 | E28: 7.4 | F28: 4.9 | G28: -3.8 | H28: 62.4 | I28: 79 | J28: 18.7 | K28: 8.1 | L28: 31.4 | M28: 31.66 | N28: 79.45
D29: 1993 | E29: -0.6 | F29: -2.8 | G29: -2.5 | H29: 62.2 | I29: 74.7 | J29: 18 | K29: 6.8 | L29: 38.1 | M29: 41.03 | N29: 105.64
D30: 1994 | E30: -2.5 | F30: -4.6 | G30: -6.8 | H30: 62.6 | I30: 72.7 | J30: 20.2 | K30: 8.9 | L30: 60.8 | M30: 54.73 | N30: 170
D31: 1995 | E31: 3.7 | F31: 1.5 | G31: -4.6 | H31: 46 | I31: 74.4 | J31: 17.9 | K31: 10.9 | L31: 59.9 | M31: 53.38 | N31: 290
D32: 1996 | E32: -0.4 | F32: -2.5 | G32: 0.2 | H32: 49.9 | I32: 80.4 | J32: 26.7 | K32: 12.3 | L32: 99.9 | M32: 49.09 | N32: 476.5
D35: Sources: Inter-American Development Bank, and International Financial Statistics, International Monetary Fund.
D37: a Negative values signify Government Deficit/GDP.
D38: b The interest rates provided are yields to maturity on long-term Venezuelan government bonds.
D39: c The exchange rates provided are the official bolivar/U.S. dollar exchange rates determined by the Venezuelan government. Prior to 1989 and between 1994
D40: and early 1996, the government fixed the exchange rate. Between 1989 and 1994 and after early 1996, the government allowed the bolivar to float freely
D41: against the U.S. dollar.

Sheet Exhibit2
D1: Exhibit 2 DuPont and PDVSA Balance Sheets (U.S. dollars in millions): 1995-1996
E4: DuPont | I4: PDVSA
E5: 1996 | G5: 1995 | I5: 1996 | K5: 1995
D7: ASSETS
D9: Cash | E9: 1319 | G9: 1455 | I9: 2745 | K9: 464
D10: Accounts and notes receivable | E10: 5193 | G10: 4912 | I10: 3429 | K10: 3226
D11: Inventory | E11: 3706 | G11: 3737 | I11: 1740 | K11: 1551
D12: Prepaid expenses | E12: 297 | G12: 276 | I12: 1124 | K12: 729
D13: Deferred income taxes | E13: 588 | G13: 575 | I13: 508 | K13: 429
D14: Total current assets | E14: 11103 | G14: 10955 | I14: 9546 | K14: 6399
D16: Property, plant, and equipment | E16: 21213 | G16: 21341 | I16: 32957 | K16: 30774
D17: Investment in affiliates | E17: 2278 | G17: 1846 | I17: 1863 | K17: 1899
D18: Other assets | E18: 3393 | G18: 3170 | I18: 1036 | K18: 853
D19: Total assets | E19: 37987 | G19: 37312 | I19: 45402 | K19: 39925
D21: LIABILITIES AND EQUITY
D23: Accounts payable | E23: 2757 | G23: 2636 | I23: 2033 | K23: 1672
D24: Current portion of long-term debt | E24: 300 | G24: 551 | I24: 1137 | K24: 1074
D25: Short-term debt and lease obligations | E25: 3610 | G25: 5606 | I25: --- | K25: ---
D26: Income taxes | E26: 526 | G26: 470 | I26: 2616 | K26: 351
D27: Other accrued liabilities | E27: 3794 | G27: 3468 | I27: 1156 | K27: 952
D28: Total current liabilities | E28: 10987 | G28: 12731 | I28: 6942 | K28: 4049
D30: Long-term debt | E30: 4983 | G30: 5572 | I30: 4668 | K30: 4933
D31: Capital lease obligations | E31: 104 | G31: 106 | I31: 455 | K31: 531
D32: Deferred income taxes | E32: 2133 | G32: 1783 | I32: 19 | K32: 313
D33: Other liabilities | E33: 8451 | G33: 8454 | I33: 1166 | K33: 1168
D34: Total liabilities | E34: 26658 | G34: 28646 | I34: 13250 | K34: 10994
D36: Minority interests | E36: 620 | G36: 230 | I36: 354 | K36: 271
D37: Total stockholders' equity | E37: 10709 | G37: 8436 | I37: 31798 | K37: 28660
D38: Total liabilities and equity | E38: 37987 | G38: 37312 | I38: 45402 | K38: 39925
D41: Sources: Du Pont 1996 Annual Report and PDVSA 1996 Form 20-F.

Sheet Exhibit3
D1: Exhibit 3 DuPont and PDVSA Income Statements (U.S. dollars in millions): 1995-1996
E4: DuPont | I4: PDVSA
E5: 1996 | G5: 1995 | I5: 1996 | K5: 1995
D7: Sales | E7: 43810 | G7: 42163 | I7: 32786 | K7: 25050
D8: Other income | E8: 1340 | G8: 1059 | I8: 1069 | K8: 991
D9: Total income | E9: 45150 | G9: 43222 | I9: 33855 | K9: 26041
D11: Cost of goods sold | E11: 25144 | G11: 23363 | I11: 15720 | K11: 14061
D12: Selling, general, and administrative expenses | E12: 2856 | G12: 2995 | I12: 967 | K12: 1163
D13: Depreciation, depletion, and amortization | E13: 2621 | G13: 2722 | I13: 2749 | K13: 2400
D14: Exploration expenses | E14: 1436 | G14: 1398 | I14: 142 | K14: 118
D15: Interest and debt expense | E15: 713 | G15: 758 | I15: 343 | K15: 421
D16: Taxes other than on income | E16: 6399 | G16: 6596 | I16: 3203 | K16: 2513
D17: Other expense (income), net | E17: --- | G17: --- | I17: 79 | K17: -354
D18: Equity earnings of affiliates | E18: --- | G18: --- | I18: -89 | K18: -132
D19: Minority interests | E19: --- | G19: --- | I19: 19 | K19: 23
D20: Total costs and expenses | E20: 39169 | G20: 37832 | I20: 23133 | K20: 20213
D22: Earnings before income taxes | E22: 5981 | G22: 5390 | I22: 10722 | K22: 5828
D23: Provision for income taxes | E23: -2345 | G23: -2097 | I23: -6227 | K23: -2455
D24: Net income | E24: 3636 | G24: 3293 | I24: 4495 | K24: 3373
D26: Earnings per share of common stock | E26: 6.47 | G26: 5.61
D28: Average number of common shares (millions) | E28: 560.7 | G28: 585.1
D30: Year-end stock price | E30: 34.94 | G30: 47.06
D33: Sources: Du Pont 1996 Annual Report, and PDVSA 1996 Form 20-F.

Sheet Exhibit4
D1: Exhibit 4 Conoco and Maraven Financial Information (U.S. dollars in millions): 1995-1996
E4: Conoco | I4: Maraven
E5: 1996 | G5: 1995 | I5: 1996 | K5: 1995
D7: Sales | E7: 20579 | G7: 17958 | I7: 5503 | K7: 4073
D8: Operating profit | E8: 1818 | G8: 1257 | I8: 3574 | K8: 1924
D9: Provision for income taxes | E9: -933 | G9: -660 | I9: na | K9: na
D10: Equity in earnings of affiliates | E10: -25 | G10: 22 | I10: --- | K10: ---
D11: After-tax operating income | E11: 860 | G11: 619 | I11: 1070 | K11: -16
D13: Identifiable assets | E13: 13018 | G13: 12634 | I13: 10814 | K13: 10093
D14: Depreciation, depletion, and amortization | E14: 1128 | G14: 1111 | I14: 940 | K14: 770
D15: Capital expenditures | E15: 1616 | G15: 1714 | I15: 612 | K15: 1871
D18: Sources: DuPont 1996 Annual Report, and PDVSA.

Sheet Exhibit8
D1: Exhibit 8 Oil and Gas Industry Comparables: 1996 (unless otherwise indicated)
F4: S&P Rating | H4: Country | J4: Country Rating | K4: Debt to Value (%) | L4: Pretax Interest Coverage (X) | M4: EBITDA/ Interest (X) | N4: Operating Income as a % of Revenue | O4: Revenues ($ millions)
D6: OIL & GAS PROJECTS
D7: Athabasca Oil Sands | F7: BBB | H7: Canada | J7: AA+ | K7: 0.268 | L7: 8.15X | M7: 11.09X | N7: 0.323 | O7: 251.5
D8: Canadian Oil Sands | F8: BBB+ | H8: Canada | J8: AA+ | K8: 22.9 | L8: 8.62 | M8: 13.49 | N8: 30.7 | O8: 118.3
D9: YPF Sociedad Anomima | F9: BBB | H9: Argentina | J9: BBB- | K9: 34.8 | L9: 4.77 | M9: 8.2 | N9: 44 | O9: 5937
D10: Ras Laffan (2001) | F10: BBB+ | H10: Qatar | J10: BBB | K10: 62.7 | L10: 4.51 | M10: na | N10: 51.1 | O10: 851.6
D11: Petrozuata (2001) | F11: ??? | H11: Venezuela | J11: B | K11: 60 | L11: 4.7 | M11: 3.65 | N11: 79.4 | O11: 569.2
D13: INDEPENDENT OIL COMPANIES
D14: Apache | F14: BBB | H14: U.S. | J14: AAA | K14: 45.8X | L14: 2.68X | M14: 5.85X | N14: 0.601 | O14: 976
D15: Burlington Resources | F15: A- | H15: U.S. | J15: AAA | K15: 37.9 | L15: 3.7 | M15: 6.56 | N15: 62.6 | O15: 1293
D16: Husky Oil | F16: BBB | H16: Canada | J16: AA+ | K16: 41.9 | L16: 2.66 | M16: 5.02 | N16: 39.7 | O16: 1272.9
D17: Noble Affiliates | F17: BBB | H17: U.S. | J17: AAA | K17: 54.1 | L17: 4.49 | M17: 10.72 | N17: 46 | O17: 878.3
D18: Norcen Energy Resources | F18: BBB | H18: Canada | J18: AA+ | K18: 49.6 | L18: 1.49 | M18: 4.99 | N18: 42.2 | O18: 1257.3
D19: Talisman Energy | F19: BBB+ | H19: Canada | J19: AA+ | K19: 30 | L19: 4.54 | M19: 10.24 | N19: 59 | O19: 1182.9
D21: INTEGRATED OIL COMPANIES
D22: Amoco | F22: AAA | H22: U.S. | J22: AAA | K22: 26.6X | L22: 13.08X | M22: 21.22X | N22: 0.189 | O22: 32150
D23: Chevron | F23: AA | H23: U.S. | J23: AAA | K23: 32 | L23: 9.85 | M23: 14.2 | N23: 16.9 | O23: 37580
D24: Exxon | F24: AAA | H24: U.S. | J24: AAA | K24: 21 | L24: 10.25 | M24: 15.06 | N24: 13.8 | O24: 116728
D25: Mobil | F25: AA | H25: U.S. | J25: AAA | K25: 32.7 | L25: 11.73 | M25: 16.69 | N25: 11.9 | O25: 71129
D26: Texaco | F26: A+ | H26: U.S. | J26: AAA | K26: 39.3 | L26: 5.68 | M26: 8.83 | N26: 10.1 | O26: 44561
D27: Shell Canada | F27: AA | H27: Canada | J27: AA+ | K27: 20.6 | L27: 6.57 | M27: 10.47 | N27: 19.7 | O27: 5140
D28: PDVSA | F28: B | H28: Venezuela | J28: B | K28: 15.4 | L28: 32.26 | M28: 40.27 | N28: 48.7 | O28: 33855
D31: Sources: S&P's Global Sector Review, Bloomberg, and casewriter estimates.

Sheet Exhibit9
D1: Exhibit 9 Credit Ratings for Selected Sovereign Foreign Currency Long-Term Debt
F4: S&P | J4: Moody's | N4: Institutional Investor
D5: Sovereign | F5: Dec. 1994 | H5: Dec. 1996 | J5: Dec. 1994 | L5: Dec. 1996 | N5: Sept. 1994 | P5: Sept. 1996
D7: North America
D8: Canada | F8: AA+ | H8: AA+ | J8: Aa1 | L8: Aa2 | N8: 81.3 | P8: 79.4
D9: Mexico | F9: BB | H9: BB | J9: Baa1 | L9: Ba2 | N9: 46.1 | P9: 41.6
D10: United States | F10: AAA | H10: AAA | J10: Aaa | L10: Aaa | N10: 90.8 | P10: 90.7
D12: Central America
D13: Costa Rica | F13: n/r | H13: n/r | J13: n/r | L13: n/r | N13: 30.3 | P13: 33.9
D14: Panama | F14: n/r | H14: n/r | J14: n/r | L14: n/r | N14: 24.4 | P14: 28.5
D16: South America
D17: Argentina | F17: BB- | H17: BB- | J17: B2 | L17: B1 | N17: 37.3 | P17: 38.9
D18: Bolivia | F18: n/r | H18: n/r | J18: n/r | L18: n/r | N18: 21.4 | P18: 25.4
D19: Brazil | F19: B+ | H19: B+ | J19: B1 | L19: B1 | N19: 30.3 | P19: 38.3
D20: Chile | F20: BBB+ | H20: A- | J20: Baa2 | L20: Baa1 | N20: 54.9 | P20: 61.2
D21: Colombia | F21: n/r | H21: BBB- | J21: n/r | L21: Baa3 | N21: 44.4 | P21: 46.7
D22: Ecuador | F22: n/r | H22: n/r | J22: n/r | L22: n/r | N22: 24.5 | P22: 26.4
D23: Peru | F23: n/r | H23: n/r | J23: n/r | L23: B3 | N23: 21 | P23: 30
D24: Venezuela | F24: B+ | H24: B | J24: Ba2 | L24: Ba2 | N24: 36 | P24: 32
D27: Sources: Bloomberg and "Country Credit Ratings," Institutional Investor, March 1995 and September 1996.

Sheet Exhibit10a
D1: Exhibit 10a Petrozuata Equity Cash Flow Projections (U.S. dollars in thousands)
K4: Cash | M4: Cash Used
E5: Forecast | K5: Available | M5: for Debt
E6: Price of | J6: Implied | K6: for Debt | M6: Service
E7: Maya | F7: Implied | G7: Total | H7: Derived | I7: O&M Taxes | J7: Cost | K7: Service | L7: Total Debt | M7: Reserve | N7: Equity Cash Flows | R7: Debt Cash Flow | S7: Debt IRR | T7: DSCR | U7: LLCR | Y7: Permium above Rf | Z7: Equity Investment | AA7: Premium vs Rf | AB7: Levelized Premium | AC7: Project CF | AD7: Project Irr | AE7: NPv of Equity
D8: Year | E8: Crude | F8: Production | G8: Revenue | H8: Price | I8: And Other | J8: per BBL | K8: (CADS) | L8: Service | M8: Account | N8: Dividends | O8: Investment | P8: Total Debt | Q8: =IRR(Q12:Q50) -> 0.2600021014 | W8: Net Equity Cash | X8: Equity IRR | Y8: 0.054 | AE8: 0.2097
W9: =SUM(W12:W50) -> 14937052.77
S11: =IRR(R12:R50) -> 0.06264062692 | X11: =IRR(W12:W50) -> 0.2600021014 | AD11: =IRR(AC12:AC50) -> 0.1509404223 | AE11: =NPV(AE8,W12:W50) -> 134911.5533
D12: 1996 | E12: =TRANSPOSE(InputS!I15:AU15) -> 12.25 | G12: 0 | K12: 0 | O12: -79035 | P12: 0 | Q12: =O12+N12 -> -79035 | R12: =-(P12-P11) -> 0 | U12: Debt | V12: =-SUM(R13:R16) -> 1450000 | W12: =O12+N12 -> -79035 | AC12: =W12+R12 -> -79035
D13: 1997 | E13: 12.56 | G13: 0 | K13: 47213 | O13: -1986 | P13: 1000000 | Q13: =O13+N13 -> -1986 | R13: =-(P13-P12) -> -1000000 | U13: PV of CFADS | V13: =NPV(S11,K15:K39) -> 4825665.461 | W13: =O13+N13 -> -1986 | AC13: =W13+R13 -> -1001986
D14: 1998 | E14: 12.87 | F14: 6101.320901 | G14: =E14*F14 -> 78524 | H14: =G14/F14 -> 12.87 | I14: 74040 | J14: =I14/F14 -> 12.13507717 | K14: =G14-I14 -> 4484 | O14: -550148 | P14: 1024299 | Q14: -550148 | R14: -24299 | V14: =V13/V12 -> 3.328045146 | W14: -550148 | X14: 1 | AC14: -574447
D15: 1999 | E15: 13.19 | F15: 32529.11296 | G15: =E15*F15 -> 429059 | H15: =G15/F15 -> 13.19 | I15: 268111 | J15: =I15/F15 -> 8.242186016 | K15: =G15-I15 -> 160948 | N15: 1576 | P15: 1267280 | Q15: 1576 | R15: -242981 | U15: Break Even | V15: =(V14-1)/V14 -> 0.6995233068 | W15: 1576 | X15: =X14*(1+$X$11) -> 1.260002101 | Y15: =NPV(Y8,N15:N50) -> 5039463.491 | Z15: =-SUM(O12:O14) -> 631169 | AA15: =Y15/Z15 -> 7.984333026 | AB15: =-PMT(Y8,35,AA15) -> 0.5124857962 | AC15: -241405
D16: 2000 | E16: 13.52 | F16: 59475.44379 | G16: 804108 | H16: 13.52 | I16: 486627 | J16: 8.181981823 | K16: 317481 | M16: -80865 | N16: 185047 | P16: 1450000 | Q16: 185047 | R16: -182720 | W16: 185047 | X16: =X15*(1+$X$11) -> 1.587605296 | AC16: 2327
D17: 2001 | E17: 13.86 | F17: 41064.64646 | G17: 569156 | H17: 13.86 | I17: 184391 | J17: 4.490261475 | K17: 384765 | L17: 160922 | M17: 1614 | N17: =K17-L17+M17 -> 225457 | P17: 1411111 | Q17: 225457 | R17: =L17 -> 160922 | T17: =K17/L17 -> 2.391003095 | W17: 225457 | X17: 2.000386009 | AC17: 386379
D18: 2002 | E18: 14.21 | F18: 41069.45813 | G18: 583597 | H18: 14.21 | I18: 194443 | J18: 4.73449149 | K18: 389154 | L18: 157694 | M18: 1614 | N18: =K18-L18+M18 -> 233074 | P18: 1372222 | Q18: 233074 | R18: =L18 -> 157694 | T18: =K18/L18 -> 2.46777937 | W18: 233074 | X18: 2.520490574 | AC18: 390768
D19: 2003 | E19: 14.56 | F19: 41098.76374 | G19: 598398 | H19: 14.56 | I19: 231823 | J19: 5.640631954 | K19: 366575 | L19: 154466 | M19: -11509 | N19: 200600 | P19: 1333333 | Q19: 200600 | R19: 154466 | T19: 2.373175974 | W19: 200600 | X19: 3.17582342 | AC19: 355066
D20: 2004 | E20: 14.93 | F20: 41096.31614 | G20: 613568 | H20: 14.93 | I20: 212016 | J20: 5.159002556 | K20: 401552 | L20: 176949 | M20: -5700 | N20: 218903 | P20: 1268856 | Q20: 218903 | R20: 176949 | T20: 2.269309236 | W20: 218903 | X20: 4.001544183 | AC20: 395852
D21: 2005 | E21: 15.3 | F21: 41118.75817 | G21: 629117 | H21: 15.3 | I21: 230906 | J21: 5.61558788 | K21: 398211 | L21: 188009 | M21: -6345 | N21: 203857 | P21: 1187614 | Q21: 203857 | R21: 188009 | T21: 2.118042221 | W21: 203857 | X21: 5.04195408 | AC21: 391866
D22: 2006 | E22: 15.68 | F22: 41138.52041 | G22: 645052 | H22: 15.68 | I22: 211575 | J22: 5.142990023 | K22: 433477 | L22: 200307 | M22: -550 | N22: 232620 | P22: 1086961 | Q22: 232620 | R22: 200307 | T22: 2.164063163 | W22: 232620 | X22: 6.352872736 | AC22: 432927
D23: 2007 | E23: 16.07 | F23: 41156.56503 | G23: 661386 | H23: 16.07 | I23: 226119 | J23: 5.494117399 | K23: 435267 | L23: 201204 | M23: -4671 | N23: 229392 | P23: 977484 | Q23: 229392 | R23: 201204 | T23: 2.163311863 | W23: 229392 | X23: 8.004632997 | AC23: 430596
D24: 2008 | E24: 16.47 | F24: 41173.40619 | G24: 678126 | H24: 16.47 | I24: 240008 | J24: 5.829199529 | K24: 438118 | L24: 210153 | M24: 10623 | N24: 238588 | P24: 849556 | Q24: 238588 | R24: 210153 | T24: 2.084757296 | W24: 238588 | X24: 10.0858544 | AC24: 448741
D25: 2009 | E25: 16.89 | F25: 41165.36412 | G25: 695283 | H25: 16.89 | I25: 322101 | J25: 7.824563365 | K25: 373182 | L25: 166148 | M25: 19595 | N25: 226629 | P25: 755137 | Q25: 226629 | R25: 166148 | T25: 2.246081807 | W25: 226629 | X25: 12.70819774 | AC25: 392777
D26: 2010 | E26: 17.31 | F26: 41182.49567 | G26: 712869 | H26: 17.31 | I26: 341400 | J26: 8.289929847 | K26: 371469 | L26: 150455 | M26: -4135 | N26: 216879 | P26: 669137 | Q26: 216879 | R26: 150455 | T26: 2.468970789 | W26: 216879 | X26: 16.01235585 | AC26: 367334
D27: 2011 | E27: 17.74 | F27: 41200.22548 | G27: 730892 | H27: 17.74 | I27: 352421 | J27: 8.553860953 | K27: 378471 | L27: 158377 | M27: -3438 | N27: 216656 | P27: 567137 | Q27: 216656 | R27: 158377 | T27: 2.389684108 | W27: 216656 | X27: 20.17560202 | AC27: 375033
D28: 2012 | E28: 18.19 | F28: 41196.53656 | G28: 749365 | H28: 18.19 | I28: 361937 | J28: 8.785617196 | K28: 387428 | L28: 164964 | M28: 40417 | N28: 262881 | P28: 449137 | Q28: 262881 | R28: 164964 | T28: 2.348560898 | W28: 262881 | X28: 25.42130094 | AC28: 427845
D29: 2013 | E29: 18.64 | F29: 41217.75751 | G29: 768299 | H29: 18.64 | I29: 439321 | J29: 10.65853716 | K29: 328978 | L29: 85668 | M29: -933 | N29: 242377 | P29: 401689 | Q29: 242377 | R29: 85668 | T29: 3.840150348 | W29: 242377 | X29: 32.03089261 | AC29: 328045
D30: 2014 | E30: 19.1992 | F30: 41244.5279 | G30: 791861.94 | H30: 19.1992 | I30: 410357 | J30: 9.949368339 | K30: 381504.94 | L30: 87403 | M30: -19051 | N30: 275050.94 | P30: 348241 | Q30: 275050.94 | R30: 87403 | T30: 4.364895255 | W30: 275050.94 | X30: 40.358992 | AC30: 362453.94
D31: 2015 | E31: 19.775176 | F31: 41271.94206 | G31: 816159.9181 | H31: 19.775176 | I31: 377764 | J31: 9.153046383 | K31: 438395.9181 | L31: 124573 | M31: -6498 | N31: 307324.9181 | P31: 252034 | Q31: 307324.9181 | R31: 124573 | T31: 3.519188894 | W31: 307324.9181 | X31: 50.85241473 | AC31: 431897.9181
D32: 2016 | E32: 20.36843128 | F32: 41299.94635 | G32: 841215.1191 | H32: 20.36843128 | I32: 386303 | J32: 9.353595685 | K32: 454912.1191 | L32: 137103 | M32: 4468 | N32: 322277.1191 | P32: 134448 | Q32: 322277.1191 | R32: 137103 | T32: 3.318031838 | W32: 322277.1191 | X32: 64.07414942 | AC32: 459380.1191
D33: 2017 | E33: 20.97948422 | F33: 41328.59442 | G33: 867052.5944 | H33: 20.97948422 | I33: 387497 | J33: 9.376002388 | K33: 479555.5944 | L33: 68691 | M33: 62038 | N33: 472902.5944 | P33: 75000 | Q33: 472902.5944 | R33: 68691 | T33: 6.981345364 | W33: 472902.5944 | X33: 80.73356292 | AC33: 541593.5944
D34: 2018 | E34: 21.60886874 | F34: 41357.88627 | G34: 893697.1359 | H34: 21.60886874 | I34: 443380 | J34: 10.72056723 | K34: 450317.1359 | L34: 6653 | M34: 0 | N34: 443664.1359 | P34: 75000 | Q34: 443664.1359 | R34: 6653 | T34: 67.68632735 | W34: 443664.1359 | X34: 101.7244589 | AC34: 450317.1359
D35: 2019 | E35: 22.25713481 | F35: 41387.76824 | G35: 921173.1371 | H35: 22.25713481 | I35: 463444 | J35: 11.19760789 | K35: 457729.1371 | L35: 6653 | M35: 0 | N35: 451076.1371 | P35: 75000 | Q35: 451076.1371 | R35: 6653 | T35: 68.80041141 | W35: 451076.1371 | X35: 128.173032 | AC35: 457729.1371
D36: 2020 | E36: 22.92484885 | F36: 41945.22532 | G36: 961587.9505 | H36: 22.92484885 | I36: 498808 | J36: 11.89188987 | K36: 462779.9505 | L36: 6653 | M36: 0 | N36: 456126.9505 | P36: 75000 | Q36: 456126.9505 | R36: 6653 | T36: 69.55958974 | W36: 456126.9505 | X36: 161.4982897 | AC36: 462779.9505
D37: 2021 | E37: 23.61259432 | F37: 41976.4485 | G37: 991172.8493 | H37: 23.61259432 | I37: 482977 | J37: 11.50590432 | K37: 508195.8493 | L37: 6653 | M37: 0 | N37: 501542.8493 | P37: 75000 | Q37: 501542.8493 | R37: 6653 | T37: 76.38596862 | W37: 501542.8493 | X37: 203.4881844 | AC37: 508195.8493
D38: 2022 | E38: 24.32097215 | F38: 42008.3691 | G38: 1021684.375 | H38: 24.32097215 | I38: 487482 | J38: 11.60440194 | K38: 534202.3748 | L38: 81653 | M38: 3327 | N38: 455876.3748 | P38: 0 | Q38: 455876.3748 | R38: 81653 | T38: 6.542348411 | W38: 455876.3748 | X38: 256.3955399 | AC38: 537529.3748
D39: 2023 | E39: 25.05060131 | F39: 42040.98712 | G39: 1053152.007 | H39: 25.05060131 | I39: 489066 | J39: 11.63307604 | K39: 564086.0072 | L39: 0 | M39: 0 | N39: 564086.0072 | Q39: 564086.0072 | R39: 0 | W39: 564086.0072 | X39: 323.0589191 | AC39: 564086.0072
D40: 2024 | E40: 25.80211935 | F40: 42074.35622 | G40: 1085607.561 | H40: 25.80211935 | I40: 494610 | J40: 11.75561659 | K40: 590997.5609 | N40: 590997.5609 | Q40: 590997.5609 | R40: 0 | W40: 590997.5609 | X40: 407.0549169 | AC40: 590997.5609
D41: 2025 | E41: 26.57618293 | F41: 42108.42275 | G41: 1119081.146 | H41: 26.57618293 | I41: 495196 | J41: 11.76002253 | K41: 623885.1458 | N41: 623885.1458 | Q41: 623885.1458 | R41: 0 | W41: 623885.1458 | X41: 512.8900507 | AC41: 623885.1458
D42: 2026 | E42: 27.37346842 | F42: 42143.24034 | G42: 1153606.659 | H42: 27.37346842 | I42: 507476 | J42: 12.0416939 | K42: 646130.6586 | N42: 646130.6586 | Q42: 646130.6586 | R42: 0 | W42: 646130.6586 | X42: 646.2425417 | AC42: 646130.6586
D43: 2027 | E43: 28.19467247 | F43: 42178.86266 | G43: 1189219.218 | H43: 28.19467247 | I43: 509408 | J43: 12.07732897 | K43: 679811.2179 | N43: 679811.2179 | Q43: 679811.2179 | R43: 0 | W43: 679811.2179 | X43: 814.2669606 | AC43: 679811.2179
D44: 2028 | E44: 29.04051265 | F44: 42215.1824 | G44: 1225950.538 | H44: 29.04051265 | I44: 512442 | J44: 12.13880814 | K44: 713508.5384 | N44: 713508.5384 | Q44: 713508.5384 | R44: 0 | W44: 713508.5384 | X44: 1025.978081 | AC44: 713508.5384
D45: 2029 | E45: 29.91172802 | F45: 42252.36052 | G45: 1263841.116 | H45: 29.91172802 | I45: 523980 | J45: 12.40120063 | K45: 739861.1161 | N45: 739861.1161 | Q45: 739861.1161 | R45: 0 | W45: 739861.1161 | X45: 1292.734539 | AC45: 739861.1161
D46: 2030 | E46: 30.80907987 | F46: 42290.2897 | G46: 1302924.913 | H46: 30.80907987 | I46: 540751 | J46: 12.78664686 | K46: 762173.9129 | N46: 762173.9129 | Q46: 762173.9129 | R46: 0 | W46: 762173.9129 | X46: 1628.848235 | AC46: 762173.9129
D47: 2031 | E47: 31.73335226 | F47: 42329.07725 | G47: 1343243.519 | H47: 31.73335226 | I47: 538685 | J47: 12.72612197 | K47: 804558.5194 | N47: 804558.5194 | Q47: 804558.5194 | R47: 0 | W47: 804558.5194 | X47: 2052.352199 | AC47: 804558.5194
D48: 2032 | E48: 32.68535283 | F48: 42368.72318 | G48: 1384836.666 | H48: 32.68535283 | I48: 546816 | J48: 12.90612412 | K48: 838020.6659 | N48: 838020.6659 | Q48: 838020.6659 | R48: 0 | W48: 838020.6659 | X48: 2585.968084 | AC48: 838020.6659
D49: 2033 | E49: 33.66591341 | F49: 42409.22747 | G49: 1427745.38 | H49: 33.66591341 | I49: 549864 | J49: 12.96566886 | K49: 877881.3799 | N49: 877881.3799 | Q49: 877881.3799 | R49: 0 | W49: 877881.3799 | X49: 3258.32522 | AC49: 877881.3799
D50: 2034 | E50: 34.67589082 | F50: 42450.59013 | G50: 1472012.028 | H50: 34.67589082 | I50: 565083 | J50: 13.3115464 | K50: 906929.0284 | N50: 906929.0284 | Q50: 906929.0284 | R50: 0 | W50: 906929.0284 | X50: 4105.496624 | AC50: 906929.0284
D53: Sources: Petrozuata Planning Documents, Federal Reserve Bulletin, S&P Bond Guide, and casewriter estimates.

Sheet Exhibit10b
D1: Exhibit 10b Capital Markets Data (as of January 1997)
D4: Government or International Debt | E4: Yields | G4: Corporate Bond Ratings (U.S. industrials) | H4: Yields | I4: Spread
D6: Federal Funds Rate | E6: 0.0519 | G6: AAA | H6: 0.0713
D7: 3-month Treasury Bill | E7: 5.03 | G7: AA | H7: 7.21 | I7: =H7-bond_rate -> 0.4
D8: 3-month LIBOR | E8: 5.78 | G8: A | H8: 7.39 | I8: =H8-bond_rate -> 0.58
D9: 10-year Treasury Bond | E9: 6.56 | G9: BBB | H9: 7.7 | I9: =H9-bond_rate -> 0.89
D10: 30-year Treasury Bond | E10: 6.81 | G10: BB | H10: 8.69 | I10: =H10-bond_rate -> 1.88
G11: B | H11: 10.17 | I11: =H11-bond_rate -> 3.36 | J11: =I11-I9 -> 2.47
D14: Sources: Petrozuata Planning Documents, Federal Reserve Bulletin, S&P Bond Guide,
D15: and casewriter estimates.
G18: Debt | H18: =Exhibit7!J23 -> 1450000
G20: Amount | H20: =H18*J11/100 -> 35815
G23: 1 | H23: =H20 -> 35815
G24: =G23+1 -> 2 | H24: =H23 -> 35815
G25: 3 | H25: 35815
G26: 4 | H26: 35815
G27: 5 | H27: 35815
G28: 6 | H28: 35815
G29: 7 | H29: 35815
G30: 8 | H30: 35815
G31: 9 | H31: 35815
G32: 10 | H32: 35815
G34: =bond_rate/100 -> 0.0681 | H34: =NPV(G34,H23:H32) -> 253773.8124
